{"text_format":"1","workbook":"xlsx","n_sheets":8,"sheets":["Settings & Support","SettingsPvt","NotesPvt","ToolsPvt","OnGrid Names","Contracts","Loan_Application_Forms","Letters"],"not_rendered":{"charts":0,"images":3,"macros":1,"external_links":1,"defined_names":803,"comments":0,"pivot_tables":0},"unopened":[],"bounds":{"document_bytes":16777216,"sheet_cells":100000,"rows_first":2000,"rows_last":500,"rows_between":2000,"halvings":0,"cell_chars":16384,"cell_head_chars":4096},"cells_cut":0,"cells_raw":0,"read":"whole","date_system":"1904"}

{"sheet":"Settings & Support","index":0,"n_rows":379,"n_cols":249,"rows_kept":379,"cut":false,"hidden":false,"merged":[]}
[]
[null,null,"Top",null,{"$f":"\"\"","v":""},null,null,null,"Template Design Revision History",null,null,null,null,"Wkb Development Revision History"]
[]
[null,null,{"$f":"IF(PropWkb,\"OnGrid Custom Proposals\",\"OnGrid Custom Documents\")","v":"OnGrid Custom Documents"}]
[]
[]
[]
[null,null,"Settings"]
[]
[]
[null,null,{"$f":"IF(PageMaker,\"Page Maker is ON\",\"Page Maker is OFF\")","v":"Page Maker is OFF"},null,"control + t  (t for Toggle)"]
[]
[]
[]
[]
[]
[]
[]
[]
[]
[]
[null,null,"Support"]
[]
[]
[null,null,{"$f":"IF(PropWkb,\"Proposal Wkb Version:  \"&TEXT(PropWkbVersion,\"0.0#\"),\"Document Wkb Version:  \"&TEXT(DocWkbVersion,\"0.0#\"))","v":"Document Wkb Version:  2.01"}]
[null,null,{"$f":"IF(MacExcelxl,\"WARNING MAC USERS: When using the 'Find & Replace' dialog box (Control + f/h), search within Sheet -- not within Workbook. -Otherwise you'll get an error message repeatedly until the workbook is closed. OnGrid is working on a solution to this problem.\",\"\")","v":""}]
[]
[]
["TemplateRevHistoryLabel",null,"Template Design Revision History"]
[]
[null,null,"Date","PropDoc Ver.","Tool Ver.","Editor","Change"]
[]
["TemplateRevHistStart",null,"2009-10-21",1,4,"MB"]
[null,null,"2013-04-19",2.0099999999999998,5,"MB","Document updates by Jessica Yip"]
[]
[]
[]
[]
[]
[]
[]
[]
[]
[]
[]
[]
[]
[]
[]
[]
[]
[]
[]
[]
[]
[]
[]
[]
[]
[]
[]
[]
[]
[]
[]
[]
[]
[]
[]
[]
[]
[]
[]
[]
[]
[]
[]
[]
[]
[]
[]
[]
[]
[]
[]
[]
[]
[]
[]
[]
[]
[]
[]
[]
[]
[]
[]
[]
[]
[]
[]
[]
[]
[]
[]
[]
[]
[]
[]
[]
[]
[]
[]
[]
[]
[]
[]
[]
[]
[]
[]
[]
[]
[]
[]
[]
[]
[]
[]
[]
[]
[]
[]
[]
[]
[]
[]
[]
[]
[]
[]
[]
[]
[]
[]
[]
[]
[]
[]
[]
[]
[]
[]
[]
[]
[]
[]
[]
[]
[]
[]
[]
[]
[]
[]
[]
[]
[]
[]
[]
[]
[]
[]
[]
[]
[]
[]
[]
[]
[]
[]
[]
[]
[]
[]
[]
[]
[]
[]
[]
[]
[]
[]
[]
[]
[]
[]
[]
[]
[]
[]
[]
[]
[]
[]
[]
[]
[]
[]
[]
[]
[]
[]
[]
[]
[]
[]
[]
[]
[]
[]
[]
[]
[]
[]
[]
[]
[]
[]
[]
[]
[]
["TemplateRevHistEnd"]
[]
[]
[]
["GenRevHistoryLabel",null,"Wkb Development Revision History"]
[]
[null,null,"Date","PropDoc Ver.","Tool Ver.","Editor","Change"]
[]
["GenRevHistStart",null,"2009-09-03",null,4,"MB","Separated Rev History into two sections"]
[null,null,"2009-09-03",null,4,"MB","Tested '>256 character sheet import' issue -- entirety transfers fine now"]
[null,null,"2009-09-03",null,4,"MB","The 'Find and Replace' dialog box no longer opens with inapplicable search text"]
[null,null,"2009-09-04",null,4,"MB","Tried to find fix for 'Out of Stack Space' error msg after searching the workbook for a term -- couldn't"]
[null,null,"2009-10-12",null,4,"MB","Imported revised charts from Tool (PropWkb only)"]
[null,null,"2009-10-21",null,4,"MB","Revised defaults for Timelines (PropWkb only)"]
[null,null,"2009-11-09",1.2,4,"MB","Added error handling for sheet import ('Cells.Replace \"^^=\", \"=\"'' caused RT error on Mac)"]
[null,null,"2009-12-02",1.3,4,"MB","Added code to adjust margin defaults for new added worksheets"]
[null,null,"2010-01-29",1.4,4,"MB","Changed 'Print Area Maker' to 'Page Maker'"]
[null,null,"2010-01-31",1.4,4,"MB","Added notification about Excel 2007 erratic chart formatting issue"]
[null,null,"2010-02-05",1.5,4,"MB","Added ability for Excel 2007 users to save in new .xlsm format (hopefully a fix of the erratic chart issue) -- removed eratic chart notification"]
[null,null,"2010-02-05",1.5,4,"MB","Added ability to copy and paste from other workbooks to this workbook (with the exception of copying & pasting from the Tool, which is disabled)"]
[null,null,"2010-02-17",1.6,4,"MB","Changed \"Loan\" to \"Financing\" on applicable charts and timeline"]
[null,null,"2010-02-24",1.7,4,"MB","Fixed bug w/ double-clicking to see print preview immediately upon activating sheet"]
[null,null,"2010-02-24",1.7,4,"MB","Added splash form for toggling page maker"]
[null,null,"2010-12-03",2.0099999999999998,4,"MB","PropDoc now compatible w/ Excel 2010 64 bit"]
[null,null,"2010-12-08",2.0099999999999998,4,"MB","PropDoc now compatible w/ Excel 2011 (Mac)"]
[]
[]
[]
[]
[]
[]
[]
[]
[]
[]
[null,null,null,null,null,null,null,null,null,null,null,null,null,null,null,null,null,null,null,null,null,null,null,null,null,null,null,null,null,null,null,null,null,null,null,null,null,null,null,null,null,null,null,null,null,null,null,null,null,null,null,null,null,null,null,null,null,null,null,null,null,null,null,null,null,null,null,null,null,null,null,null,null,null,null,null,null,null,null,null,null,null,null,null,null,null,null,null,null,null,null,null,null,null,null,null,null,null,null,null,null,null,null,null,null,null,null,null,null,null,null,null,null,null,null,null,null,null,null,null,null,null,null,null,null,null,null,null,null,null,null,null,null,null,null,null,null,null,null,null,null,null,null,null,null,null,null,null,null,null,null,null,null,null,null,null,null,null,null,null,null,null,null,null,null,null,null,null,null,null,null,null,null,null,null,null,null,null,null,null,null,null,null,null,null,null,null,null,null,null,null,null,null,null,null,null,null,null,null,null,null,null,null,null,null,null,null,null,null,null,null,null,null,null,null,null,null,null,null,null,null,null,null,null,null,null,null,null,null,null,null,null,null,null,null,null,null,null,null,null,null,null,null,null,null,null,null,null,{"$f":"'Settings & Support'!IO269","v":0}]
[]
[]
[]
[]
[]
[]
[]
[]
[]
[]
[]
[]
[]
[]
[]
[]
[]
[]
[]
[]
[]
[]
[]
[]
[]
[]
[]
[]
[]
["GenRevHistEnd"]
[]
[]
[]
[]
[]
[]
["StartPrivate"]
[]
[]
[]
[]
[]
[]
["EndPrivate"]
[]
[]
[]
[]
[]
[]
[]
[]
[]
[]
[]
[]
[]
[]
[]
[]
[null,null,null,null,null,null,null,null,null,null,null,null,null,null,null,null,null,null,null,null,null,null,null,null,null,null,null,null,null,null,null,null,null,null,null,null,null,null,null,null,null,null,null,null,null,null,null,null,null,null,null,null,null,null,null,null,null,null,null,null,null,null,null,null,null,null,null,null,null,null,null,null,null,null,null,null,null,null,null,null,null,null,null,null,null,null,null,null,null,null,null,null,null,null,null,null,null,null,null,null,null,null,null,null,null,null,null,null,null,null,null,null,null,null,null,null,null,null,null,null,null,null,null,null,null,null,null,null,null,null,null,null,null,null,null,null,null,null,null,null,null,null,null,null,null,null,null,null,null,null,null,null,null,null,null,null,null,null,null,null,null,null,null,null,null,null,null,null,null,null,null,null,null,null,null,null,null,null,null,null,null,null,null,null,null,null,null,null,null,null,null,null,null,null,null,null,null,null,null,null,null,null,null,null,null,null,null,null,null,null,null,null,null,null,null,null,null,null,null,null,null,null,null,null,null,null,null,null,null,null,null,null,null,null,null,null,null,null,null,null,null,null,null,null,null,null,null,null,{"$f":"'Settings & Support'!IO330","v":0}]
[]
[]
[]
[]
[]
[]
[]
[]
[]
[]
[]
[]
[]
[]
[]
[]
[]
[]
[]
[]
[]
[]
[]
[]
[]
[]
[]
[]
[]
[]
[]
[]
[]
[]
[]
[]
[]
[]
[]
[]
[]
[]
[]
[]
[]
[]
[]
[]
[]
[null,null,null,null,null,null,null,null,null,null,null,null,null,null,null,null,null,null,null,null,null,null,null,null,null,null,null,null,null,null,null,null,null,null,null,null,null,null,null,null,null,null,null,null,null,null,null,null,null,null,null,null,null,null,null,null,null,null,null,null,null,null,null,null,null,null,null,null,null,null,null,null,null,null,null,null,null,null,null,null,null,null,null,null,null,null,null,null,null,null,null,null,null,null,null,null,null,null,null,null,null,null,null,null,null,null,null,null,null,null,null,null,null,null,null,null,null,null,null,null,null,null,null,null,null,null,null,null,null,null,null,null,null,null,null,null,null,null,null,null,null,null,null,null,null,null,null,null,null,null,null,null,null,null,null,null,null,null,null,null,null,null,null,null,null,null,null,null,null,null,null,null,null,null,null,null,null,null,null,null,null,null,null,null,null,null,null,null,null,null,null,null,null,null,null,null,null,null,null,null,null,null,null,null,null,null,null,null,null,null,null,null,null,null,null,null,null,null,null,null,null,null,null,null,null,null,null,null,null,null,null,null,null,null,null,null,null,null,null,null,null,null,null,null,null,null,null,null,{"$f":"'Settings & Support'!IO380","v":0}]

{"sheet":"SettingsPvt","index":1,"n_rows":56,"n_cols":6,"rows_kept":56,"cut":false,"hidden":false,"merged":[]}
[]
[]
[null,null,"This Sheet Modified by VBA or Tool Developer ONLY"]
[]
[]
[null,"WKB SETTINGS & INFO",null,0,"PropDoc Master (boolean)"]
[]
[null,"Document","Prop Wkb or Doc Wkb"]
[null,{"$f":"IF(PropOrDoc=\"Proposal\",1,0)","v":0},"Currently Proposal Wkb (boolean)"]
[null,{"$f":"IF(PropOrDoc=\"Document\",1,0)","v":1},"Currently Document Wkb (boolean)"]
[]
[]
[null,"Development","Prop Wkb Mode (Development or Production)"]
[null,{"$f":"IF(PropDocMode=\"Development\",1,0)","v":1},"DevMode (boolean)"]
[]
[]
[null,"2010-12-13","Last Updated--Proposal Structure"]
[null,2.0099999999999998,"Prop Wkb Version"]
[null,1,"Prop Wkb Required Tool Version for Printing"]
[]
[]
[null,"2010-12-13","Last Updated--Document Structure"]
[null,2.0099999999999998,"Doc Wkb Version"]
[null,1,"Doc Wkb Required Tool Version for Printing"]
[]
[]
[]
[null,"2009-08-25","Last Updated--Proposal Ref Names"]
[null,"2010-02-05","Last Updated--Document Ref Names",null,{"$f":"LastUpdateDocNames","v":38752},"w/o reference, 'LastUpdateDocNames' ref name dissapears during update if .xlsm -- don't know why"]
[]
[null,null,"PreviousPrintSheetAddress"]
[]
[null,0,"PageMaker (boolean)"]
[null,0,"Header in Preview (boolean)"]
[]
[null,0,"Unnamed Ref in Imported Chart"]
[]
[null,0,"Is the PropDoc wkb currently running on a Mac?"]
[null,0,"Is it currently running in Excel 2007",null,{"$f":"Excel2007xl","v":0},"w/o reference, 'Excel2007xl' ref name dissapears during update if .xlsm -- don't know why"]
[]
[]
[]
[]
[null,"NON-PRINT SHEETS"]
[null,null,"Hide","Password-Protect","Delete from Prop Wkb","Delete from Doc Wkb"]
["StartSupportingSheets","Settings & Support",0,1,0,0]
[null,"SettingsPvt",1,1,0,0]
[null,"NotesPvt",1,0,0,0]
[null,"ToolsPvt",1,0,0,0]
[]
[]
[]
[null,"OnGrid Names",0,1,0,0]
[]
[]
["EndSupportingSheets"]

{"sheet":"NotesPvt","index":2,"n_rows":26,"n_cols":10,"rows_kept":26,"cut":false,"hidden":false,"merged":[]}
[]
[]
[]
[null,"2009-07-01"," Notes for Andy from MB"]
[]
[null,"When naming pages, avoid 'code' names      so instead of 'LetterPrelimProp1', maybe 'Preliminary Letter -- Proposal 1' (spaces are okay -- replaced with underscores in VBA)"]
[]
[null,"Try to have consistent Page Setup properties from one print sheet to the next"]
[]
[null,"(6:26)"]
[]
[null,"Andy Notes: To Do:",null,null,null,null,null,null,null,"Margins:"]
[null,"Check that PBI monitoring expense last as long as PBIs last, but not longer",null,null,null,null,null,null,null,"Top  1.6"]
[null,"Check that TimelineDataPvt Row 45 has correct OR (oregon) state tax credit included",null,null,null,null,null,null,null,"  Header  0.25"]
[null,"Check that TimelineDataPvt tax credits are applied in the correct year (starting at year 1?)"]
[null,"What is Row 47 for?",null,null,null,null,null,null,null,"  Bottom  0.5"]
[null,"Does TaxFedOnRebate include the tax on any taxable Grant?",null,null,null,null,null,null,null,"  Footer  0.25"]
[null,"Make sure TimelineDataPvt Rows 188-190 add up the right incentives (including year changes)"]
[]
[]
[null,"Open Questions to the right of proposals on Short, and to the right on CellRefNames"]
[null,"Put in latest changes in proposals from v3_8+ of the tool"]
[null,"Go over proposals w/ fine tooth comb to refine language & check accuracy"]
[]
[null,"Seems like an error on G52 & O52 of Timeline Data - \"3 Start\" is copied into that cell - ???"]
[null,"<< Is it \"TaxCreditState\" or is it: \"^^=-SUM(TimelineData!D85:AC85)\" - see CellRefNames"]

{"sheet":"ToolsPvt","index":3,"n_rows":89,"n_cols":7,"rows_kept":89,"cut":false,"hidden":false,"merged":[]}
[]
[]
[]
[null,null,"Fill Page List","Clear List",null,null,"Replace Old Names with New"]
[null,null,null,null,null,null,"(skipped if blank)"]
[]
[null,null,"Sheet Name","Page Name","Page Address",null,"New Page Name"]
[]
["StartPageList",null,"CA","CA 3rd Party Auth Pg01","BG418:BS494"]
[null,null,null,"CA 3rd Party Auth Pg02","BG497:BS570"]
[null,null,null,"CA CCSE CSI ResReq Pg01","S17:AD75"]
[null,null,null,"CA CCSE CSI ResReq Pg02","S77:AD123"]
[null,null,null,"CA CCSE CSI ResReq Pg03","S125:AD189"]
[null,null,null,"CA CCSE CSI ResReq Pg04","S191:AD233"]
[null,null,null,"CA CCSE CSI ResReq Sign Form","S312:AD387"]
[null,null,null,"CA PGE CSI ResReq Pg01","F17:Q75"]
[null,null,null,"CA PGE CSI ResReq Pg02","F77:Q123"]
[null,null,null,"CA PGE CSI ResReq Pg03","F125:Q189"]
[null,null,null,"CA PGE CSI ResReq Pg04","F191:Q233"]
[null,null,null,"CA PGE CSI ResReq Sign Form","F312:Q387"]
[null,null,null,"CA PGE Interconn Form 79 1101 Pg01","CM573:CZ652"]
[null,null,null,"CA PGE Interconn Form 79 1101 Pg02","CM655:CZ731"]
[null,null,null,"CA PGE Interconn Form 79 1101 Pg03","CM734:CZ799"]
[null,null,null,"CA SCE CSI ResReq Pg01","AF17:AQ75"]
[null,null,null,"CA SCE CSI ResReq Pg02","AF77:AQ123"]
[null,null,null,"CA SCE CSI ResReq Pg03","AF125:AQ189"]
[null,null,null,"CA SCE CSI ResReq Pg04","AF191:AQ233"]
[null,null,null,"CA SCE CSI ResReq Sign Form","AF312:AQ387"]
[null,null,null,"CA SCE InterConn Form 16 344 Pg01","EG1508:EP1572"]
[null,null,null,"CA SCE InterConn Form 16 344 Pg02","EG1575:EP1632"]
[null,null,null,"CA SCE InterConn NEM Pg01","EG1314:EP1379"]
[null,null,null,"CA SCE InterConn NEM Pg02","EG1382:EP1445"]
[null,null,null,"CA SCE InterConn NEM Pg03","EG1448:EP1504"]
[null,null,null,"CA SCE InterConn NEM Pg04","EG1636:EP1702"]
[null,null,null,"CA SDGE Interconn Form 142 02765 Pg02","DB807:DO881"]
[null,null,null,"CA SDGE Interconn Form 142 02765 Pg07","DB884:DO950"]
[null,null,null,"CA SDGE InterConn Form Pg01 old","DQ1007:ED1052"]
[null,null,null,"CA SDGE InterConn Form Pg02 old","DQ1054:ED1113"]
[null,null,null,"CA SDGE InterConn Form Pg03 old","DQ1115:ED1179"]
[null,null,null,"CA SDGE InterConn Form Pg04 old","DQ1181:ED1246"]
[null,null,null,"CA SDGE InterConn Form Pg05 old","DQ1249:ED1310"]
[null,null,null,"CA SDGE Interconn Rate Change Req Sign Form","DB953:DO1003"]
[null,null,null,"CCSE 3rd Party Auth Pg01","BV418:CJ494"]
[null,null,null,"CCSE 3rd Party Auth Pg02","BV497:CJ570"]
[]
[]
[null,null,"CO","CO Xcel InterConn NEM Pg01","D5:D54"]
[null,null,null,"CO Xcel InterConn NEM Pg02","D56:D105"]
[]
[]
[null,null,"Contracts","Contract1.1","C5:K76"]
[null,null,null,"Contract1.2","C79:K114"]
[null,null,null,"Contract2.01","T120:AF186"]
[null,null,null,"Contract2.02","T195:AF264"]
[null,null,null,"Contract2.03","AK274:AM310"]
[null,null,null,"Contract2.04","T325:AF370"]
[null,null,null,"Contract2.05","AK380:AM415"]
[null,null,null,"Contract2.06","T425:AF472"]
[null,null,null,"Contract2.07","AK483:AM544"]
[null,null,null,"Contract2.08","AK550:AM611"]
[null,null,null,"Contract2.09","T623:AF682"]
[null,null,null,"Contract2.10","T692:AF743"]
[null,null,null,"Contract2.11","T752:AF806"]
[null,null,null,"Contract2.12","T815:AF887"]
[null,null,null,"Contract2.13","AK895:AM940"]
[]
[]
[null,null,"Loan_Application_Forms","LoanAdmirals1.1","B3:V59"]
[null,null,null,"LoanAdmirals1.2","B67:V111"]
[]
[]
[null,null,"Letters","Let01 Initial Intro","B6:D34"]
[null,null,null,"Let02 PrelimProposal1","B43:D71"]
[null,null,null,"Let03 SiteVisit","B79:D109"]
[null,null,null,"Let04 ProposalEmailed","B118:D146"]
[null,null,null,"Let05 Followup1","B155:D181"]
[null,null,null,"Let06 Followup23","B189:D215"]
[null,null,null,"Let07 ThanksClosed","B224:D252"]
[null,null,null,"Let08 ConstComm","B260:D286"]
[null,null,null,"Let09 ConstPermToAskNeighbors","B295:D321"]
[null,null,null,"Let10 ApologyToNeighborsForNoise","B330:D354"]
[null,null,null,"Let11 CompletionCongrats","B362:D392"]
[null,null,null,"Let12 1MonthFollowup","B473:D501"]
[null,null,null,"Let13 ReferralRequest","B400:D428"]
[null,null,null,"Let14 QuoteRequest","B437:D465"]
[null,null,null,"Let15 3MonthFollowup","B509:D537"]
[null,null,null,"Let16 12MonthFollowup","B545:D573"]
[null,null,null,"Let17 AnnualFollowup","B581:D609"]
[null,null,null,"Let18 ToFutureOwner","B618:D649"]

{"sheet":"OnGrid Names","index":4,"n_rows":899,"n_cols":8,"rows_kept":899,"cut":false,"hidden":false,"merged":[]}
[null,"SectionLabels","DateAdded","PropDocRefName","CurrentValue","NameDescription","PopularPropDocName"]
[null,"Top","VendorInfo","CustomerInfo","MainRateInfo","Usage","Production","NetUsage"]
[null,null,"SystemVariables","Sizing","Pricing","Incentives","SalesContract","CustomInputs"]
[null,null,{"$f":"IF(PropWkb,\"Financial\",\"\")","v":""},{"$f":"IF(PropWkb,\"Environmental\",\"\")","v":""},{"$f":"IF(PropWkb,\"RateDetail\",\"\")","v":""},"Boolean","OnGridInfo"]
[]
[null,null,"Date Added","Name","Default Name Value","Name Description",{"$f":"IF(PropWkb,\"Popular Proposal Names\",\"Popular Document Names\")","v":"Popular Document Names"}]
[]
[]
["RefNamesStart"]
[null,"Vendor Info"]
["VendorInfoStart"]
[]
[null,null,null,"VendSalesperson","Ship Full User","Salesperson Name"]
[null,null,null,"VendSalesFullPh","(123) 123 1234, (123) 123 3456","Salesperson Phone Numbers"]
[null,null,null,"VendSalesPhWork","(123) 123 1234","Salesperson Work Phone"]
[null,null,null,"VendSalesPhCell","(123) 123 3456","Salesperson Cell Phone"]
[null,null,null,"VendSalesFax","(123) 123 4567","Salesperson Fax"]
[null,null,null,"VendSalesEmail","fulluser@acmesolar.com","Salesperson Email Address"]
[null,null,null,"VendSalesWeb","","Salesperson Website"]
[null,null,null,"VendName","Acme Solar","Vendor Name"]
[null,null,null,"VendAdd1","123 Ship Drive, Bldg 3","Vendor Address 1"]
[null,null,null,"VendAdd2","","Vendor Address 2"]
[null,null,null,"VendCity","Sunnyvale","Vendor City"]
[null,null,null,"VendState","CA","Vendor State"]
[null,null,null,"VendZip",94086,"Vendor Zip Code"]
[null,null,null,"VendAddrSingleLine","123 Ship Drive, Bldg 3, Sunnyvale, CA 94086","Vendor Address on 1 Line"]
[null,null,null,"VendPhMain","(123) 123 1234","Vendor Main Phone"]
[null,null,null,"VendPhAlt","","Vendor Alt. Phone"]
[null,null,null,"VendFax","(123) 123 4567","Vendor Fax"]
[null,null,null,"VendEmailMain","","Vendor Email Address"]
[null,null,null,"VendWeb","","Vendor Website"]
[null,null,null,"VendStLicNum","Cont. Lic. #","Vendor State License Number"]
[null,null,null,"VendStLicTypes","Cont Lic Type","Vendor State License Types"]
[null,null,null,"VendCECid","","Vendor CEC ID"]
[null,null,null,"VendCertifications","","Vendor Certifications"]
[null,null,null,"InstallerName","","Installer Name"]
[null,null,null,"InstallerCity","","Installer City"]
[null,null,null,"InstallerPhone","","Installer Phone"]
[null,null,null,"InstallerFax","","Installer Fax"]
[null,null,null,"InstallerAdd1","","Installer Address 1"]
[null,null,null,"InstallerAdd2","","Installer Address 2"]
[null,null,null,"InstallerState","","Installer State"]
[null,null,null,"InstallerZip","","Installer Zip Code"]
[null,null,null,"InstallerAddrSingleLine","","Installer Address on 1 Line"]
[null,null,null,"InstallerEmailMain","","Installer Email Address"]
[null,null,null,"InstallerStLicNum","","Installer State License Number"]
[null,null,null,"InstallerStLicTypes","","Company State License Types"]
[null,null,null,"InstallerContact","","Installer Contact Name"]
[null,null,null,"InstallerContactPh","","Installer Contact Phone Number"]
[]
[]
["VendorInfoEnd"]
[null,"Customer Info"]
["CustomerInfoStart"]
[]
[null,null,null,"DateOfAnalysis",38777,"Date of Analysis"]
[]
[null,null,"2010-01-11","CustFullName","Jackie Sun","Customer Full Name"]
[null,null,null,"CustsFullName","Jackie Sun and Jilla Sky","Customer & Spouse Full Name"]
[null,null,null,"CustFirstName","Jackie","Customer First Name"]
[null,null,null,"CustLastName","Sun","Customer Last Name"]
[null,null,null,"CustSpouseFirstName","Jilla","Customer Spouse First Name"]
[null,null,null,"CustSpouseLastName","Sky","Customer Spouse Last Name"]
[null,null,null,"CustAndSpouseLastName","Sun-Sky","Customer & Spouse Last Name"]
[null,null,null,"CustType","Commercial","Customer Type"]
[null,null,null,"CustBusType","Corporate","Customer Business Type"]
[null,null,null,"CustCompany","Ichiban Hibachi","Customer Company"]
[null,null,null,"CustTitle","owner","Customer Title"]
[null,null,null,"ConstructionType","Retrofit","Construction Type"]
[null,null,null,"ScenarioName",null,"Scenario Name"]
[]
[null,null,null,"CustSiteAddr1","133 Pelhamdale Ave","Customer Site Address 1"]
[null,null,null,"CustSiteAddr2","#1","Customer Site Address 2"]
[null,null,null,"CustSiteCity","Pelham","Customer Site City"]
[null,null,null,"CustSiteJurisdiction","City of Pelham","Customer Site Jurisdiction"]
[null,null,null,"CustSiteState","CA","Customer Site State Abbreviation"]
[null,null,null,"CustSiteStateLong","California","Customer Site State"]
[null,null,null,"CustSiteZip",10803,"Customer Site Zip Code"]
[null,null,null,"CustFullSiteAddr","133 Pelhamdale Ave, #1","Customer Site Full Address"]
[null,null,null,"CustFullSiteCityStZip","Pelham, CA  10803","Customer Site Full City, State, Zip"]
[null,null,null,"CustSiteAddrSingleLine","133 Pelhamdale Ave, #1, Pelham, CA  10803","Customer Site Address on 1 Line"]
[null,null,null,"CustMailAddr1","133 Pelhamdale Ave","Customer Mailing Address 1"]
[null,null,null,"CustMailAddr2","#1","Customer Mailing Address 2"]
[null,null,null,"CustMailCity","Pelham","Customer Mailing City"]
[null,null,null,"CustMailState","CA","Customer Mailing State"]
[null,null,null,"CustMailZip",10803,"Customer Mailing Zip Code"]
[null,null,null,"CustFullMailAddr","133 Pelhamdale Ave, #1","Customer Mailing Full Address"]
[null,null,null,"CustFullMailCityStZip","Pelham, CA  10803","Customer Mailing Full City, State, Zip"]
[null,null,null,"CustMailAddrSingleLine","133 Pelhamdale Ave, #1, Pelham, CA  10803","Customer Site Address on 1 Line"]
[null,null,null,"CustFullPh","(408) 111 1111H, (408) 222 2222C, (408) 333 3333x333W","Customer Phone Numbers"]
[null,null,null,"CustPhHome","(408) 111 1111H","Customer Home Phone"]
[null,null,null,"CustPhWork","(408) 333 3333x333W","Customer Work Phone"]
[null,null,null,"CustPhCell","(408) 222 2222C","Customer Cell Phone"]
[null,null,null,"CustPhFax","(408) 444 4444F","Customer Fax"]
[]
[null,null,null,"CustEmail","cust@buyer.com","Customer Email Address"]
[null,null,null,"CustEmailAlt","Cake@eater.com","Customer Alt. Email Address"]
[null,null,null,"CustWebsite","www.ibm.com","Customer Website"]
[null,null,null,"CustFullEmailWeb","cust@buyer.com, Cake@eater.com, www.ibm.com","Customer Email & Website"]
[]
[null,null,null,"LeadSource","Harry Fair","Lead Source"]
[]
[null,null,null,"CustAgntFirstName","Agent Bill","Agent First Name"]
[null,null,null,"CustAgntLastName","Agent Builder","Agent Last Name"]
[null,null,null,"CustAgntCompany","Bill's Builders","Agent Company"]
[null,null,null,"CustAgntProf","General Contractor","Agent Profession"]
[null,null,null,"CustAgntAddr1","1 Builder St","Agent Address 1"]
[null,null,null,"CustAgntAddr2","Building B","Agent Address 2"]
[null,null,null,"CustAgntCity","Industry","Agent City"]
[null,null,null,"CustAgntState","CA","Agent State"]
[null,null,null,"CustAgntZip","9xxxb","Agent Zip Code"]
[null,null,null,"CustAgntPhWork","408 428 2222W","Agent Work Phone"]
[null,null,null,"CustAgntPhCell","408 428 2222C","Agent Cell Phone"]
[null,null,null,"CustAgntEmail","bill@ongrid.net","Agent Email Address"]
[null,null,null,"CustAgnt2NamePh","Agent 2, 408-333-4444","Agent 2 Name & Phone"]
[null,null,null,"CustAgnt3NamePh","Agent 3, 408-222-1234","Agent 3 Name & Phone"]
[]
[null,null,null,"SysHostOwned_Text","Yes","Host Customer is System Owner"]
[null,null,null,"OwnerFirstName",null,"Owner First Name"]
[null,null,null,"OwnerLastName",null,"Owner Last Name"]
[null,null,null,"OwnerTitle",null,"Owner Title"]
[null,null,null,"OwnerCompany",null,"Owner Company"]
[null,null,null,"OwnerType",null,"Owner Type"]
[null,null,null,"OwnerBusType",null,"Owner Business Type"]
[null,null,null,"OwnerMailAddr1",null,"Owner Mailing Address 1"]
[null,null,null,"OwnerMailAddr2",null,"Owner Mailing Address 2"]
[null,null,null,"OwnerMailCity",null,"Owner Mailing City"]
[null,null,null,"OwnerMailState",null,"Owner Mailing State"]
[null,null,null,"OwnerMailZip",null,"Owner Mailing Zip Code"]
[null,null,null,"OwnerPhHome",null,"Owner Home Phone"]
[null,null,null,"OwnerPhCell",null,"Owner Cell Phone"]
[null,null,null,"OwnerPhWork",null,"Owner Work Phone"]
[null,null,null,"OwnerPhFax",null,"Owner Fax"]
[null,null,null,"OwnerEmail",null,"Owner Email Address"]
[null,null,null,"OwnerEmailAlt",null,"Owner Alt. Email Address"]
[null,null,null,"OwnerWebsite",null,"Owner Website"]
[]
[null,null,null,"TaxRateFed",0.35,"Customer Federal Tax Rate"]
[null,null,null,"TaxRateState",8.8400000000000006E-2,"Customer State Tax Rate"]
[null,null,null,"TaxRateCombined",0.43840000000000001,"Customer Combined Tax Rate"]
[null,null,null,"TaxRateCombinedNet",0.40745999999999999,"Customer Net Combined Tax Rate"]
[null,null,null,"TaxRateInflator",1,"Tax Rate Inflator"]
[null,null,null,"SalesTaxRate",7.0000000000000007E-2,"Sales Tax Rate"]
[]
[]
["CustomerInfoEnd"]
[null,"Main Rate Info"]
["MainRateInfoStart"]
[]
[null,null,null,"Utility","PG&E","Utility Abbreviation"]
[null,null,null,"UtilityLong","Pacific Gas & Electric","Full Utility Name"]
[null,null,null,"UtilityState","CA","Utility State"]
[null,null,null,"UtilityTariffStarting","PG&E A10 TOU Non-FTA (S)","Starting Rate Schedule--w/ Utility"]
[null,null,null,"TariffStarting","A10 TOU Non-FTA (S)","Starting Rate Schedule--w/o State & Utility"]
[null,null,null,"UtilityTariffEnding","PG&E A6","Ending Rate Schedule--w/ Utility"]
[null,null,null,"TariffEnding","A6","Ending Rate Schedule--w/o State & Utility--Accounts for Feed-In Tariff"]
[null,null,null,"RateCustType","Commercial","Starting Rate Utility-Intended Customer Type"]
[null,null,null,"RateEndCustType","Commercial","Ending Rate Utility-Intended Customer Type"]
[null,null,null,"RateDescription","Commercial TOU Demand","Starting Rate--Description (OnGrid or utility desc)"]
[null,null,null,"RateEndDescription","Commercial TOU","Ending Rate--Description (OnGrid or utility desc)"]
[null,null,null,"TariffTerritory","P","Tariff Baseline Territory"]
[null,null,null,"TariffCode","H","Gas & Electric or All Electric"]
[null,null,null,"RateModPercent1",1E-3,"User Rate Adjustment 1 (Pct)"]
[null,null,null,"RateModPercent2",5.0000000000000001E-4,"User Rate Adjustment 2 (Pct)"]
[null,null,null,"RateModTax",0.03,"Local Electricity Tax"]
[null,null,null,"RateModCents",0.1,"User Rate Adjustment 3 (Cents)"]
[]
[null,null,null,"CustUtilityName","Jackie Sun","Customer Name for Utility Forms"]
[null,null,null,"CustUtilAccntNo","Accnt23234123","Utility Account Number"]
[null,null,null,"CustUtilSvcID","SID-234q","Utility Service ID Number"]
[null,null,null,"CustUtilMeterNo","M-q234","Utility Electric Meter Number"]
[]
[null,null,null,"BillNoSolar",449.61470904201752,"Bill before Solar, Lifestyle Changes, and Efficiency"]
[null,null,null,"AdjLifestylePct",-0.15,"Lifestyle Style Changes--Percent Change in Usage"]
[null,null,null,"BillwLifenoSolar",415.58473141919882,"Bill after Lifestyle Changes but Before Efficiency & Solar"]
[null,null,null,"AdjEnergyEffPct",0.05,"Energy Efficiency--Percent Change in Usage"]
[null,null,null,"BillwEffnoSolar",405.94290442606695,"Bill after Lifestyle Changes & Efficiency but Before Solar"]
[null,null,null,"BillWithSolarNoMin",62.909649468839845,"Bill with Solar if no Minimum Charge"]
[null,null,null,"BillWithSolar",62.909649468839838,"Bill with Solar"]
[null,null,null,"BillPctOffset",0.84862377100812425,"Percent of Bill Offset with Solar"]
[null,null,null,"MaxBillPctOffset",0.9685009102004668,"Maximum Possible Bill Offset with Solar"]
[null,null,null,"FeedIn1stYr",0,"Feed-In Tariff Income in Year 1"]
[null,null,null,"FeedIn1stContract",0,"Feed-In Tariff Income in Contract 1"]
[null,null,null,"FeedIn25Yrs",0,"Feed-In Tariff Income over 25 Years"]
[]
[null,null,null,"RateStartAvg",29.408915093795578,"Starting Rate Average ¢/kWh"]
[null,null,null,"RateStartMax",29.408915093795578,"Starting Rate Maximum ¢/kWh"]
[null,null,null,"RateTierMax","Tier 0","Starting Rate Maximum Tier"]
[null,null,null,"RateEndMax",0,"CalcsPvt"]
[null,null,null,"RateTierMaxNew","Tier 0","Ending Rate Maximum Tier"]
[]
[null,null,null,"TOUSumSeasonTxt","May 1 to October 31","TOU Summer Season Text"]
[null,null,null,"ProdUseSumMonths",6,"Utility Summer Season Months"]
[null,null,null,"ProdUseWinMonths",6,"Utility Winter Season Months"]
[null,null,null,"SumWinJan","W","January--Summer or Winter?"]
[null,null,null,"SumWinFeb","W","February--Summer or Winter?"]
[null,null,null,"SumWinMar","W","March--Summer or Winter?"]
[null,null,null,"SumWinApr","W","April--Summer or Winter?"]
[null,null,null,"SumWinMay","S","May--Summer or Winter?"]
[null,null,null,"SumWinJun","S","June--Summer or Winter?"]
[null,null,null,"SumWinJul","S","July--Summer or Winter?"]
[null,null,null,"SumWinAug","S","August--Summer or Winter?"]
[null,null,null,"SumWinSep","S","September--Summer or Winter?"]
[null,null,null,"SumWinOct","S","October--Summer or Winter?"]
[null,null,null,"SumWinNov","W","November--Summer or Winter?"]
[null,null,null,"SumWinDec","W","December--Summer or Winter?"]
[]
[null,null,null,"BaseSum",20.100000000000001,"Baseline Quantity per Summer Day"]
[null,null,null,"BaseSumMon",611.375,"Baseline Quantity per Summer Month"]
[null,null,null,"BaseSumTot",3666.24,"Baseline Total for Summer"]
[null,null,null,"BaseWin",35.5,"Baseline Quantity per Winter Day"]
[null,null,null,"BaseWinMon",1079.7916666666667,"Baselline Quantity per Winter Month"]
[null,null,null,"BaseWinTot",6475.2,"Baseline Total for Winter"]
[]
[null,null,null,"InflElect",0.01,"Inflation Rate over the 25 Year Analsyis"]
[null,null,null,"InflElectYr1",0.02,"Inflation in Year 1"]
[null,null,null,"InflElectYr2",0.03,"Inflation in Year 2"]
[null,null,null,"InflElectYr3",0.04,"Inflation in Year 3"]
[]
[]
["MainRateInfoEnd"]
[null,"Usage"]
["UsageStart"]
[]
[null,null,null,"UseJan",1500,"Usage January"]
[null,null,null,"UseFeb",1500,"Usage February"]
[null,null,null,"UseMar",1500,"Usage March"]
[null,null,null,"UseApr",1500,"Usage April"]
[null,null,null,"UseMay",2000,"Usage May"]
[null,null,null,"UseJun",2000,"Usage June"]
[null,null,null,"UseJul",2000,"Usage July"]
[null,null,null,"UseAug",2000,"Usage August"]
[null,null,null,"UseSep",2000,"Usage September"]
[null,null,null,"UseOct",2000,"Usage October"]
[null,null,null,"UseNov",1500,"Usage November"]
[null,null,null,"UseDec",1500,"Usage December"]
[]
[null,null,null,"UseHistAnnualTotal",21000,"Annual Usage before Lifestyle Change & Efficiency"]
[null,null,null,"UseAdjAnnualTotal",17850,"Annual Usage after Lifestyle Changes"]
[null,null,null,"UseAnnualTotal",16957.5,"Annual Usage after Lifestyle & Efficiency"]
[]
[null,null,null,"UseSumTot",12000,"Total Summer Usage before Lifestyle Changes & Efficiency"]
[null,null,null,"UseWinTot",9000,"Total Winter Usage before Lifestyle Changes & Efficiency"]
[null,null,null,"UseAdjSumTot",10200,"Total Summer Usage after Lifestyle Changes"]
[null,null,null,"UseAdjWinTot",7650,"Total Winter Usage after Lifestyle Changes"]
[null,null,null,"UseEEAdjSumTot",9690,"Total Summer Usage after Lifestyle & Efficiency"]
[null,null,null,"UseEEAdjWinTot",7267.5,"Total Winter Usage after Lifestyle & Efficiency"]
[]
[null,null,null,"UseAvg",1413.125,"Avg Monthly Usage"]
[null,null,null,"UseSumAvg",2000,"Avg Summer Month Usage before Lifestyle Changes & Efficiency"]
[null,null,null,"UseWinAvg",1500,"Avg Winter Month Usage before Lifestyle Changes & Efficiency"]
[null,null,null,"UseAdjSumAvg",1700,"Avg Summer Monthly Usage after Lifestyle Changes"]
[null,null,null,"UseAdjWinAvg",1275,"Avg Winter Monthly Usage after Lifestyle Changes"]
[null,null,null,"UseEEAdjSumAvg",1615,"Avg Summer Month Usage after Lifestyle & Efficiency"]
[null,null,null,"UseEEAdjWinAvg",1211.25,"Avg Winter Month Usage after Lifestyle & Efficiency"]
[]
[null,null,null,"TOUBasis","Overall Bill","TOU Basis"]
[null,null,null,"UseSumPkPct",0.2,"Summer Peak Usage Pct"]
[null,null,null,"UseSumPartPkPct",0.2,"Summer Part-Peak Usage Pct"]
[null,null,null,"UseSumOffPkPct",0.6,"Summer Off-Peak Usage Pct"]
[null,null,null,"UseWinPkPct",0,"Winter Peak Usage Pct"]
[null,null,null,"UseWinPartPkPct",0.2,"Winter Part-Peak Usage Pct"]
[null,null,null,"UseWinOffPkPct",0.8,"Winter Off-Peak Usage Pct"]
[null,null,null,"UseWeekendPct",0.1,"Weekend vs Weekday Usage Pct"]
[null,null,null,"UseEndSumPkPct",0.3,"Summer Peak Usage Pct--Ending Rate"]
[null,null,null,"UseEndSumPartPkPct",0.3,"Summer Part-Peak Usage Pct--Ending Rate"]
[null,null,null,"UseEndSumOffPkPct",0.4,"Summer Off-Peak Usage Pct--Ending Rate"]
[null,null,null,"UseEndWinPkPct",0,"Winter Peak Usage Pct--Ending Rate"]
[null,null,null,"UseEndWinPartPkPct",0.3,"Winter Part-Peak Usage Pct--Ending Rate"]
[null,null,null,"UseEndWinOffPkPct",0.7,"Winter Off-Peak Usage Pct--Ending Rate"]
[null,null,null,"UseEndWeekendPct",0.1,"Weekend vs Weekday Usage Pct--Ending Rate"]
[]
[null,null,null,"UseSumPk",2400,"Summer Peak Usage"]
[null,null,null,"UseSumPartPk",2400,"Summer Part-Peak Usage"]
[null,null,null,"UseSumOffPk",7200,"Summer Off-Peak Usage"]
[null,null,null,"UseWinPk",0,"Winter Peak Usage"]
[null,null,null,"UseWinPartPk",1800,"Winter Part-Peak Usage"]
[null,null,null,"UseWinOffPk",7200,"Winter Off-Peak Usage"]
[null,null,null,"UseEndSumPk",3600,"Summer Peak Usage--Ending Rate"]
[null,null,null,"UseEndSumPartPk",3600,"Summer Part-Peak Usage--Ending Rate"]
[null,null,null,"UseEndSumOffPk",4800,"Summer Off-Peak Usage--Ending Rate"]
[null,null,null,"UseEndWinPk",0,"Winter Peak Usage--Ending Rate"]
[null,null,null,"UseEndWinPartPk",2700,"Winter Part-Peak Usage--Ending Rate"]
[null,null,null,"UseEndWinOffPk",6300,"Winter Off-Peak Usage--Ending Rate"]
[]
[null,null,null,"UseAdjSumPk",2040,"Summer Peak Usage after Lifestyle Changes"]
[null,null,null,"UseAdjSumPartPk",2040,"Summer Part-Peak Usage after Lifestyle Changes"]
[null,null,null,"UseAdjSumOffPk",6120,"Summer Off-Peak Usage after Lifestyle Changes"]
[null,null,null,"UseAdjWinPk",0,"Winter Peak Usage after Lifestyle Changes"]
[null,null,null,"UseAdjWinPartPk",1530,"Winter Part-Peak Usage after Lifestyle Changes"]
[null,null,null,"UseAdjWinOffPk",6120,"Winter Off-Peak Usage after Lifestyle Changes"]
[null,null,null,"UseEndAdjSumPk",3060,"Summer Peak Usage after Lifestyle Changes--Ending Rate"]
[null,null,null,"UseEndAdjSumPartPk",3060,"Summer Part-Peak Usage after Lifestyle Changes--Ending Rate"]
[null,null,null,"UseEndAdjSumOffPk",4080,"Summer Off-Peak Usage after Lifestyle Changes--Ending Rate"]
[null,null,null,"UseEndAdjWinPk",0,"Winter Peak Usage after Lifestyle Changes--Ending Rate"]
[null,null,null,"UseEndAdjWinPartPk",2295,"Winter Part-Peak Usage after Lifestyle Changes--Ending Rate"]
[null,null,null,"UseEndAdjWinOffPk",5355,"Winter Off-Peak Usage after Lifestyle Changes--Ending Rate"]
[]
[null,null,null,"UseEEAdjSumPk",1938,"Summer Peak Usage after Lifestyle & Efficiency"]
[null,null,null,"UseEEAdjSumPartPk",1938,"Summer Part-Peak Usage after Lifestyle & Efficiency"]
[null,null,null,"UseEEAdjSumOffPk",5814,"Summer Off-Peak Usage after Lifestyle & Efficiency"]
[null,null,null,"UseEEAdjWinPk",0,"Winter Peak Usage after Lifestyle & Efficiency"]
[null,null,null,"UseEEAdjWinPartPk",1453.5,"Winter Part-Peak Usage after Lifestyle & Efficiency"]
[null,null,null,"UseEEAdjWinOffPk",5814,"Winter Off-Peak Usage after Lifestyle & Efficiency"]
[null,null,null,"UseEndEEAdjSumPk",2907,"Summer Peak Usage after Lifestyle & Efficiency--Ending Rate"]
[null,null,null,"UseEndEEAdjSumPartPk",2907,"Summer Part-Peak Usage after Lifestyle & Efficiency--Ending Rate"]
[null,null,null,"UseEndEEAdjSumOffPk",3876,"Summer Off-Peak Usage after Lifestyle & Efficiency--Ending Rate"]
[null,null,null,"UseEndEEAdjWinPk",0,"Winter Peak Usage after Lifestyle & Efficiency--Ending Rate"]
[null,null,null,"UseEndEEAdjWinPartPk",2180.25,"Winter Part-Peak Usage after Lifestyle & Efficiency--Ending Rate"]
[null,null,null,"UseEndEEAdjWinOffPk",5087.25,"Winter Off-Peak Usage after Lifestyle & Efficiency--Ending Rate"]
[]
[null,null,null,"UseDemSum",0,"Summer Basic Demand Quantity"]
[null,null,null,"UseDemT1Sum",0,"Summer Tier 1 Demand Quantity"]
[null,null,null,"UseDemT2Sum",0,"Summer Tier 2 Demand Quantity"]
[null,null,null,"UseDemT3Sum",0,"Summer Tier 3 Demand Quantity"]
[null,null,null,"UseDemT4Sum",0,"Summer Tier 4 Demand Quantity"]
[null,null,null,"UseDemSumPk",10,"Summer Peak Demand Quantity"]
[null,null,null,"UseDemSumPartPk",0,"Summer Part-Peak Demand Quantity"]
[null,null,null,"UseDemSumOffPk",0,"Summer Off-Peak Demand Quantity"]
[null,null,null,"UseDemWin",0,"Winter Basic Demand Quantity"]
[null,null,null,"UseDemT1Win",0,"Winter Tier 1 Demand Quantity"]
[null,null,null,"UseDemT2Win",0,"Winter Tier 2 Demand Quantity"]
[null,null,null,"UseDemT3Win",0,"Winter Tier 3 Demand Quantity"]
[null,null,null,"UseDemT4Win",0,"Winter Tier 4 Demand Quantity"]
[null,null,null,"UseDemWinPk",15,"Winter Peak Demand Quantity"]
[null,null,null,"UseDemWinPartPk",0,"Winter Part-Peak Demand Quantity"]
[null,null,null,"UseDemWinOffPk",0,"Winter Off-Peak Demand Quantity"]
[null,null,null,"UseEndDemT1Sum",0,"Summer Tier 1 Demand Quantity--Ending Rate"]
[null,null,null,"UseEndDemT2Sum",0,"Summer Tier 2 Demand Quantity--Ending Rate"]
[null,null,null,"UseEndDemT3Sum",0,"Summer Tier 3 Demand Quantity--Ending Rate"]
[null,null,null,"UseEndDemT4Sum",0,"Summer Tier 4 Demand Quantity--Ending Rate"]
[null,null,null,"UseEndDemT1Win",0,"Winter Tier 1 Demand Quantity--Ending Rate"]
[null,null,null,"UseEndDemT2Win",0,"Winter Tier 2 Demand Quantity--Ending Rate"]
[null,null,null,"UseEndDemT3Win",0,"Winter Tier 3 Demand Quantity--Ending Rate"]
[null,null,null,"UseEndDemT4Win",0,"Winter Tier 4 Demand Quantity--Ending Rate"]
[]
[]
["UsageEnd"]
[null,"Production"]
["ProductionStart"]
[]
[null,null,null,"ProdTot",10852.025458924843,"Annual Production Total"]
[]
[null,null,null,"ProdSumTot",6815.2598908052078,"Summer Production Total"]
[null,null,null,"ProdWinTot",4036.7655681196361,"Winter Production Total"]
[null,null,null,"ProdSumArray1",4726.1061887279593,"Summer Production--Array 1"]
[null,null,null,"ProdWinArray1",2799.3331200286925,"Winter Production--Array 1"]
[null,null,null,"ProdSumArray2",2089.1537020772485,"Summer Production--Array 2"]
[null,null,null,"ProdWinArray2",1237.432448090944,"Winter Production--Array 2"]
[]
[null,null,null,"ProdCapacity",181.02495614175004,"Production Capacity per Sun-Hour per Month"]
[null,null,null,"ProdCapacityArray1",125.53346156175002,"Production Capacity--Array 1"]
[null,null,null,"ProdCapacityArray2",55.491494580000015,"Production Capacity--Array 2"]
[]
[null,null,null,"ProdSumPkPct",0.54904358238076911,"Summer Peak Production Pct"]
[null,null,null,"ProdSumPartPkPct",0.16170296440671897,"Summer Part-Peak Production Pct"]
[null,null,null,"ProdSumOffPkPct",0.28925345321251189,"Summer Off-Peak Production Pct"]
[null,null,null,"ProdWinPkPct",0,"Winter Peak Production Pct"]
[null,null,null,"ProdWinPartPkPct",0.71199029536916913,"Winter Part-Peak Production Pct"]
[null,null,null,"ProdWinOffPkPct",0.28800970463083087,"Winter Off-Peak Production Pct"]
[null,null,null,"ProdEndSumPkPct",0.54904358238076911,"Summer Peak Production Pct--Ending Rate"]
[null,null,null,"ProdEndSumPartPkPct",0.16170296440671894,"Summer Part-Peak Production Pct--Ending Rate"]
[null,null,null,"ProdEndSumOffPkPct",0.28925345321251195,"Summer Off-Peak Production Pct--Ending Rate"]
[null,null,null,"ProdEndWinPkPct",0,"Winter Peak Production Pct--Ending Rate"]
[null,null,null,"ProdEndWinPartPkPct",0.71199029536916936,"Winter Part-Peak Production Pct--Ending Rate"]
[null,null,null,"ProdEndWinOffPkPct",0.28800970463083075,"Winter Off-Peak Production Pct--Ending Rate"]
[]
[null,null,null,"ProdSumPk",3741.8747053036604,"Summer Peak Production"]
[null,null,null,"ProdSumPartPk",1102.0477275454139,"Summer Part-Peak Production"]
[null,null,null,"ProdSumOffPk",1971.3374579561332,"Summer Off-Peak Production"]
[null,null,null,"ProdWinPk",0,"Winter Peak Production"]
[null,null,null,"ProdWinPartPk",2874.1379091815916,"Winter Part-Peak Production"]
[null,null,null,"ProdWinOffPk",1162.6276589380445,"Winter Off-Peak Production"]
[null,null,null,"ProdEndSumPk",3741.8747053036604,"Summer Peak Production--Ending Rate"]
[null,null,null,"ProdEndSumPartPk",1102.0477275454136,"Summer Part-Peak Production--Ending Rate"]
[null,null,null,"ProdEndSumOffPk",1971.3374579561334,"Summer Off-Peak Production--Ending Rate"]
[null,null,null,"ProdEndWinPk",0,"Winter Peak Production--Ending Rate"]
[null,null,null,"ProdEndWinPartPk",2874.1379091815925,"Winter Part-Peak Production--Ending Rate"]
[null,null,null,"ProdEndWinOffPk",1162.6276589380441,"Winter Off-Peak Production--Ending Rate"]
[]
[null,null,null,"SunHours","5.9 Sun Hours per Day","Sun Hours per Day Average Text"]
[null,null,null,"SunHoursSiteAdjFactor",1.05,"Micro-Climate Adjustment Factor"]
[]
[null,null,null,"SunHrsJan",4.3,"Sun Hours January--Array 1 Tilt w/ South Facing"]
[null,null,null,"SunHrsFeb",4.95,"Sun Hours February--Array 1 Tilt w/ South Facing"]
[null,null,null,"SunHrsMar",5.8,"Sun Hours March--Array 1 Tilt w/ South Facing"]
[null,null,null,"SunHrsApr",6.55,"Sun Hours April--Array 1 Tilt w/ South Facing"]
[null,null,null,"SunHrsMay",6.8,"Sun Hours May--Array 1 Tilt w/ South Facing"]
[null,null,null,"SunHrsJun",6.9,"Sun Hours June--Array 1 Tilt w/ South Facing"]
[null,null,null,"SunHrsJul",7.15,"Sun Hours July--Array 1 Tilt w/ South Facing"]
[null,null,null,"SunHrsAug",7,"Sun Hours August--Array 1 Tilt w/ South Facing"]
[null,null,null,"SunHrsSep",6.35,"Sun Hours September--Array 1 Tilt w/ South Facing"]
[null,null,null,"SunHrsOct",5.6,"Sun Hours October--Array 1 Tilt w/ South Facing"]
[null,null,null,"SunHrsNov",4.7,"Sun Hours November--Array 1 Tilt w/ South Facing"]
[null,null,null,"SunHrsDec",4.2,"Sun Hours December--Array 1 Tilt w/ South Facing"]
[null,null,null,"SunHrsAnnualAvg",5.8583333333333334,"Sun Hours per Day Average--Array 1 Tilt w/ South Facing"]
[]
[null,null,null,"SunHrsJan2",4.3,"Sun Hours January--Array 2 Tilt w/ South Facing"]
[null,null,null,"SunHrsFeb2",4.95,"Sun Hours February--Array 2 Tilt w/ South Facing"]
[null,null,null,"SunHrsMar2",5.8,"Sun Hours March--Array 2 Tilt w/ South Facing"]
[null,null,null,"SunHrsApr2",6.55,"Sun Hours April--Array 2 Tilt w/ South Facing"]
[null,null,null,"SunHrsMay2",6.8,"Sun Hours May--Array 2 Tilt w/ South Facing"]
[null,null,null,"SunHrsJun2",6.9,"Sun Hours June--Array 2 Tilt w/ South Facing"]
[null,null,null,"SunHrsJul2",7.15,"Sun Hours July--Array 2 Tilt w/ South Facing"]
[null,null,null,"SunHrsAug2",7,"Sun Hours August--Array 2 Tilt w/ South Facing"]
[null,null,null,"SunHrsSep2",6.35,"Sun Hours September--Array 2 Tilt w/ South Facing"]
[null,null,null,"SunHrsOct2",5.6,"Sun Hours October--Array 2 Tilt w/ South Facing"]
[null,null,null,"SunHrsNov2",4.7,"Sun Hours November--Array 2 Tilt w/ South Facing"]
[null,null,null,"SunHrsDec2",4.2,"Sun Hours December--Array 2 Tilt w/ South Facing"]
[null,null,null,"SunHrsAnnualAvg2",5.8583333333333334,"Sun Hours per Day Average--Array 2 Tilt w/ South Facing"]
[]
[null,null,null,"ProdHrsSP",3.4450818136309129,"Sun Hours Summer Peak--Array 1"]
[null,null,null,"ProdHrsSpP",1.0146370156485172,"Sun Hours Summer Part-Peak--Array 1"]
[null,null,null,"ProdHrsSoP",1.8149776141109284,"Sun Hours Summer Off-Peak--Array 1"]
[null,null,null,"ProdHrsWP",0,"Sun Hours Winter Peak--Array 1"]
[null,null,null,"ProdHrsWpP",2.6461709759426975,"Sun Hours Winter Part-Peak--Array 1"]
[null,null,null,"ProdHrsWoP",1.0704119510347685,"Sun Hours Winter Off-Peak--Array 1"]
[null,null,null,"ProdHrsSP2",3.4450818136309129,"Sun Hours Summer Peak--Array 2"]
[null,null,null,"ProdHrsSpP2",1.0146370156485172,"Sun Hours Summer Part-Peak--Array 2"]
[null,null,null,"ProdHrsSoP2",1.8149776141109284,"Sun Hours Summer Off-Peak--Array 2"]
[null,null,null,"ProdHrsWP2",0,"Sun Hours Winter Peak--Array 2"]
[null,null,null,"ProdHrsWpP2",2.6461709759426975,"Sun Hours Winter Part-Peak--Array 2"]
[null,null,null,"ProdHrsWoP2",1.0704119510347685,"Sun Hours Winter Off-Peak--Array 2"]
[]
[]
["ProductionEnd"]
[null,"Usage/Prod Net"]
["NetUsageStart"]
[]
[null,null,null,"UseNetSumTot",2874.7401091947922,"Total Summer Net Usage with Production"]
[null,null,null,"UseNetWinTot",3230.7344318803639,"Total Winter Net Usage with Production"]
[]
[null,null,null,"UseNetAvg",508.78954508959634,"Avg Monthly Usage with Production"]
[]
[null,null,null,"UseNetSumPk",-1803.8747053036604,"Summer Peak Net Usage with Production"]
[null,null,null,"UseNetSumPartPk",835.95227245458614,"Summer Part-Peak Net Usage with Production"]
[null,null,null,"UseNetSumOffPk",3842.6625420438677,"Summer Off-Peak Net Usage with Production"]
[null,null,null,"UseNetWinPk",0,"Winter Peak Net Usage with Production"]
[null,null,null,"UseNetWinPartPk",-1420.6379091815916,"Winter Part-Peak Net Usage with Production"]
[null,null,null,"UseNetWinOffPk",4651.372341061955,"Winter Off-Peak Net Usage with Production"]
[null,null,null,"UseEndNetSumPk",-834.87470530366045,"Summer Peak Net Usage with Production--Ending Rate"]
[null,null,null,"UseEndNetSumPartPk",1804.9522724545864,"Summer Part-Peak Net Usage with Production--Ending Rate"]
[null,null,null,"UseEndNetSumOffPk",1904.6625420438661,"Summer Off-Peak Net Usage with Production--Ending Rate"]
[null,null,null,"UseEndNetWinPk",0,"Winter Peak Net Usage with Production--Ending Rate"]
[null,null,null,"UseEndNetWinPartPk",-693.88790918159248,"Winter Part-Peak Net Usage with Production--Ending Rate"]
[null,null,null,"UseEndNetWinOffPk",3924.6223410619559,"Winter Off-Peak Net Usage with Production--Ending Rate"]
[]
[null,null,"2010-01-11","UsePctOffset",0.63995432457171419,"Annual kWh Offset %"]
[]
["NetUsageEnd"]
[null,"System Variables"]
["SystemVariablesStart"]
[]
[null,null,null,"SiteRedbookCity","Santa Maria, CA","Redbook City"]
[null,null,null,"SiteRedBookCityUserDefined","","Redbook City--User Defined"]
[null,null,null,"SysArrayCnt",2,"Number of Arrays in System"]
[null,null,null,"SysArrayAzimuth","W","Orientation--Array 1"]
[null,null,null,"SysArrayAzimuth2","W","Orientation--Array 2"]
[null,null,null,"SysArraySlope",30,"Slope--Array 1"]
[null,null,null,"SysArraySlope2",30,"Slope--Array 2"]
[null,null,null,"EffShading",0.78576830150714272,"Shading & Orientation Factor"]
[null,null,null,"EffShadingSum",0.89334316575583805,"Shading & Orientation Factor--Summer"]
[null,null,null,"SysRoofType","Foam","Roof Type--Array 1"]
[null,null,null,"SysRoofType2","Foam","Roof Type--Array 2"]
[null,null,null,"SysRoofTypeText","Foam roof","Roof Type Text--Array 1"]
[null,null,null,"SysRoofTypeText2","Foam roof","Roof Type Text--Array 2"]
[null,null,null,"SysRackType","Tilt-up","Racking Type--Array 1"]
[null,null,null,"SysRackType2","Tilt-up","Racking Type--Array 2"]
[null,null,null,"SysArraySections",3,"Array Sections--Array 1"]
[null,null,null,"SysArraySections2",1,"Array Sections--Array 2"]
[null,null,null,"SysArrayWireLength","150-175'","Wire Length--Array 1"]
[null,null,null,"SysArrayWireLength2","150-175'","Wire Length--Array 2"]
[null,null,null,"SysTrenchDist",150,"Trenching Feet--Array 1"]
[null,null,null,"SysTrenchDist2",0,"Trenching Feet--Array 2"]
[null,null,null,"SysRoofAge",3,"Roof Age--Array 1"]
[null,null,null,"SysRoofAge2",3,"Roof Age--Array 2"]
[null,null,null,"SysAvailableArea",5000,"Available Area--Array 1"]
[null,null,null,"SysAvailableArea2",5000,"Available Area--Array 2"]
[null,null,null,"SysArea",0,"Array Area--Array 1"]
[null,null,null,"SysArea2",0,"Array Area--Array 2"]
[null,null,null,"EffTotalSystem",0.5816952083720931,"Total System Efficiency"]
[null,null,null,"EffDnD",0.9,"Dust & Dirt Loss"]
[null,null,null,"EffWire",0.9,"Wire Resistance Loss"]
[null,null,null,"EffModMismatch",0.9,"Module Mismatch Loss"]
[null,null,null,"EffMfgFudge",0.9,"Manufacturer Fudge Loss"]
[null,null,null,"SysModDegradationRate",7.4999999999999997E-3,"Module Degradation Rate"]
[null,null,null,"SysInvReplYr",14,"Inverter Replacement Year"]
[null,null,null,"SysInvReplCostPerkW",600,"Inverter Replacement Cost per kW"]
[null,null,null,"MaintFactor",2.5000000000000001E-3,"Maintenance Factor"]
[null,null,null,"InflMaint",0.03,"Maintenance Factor Inflation"]
[null,null,null,"MonitoringYears",3,"Monitoring Years"]
[null,null,null,"MonitoringCostPerYear",250,"Monitoring Cost per Year"]
[]
[]
["SystemVariablesEnd"]
[null,"System Sizing"]
["SizingStart"]
[]
[null,null,null,"SysSize",9.0710340000000009,"System Size"]
[null,null,null,"SysSizeText","9.1 CEC AC","System Size w DC/AC indication"]
[null,null,null,"SysRatingType","CEC","System Rating Type"]
[null,null,null,"SysRatingTypeFull","CEC AC","System Rating Type w DC/AC indication"]
[null,null,null,"SysSizeSTC",10.395,"STC DC System Size"]
[null,null,null,"SysSizePTC",9.4832999999999998,"PTC DC System Size"]
[null,null,null,"SysSizeCEC",9.0710340000000009,"CEC AC System Size"]
[null,null,null,"SysSizeSTC_Text","10.4 STC DC","STC DC System Size w DC/AC indication"]
[null,null,null,"SysSizePTC_Text","9.5 PTC DC","PTC DC System Size w DC/AC indication"]
[null,null,null,"SysSizeCEC_Text","9.1 CEC AC","CEC AC System Size w DC/AC indication"]
[]
[null,null,null,"SysSizeSTCArray1",7.0949999999999998,"STC System Size--Array 1"]
[null,null,null,"SysSizeSTCArray2",3.3,"STC System Size--Array 2"]
[null,null,null,"SysSizePTCArray1",6.5868000000000002,"PTC System Size--Array 1"]
[null,null,null,"SysSizePTCArray2",2.8965000000000001,"PTC System Size--Array 2"]
[null,null,null,"SysSizeCECArray1",6.290394,"CEC System Size--Array 1"]
[null,null,null,"SysSizeCECArray2",2.78064,"CEC System Size--Array 2"]
[null,null,null,"SysSizeArray1",6.290394,"Array 1  Size w/ Selected Rating Type"]
[null,null,null,"SysSizeArray2",2.78064,"Array 2 Size w/ Selected Rating Type"]
[]
[null,null,null,"SysModule","Sanyo Electric HIT-N215A01","Full Module Name--Array 1"]
[null,null,null,"SysModuleShort","Sanyo HIT-N215A01","Shortened Module Name--Array 1"]
[null,null,null,"SysModMaker","Sanyo Electric","Module Manufacturer--Array 1"]
[null,null,null,"SysModModel","HIT-N215A01","Module Model--Array 1"]
[null,null,null,"SysModSTC",215,"STC DC Module Rating--Array 1"]
[null,null,null,"SysModPTC",199.6,"PTC DC Module Rating--Array 1"]
[null,null,null,"SysModCnt",33,"Number of Modules--Array 1"]
[null,null,null,"SysModDim","0.1 x 0.1 ''","Module Dimensions--Array 1"]
[]
[null,null,null,"SysModule2","BP Solar BP3220N","Full Module Name--Array 2"]
[null,null,null,"SysModuleShort2","BP BP3220N","Shortened Module Name--Array 2"]
[null,null,null,"SysModMaker2","BP Solar","Module Manufacturer--Array 2"]
[null,null,null,"SysModModel2","BP3220N","Module Model--Array 2"]
[null,null,null,"SysModSTC2",220,"STC DC Module Rating--Array 2"]
[null,null,null,"SysModPTC2",193.1,"PTC DC Module Rating--Array 2"]
[null,null,null,"SysModCnt2",15,"Number of Modules--Array 2"]
[null,null,null,"SysModDim2","0.1 x 0.1 ''","Module Dimensions--Array 2"]
[]
[null,null,null,"SysModHt",0.1,"Module Height in inches--Array 1"]
[null,null,null,"SysModWth",0.1,"Module Width in inches--Array 1"]
[null,null,null,"SysModWgt",0,"Module Weight in inches--Array 1"]
[null,null,null,"SysModHt2",0.1,"Module Height in inches--Array 2"]
[null,null,null,"SysModWth2",0.1,"Module Width in inches--Array 2"]
[null,null,null,"SysModWgt2",0,"Module Weight in inches--Array 2"]
[]
[null,null,null,"SysInverter","SMA America SB3000US (240V)","Full Inverter Name--Array 1"]
[null,null,null,"SysInverterShort","SMA SB3000US (240V)","Shortened Inverter Name--Array 1"]
[null,null,null,"SysInvMaker","SMA America","Inverter Manufacturer--Array 1"]
[null,null,null,"SysInvModel","SB3000US (240V)","Inverter Model--Array 1"]
[null,null,null,"SysInvEff",0.95499999999999996,"Inverter Efficiency--Array 1"]
[null,null,null,"SysInvRating",3000,"Inverter Capactiy Rating--Array 1"]
[null,null,null,"SysInvCnt",2,"Number of Inverters--Array 1"]
[]
[null,null,null,"SysInverter2","SMA America SB7000US (240V)","Full Inverter Name--Array 2"]
[null,null,null,"SysInverterShort2","SMA SB7000US (240V)","Shortened Inverter Name--Array 2"]
[null,null,null,"SysInvMaker2","SMA America","Inverter Manufacturer--Array 2"]
[null,null,null,"SysInvModel2","SB7000US (240V)","Inverter Model--Array 2"]
[null,null,null,"SysInvEff2",0.96,"Inverter Efficiency--Array 2"]
[null,null,null,"SysInvRating2",7000,"Inverter Capactiy Rating--Array 2"]
[null,null,null,"SysInvCnt2",1,"Number of Inverters--Array 2"]
[]
[]
["SizingEnd"]
[null,"Incentives"]
["IncentivesStart"]
[]
[null,null,null,"IncentiveProgram","CA - PG&E","Incentive Program"]
[null,null,null,"IncentType","EPBB Rebate","Incentive Type"]
[null,null,null,"IncentTaxYear",2010,"Assumed Year for Incentives"]
[]
[null,null,null,"IncentRebateRatingType","CEC AC","System Rating Type for Rebate"]
[null,null,null,"IncentRebateSysSize",9.0710340000000009,"Incentive Program System Size"]
[null,null,null,"IncentRebatePerW",1.1000000000000001,"Rebate Amount per Watt"]
[null,null,null,"IncentRebateAdjustmentFactor","CSI EPBB","Rebate Adjustment Factor"]
[null,null,null,"IncentRebateDesignFactor",0.99875999999999998,"CSI Design Factor--Array 1"]
[null,null,null,"IncentRebateDesignFactor2",0.1,"CSI Design Factor--Array 2"]
[null,null,null,"IncentRebatePerWAdj",0.79557894971885246,"Adjusted Rebate Amount per Watt"]
[null,null,null,"TaxableRebate","Yes","Rebate Taxable or Not?"]
[null,null,null,"IncentCSIProdEst",12345,"CSI Annual Production Estimate"]
[null,null,null,"SysInstWho","Contractor","System Installed by Contractor or Owner?"]
[null,null,null,"IncentRebateOwnerInstalledReductionFactor",0,"Owner-Install Adjustment Factor"]
[]
[null,null,null,"IncentPBIperkWhInputs",30,"PBI Amount per kWh--With Step Indication"]
[null,null,null,"IncentPBIperKWh",30,"PBI Amount per kWh"]
[null,null,null,"IncentPBIYears",8,"PBI Contract Years"]
[null,null,null,"TaxablePBI","Yes","PBI Taxable or Not?"]
[]
[null,null,null,"IncentREC1perkWh",3,"REC Amount per kWh--Contract 1"]
[null,null,null,"IncentREC1Years",3,"REC Contract Years--Contract 1"]
[null,null,null,"IncentREC2perkWh",5,"REC Amount per kWh--Contract 2"]
[null,null,null,"IncentREC2Years",5,"REC Contract Years--Contract 2"]
[null,null,null,"IncentREC3perkWh",7,"REC Amount per kWh--Contract 3"]
[null,null,null,"IncentRECMaxValue",10000001,"REC Maximum Annual Value"]
[null,null,null,"TaxableREC","Yes","REC Taxable or Not?"]
[]
[null,null,null,"IncentFedTaxCredit",0.3,"Federal Tax Credit Pct"]
[null,null,null,"IncentFedTaxCreditBasis",106972.63546668801,"Federal Tax Credit Basis"]
[null,null,null,"IncentFedTaxCreditSched","Year 0 -- Commercial Grant","Federal Tax Credit Schedule"]
[null,null,null,"IncentFedTaxCreditMax",1000000000,"Federal Tax Credit Maximum Value"]
[]
[null,null,null,"IncentStateTaxCredit",0.35,"State Tax Credit Pct"]
[null,null,null,"IncentStateTaxCreditBasis",97755.911764104007,"State Tax Credit Basis"]
[null,null,null,"IncentStateTaxCreditBasisText","system cost after rebate","State Tax Credit Basis Text (user input)"]
[null,null,null,"IncentStateTaxCreditSched","year 1","State Tax Credit Schedule"]
[null,null,null,"IncentStateTaxCreditPerW",0,"State Tax Credit per Watt (if applicable)"]
[null,null,null,"IncentStateTaxCreditMax",5000,"State Tax Credit Maximum Value"]
[]
[null,null,null,"IncentLocalTaxCredit",0,"Local Tax Credit Pct"]
[null,null,null,"IncentLocalTaxCreditSched",null,"Local Tax Credit Schedule"]
[null,null,null,"IncentLocalTaxCreditPerW",0,"Local Tax Credit per Watt (if applicable)"]
[null,null,null,"IncentLocalTaxCreditMax",0,"Local Tax Credit Maximum Value"]
[]
[null,null,null,"IncentFedDepBasis",90926.74014668481,"Federal Depreciation Basis"]
[null,null,null,"IncentFedDepSched","5 yr MACRS","Federal Depreciation Schedule"]
[null,null,null,"IncentStateDepSched","12 yr Straight-Line","State Depreciation Schedule"]
[]
[null,null,null,"IncentGrantTotal",2000,"Grant Total"]
[null,null,null,"TaxableGrant","Yes","Grant Taxable or Not?"]
[]
[]
["IncentivesEnd"]
[null,"Pricing"]
["PricingStart"]
[]
[null,null,null,"CostBasePerW",8.4282024287859567,"Base Price per Watt"]
[null,null,null,"CostBase",76452.510790400003,"Base Price"]
[null,null,null,"CostRoofAdder",4535.5,"Roof Type Adder Total"]
[null,null,null,"CostTiltAdder",2267.5,"Steepness Adder Total"]
[null,null,null,"CostRackAdder",4536,"Rack Type Adder Total"]
[null,null,null,"CostSubArrayAdder",500,"Number of Sub-arrays Adder Total"]
[null,null,null,"CostWireAdder",9071,"Wire Length Adder Total"]
[null,null,null,"CostTrenchAdder",7500,"Trenching Adder Total"]
[null,null,null,"CostAllow1",500,"Price Allowance 1"]
[null,null,null,"CostAllow2",600,"Price Allowance 2"]
[null,null,null,"CostAllow3",0,"Price Allowance 3"]
[null,null,null,"CostAllow4",700,"Price Allowance 4"]
[null,null,null,"CostAllow5",800,"Price Allowance 5"]
[null,null,null,"CostAllow1Label","Travel","Price Allowance 1--Label"]
[null,null,null,"CostAllow2Label","Monitoring","Price Allowance 2--Label"]
[null,null,null,"CostAllow3Label","Allowance 3 (edit this text)","Price Allowance 3--Label"]
[null,null,null,"CostAllow4Label","Allowance 4 (edit this text)","Price Allowance 4--Label"]
[null,null,null,"CostAllow5Label","Allowance 5 (edit this text)","Price Allowance 5--Label"]
[null,null,null,"CostwAdders",107462.5107904,"Price with Allowances"]
[null,null,null,"CostSalesTax",400,"Sales Tax (Included in Price)"]
[null,null,null,"CostPermitFeesInc",500,"Permit Fees (Included in Price)"]
[null,null,null,"CostUtilityFeesInc",600,"Utility Fees (Included in Price)"]
[null,null,null,"CostOtherFeesInc",700,"Other Fees (Included in Price)"]
[null,null,null,"CostDiscountBasis","Percent","Basis of Discount (Pct or Dollar)"]
[null,null,null,"CostDiscountPct",-0.03,"Price Discount Pct"]
[null,null,null,"CostDiscount",-3289.875323712,"Price Discount"]
[null,null,null,"CostGross",106372.63546668801,"Gross System Price"]
[null,null,null,"CostGrossPerW",11.726627357662643,"Gross System Price per Watt"]
[null,null,null,"SysRebate",-7216.7237025840013,"Total Rebate Amount"]
[null,null,null,"CostAfterRebate",99155.911764104007,"Cost After Rebate (but before fees)"]
[null,null,null,"SysGrant",-2000,"Total Grant Amount"]
[null,null,"2010-02-06","CostAfterRebateAndStateLocalGrants",97155.911764104007,"Cost After Rebate and State/Local Grants"]
[null,null,null,"CostPermitFeesNotInc",100,"Permit Fees (Not Included in Price)"]
[null,null,null,"CostUtilityFeesNotInc",200,"Utility Fees (Not Included in Price)"]
[null,null,null,"CostOtherFeesNotInc",300,"Other Fees (Not Included in Price)"]
[null,null,null,"CostAfterRebateAndFees",97755.911764104007,"System Price After Rebate and Fees"]
[null,null,"2010-02-06","TreasuryGrantFed",-32091.790640006402,"Federal Treasury Grant Amount"]
[null,null,"2010-02-06","CostNetUpFront",65664.121124097612,"System Price After Rebate, Fees, and Treasury Grant"]
[null,null,null,"TaxFedOnRebateGrant",3225.8532959044005,"Federal Tax on Rebate & Grant"]
[null,null,null,"TaxCreditFed",0,"Federal Tax Credit Amount"]
[null,null,null,"TaxCreditState",-5000,"State Tax Credit Amount"]
[null,null,null,"TaxFedOnStateTaxCredit",1750,"Federal Tax on State Tax Credit"]
[null,null,null,"TaxCreditLocal",0,"Local Tax Credit Amount"]
[null,null,null,"TaxFedOnLocalTaxCredit",null,"Federal Tax on Local Tax Credit"]
[null,null,null,"DeprFedStateNetSumTotal",-37441.413741305092,"Total Federal & State Depreciation"]
[null,null,null,"DeprFedSumTotal",31824.359051339678,"Total Federal Depreciation"]
[null,null,null,"DeprStateSumTotal",8641.6225999467952,"Total State Depreciation"]
[null,null,null,"DeprStateFedTaxSumTotal",3024.5679099813783,"Federal Tax on State Depreciation"]
[null,null,"2010-02-06","CostNetAfterTaxEffects",28198.560678696922,"Net System Price"]
[null,null,null,"SysPBI",-25374.022056824109,"Total PBI Amount"]
[null,null,"2010-02-06","TaxFedOnPBI",8880.907719888437,"Federal Tax on PBI"]
[null,null,"2010-02-06","CostNetAfterTaxEffectsAndPBI",11705.44634176125,"Net System Price after PBI"]
[null,null,null,"EnergyEffCost",1000,"Energy Efficiency Cost"]
[null,null,null,"EnergyEffTaxCredits",-500,"Energy Efficiency Tax Credit Amount"]
[null,null,null,"AddlOffer1",1100,"Additional Offer 1"]
[null,null,null,"AddlOffer2",1200,"Additional Offer 2"]
[null,null,null,"AddlOffer1Label","Additional Offering #1 Eggs","User Defined Info  -- Additional Offer 1 Label"]
[null,null,null,"AddlOffer2Label","Additional Offering #2 Milk","User Defined Info  -- Additional Offer 2 Label"]
[null,null,null,"CostNetAllIncluded",14505.44634176125,"System Price--All Included"]
[null,null,null,"SysREC",-15048.458385274069,"Total REC Amount"]
[null,null,"2010-02-06","TaxStateFedOnREC",6131.6448536637708,"State & Federal Tax on REC"]
[]
[]
["PricingEnd"]
[null,"Sales Contract"]
["SalesContractStart"]
[]
[null,null,null,"SalesContractDaysValid",14,"Sales Contract--Days quote is valid"]
[null,null,null,"SalesContractTime1",10,"Sales Contract--Delay until 1st payment"]
[null,null,null,"SalesContractPmt1Date",38787,"Sales Contract--Date of 1st payment"]
[null,null,null,"SalesContractPmt1",1000,"Sales Contract--Deposit Amount / 1st payment % of job total value"]
[null,null,null,"SalesContractPmt1Amt",1000,"Sales Contract--Deposit Amount / 1st payment $ amount"]
[null,null,null,"SalesContractPmt1Note","Initial Deposit","Sales Contract--Job activity associated with 1st payment"]
[null,null,null,"SalesContractTime2",2,"Sales Contract--Time between 1st & 2nd payments"]
[null,null,null,"SalesContractPmt2Date",38801,"Sales Contract--Date of 2nd payment"]
[null,null,null,"SalesContractPmt2",0.35991487262626309,"Sales Contract--2nd payment % of job total value"]
[null,null,null,"SalesContractPmt2Amt",35687.68735271848,"Sales Contract--2nd payment $ amount"]
[null,null,null,"SalesContractPmt2Note","1st SAC Payment","Sales Contract--Job activity associated with 2nd payment"]
[null,null,null,"SalesContractTime3",12,"Sales Contract--approx. time betw. 2nd & 3rd payments"]
[null,null,null,"SalesContractPmt3Date",38885,"Sales Contract--Date of 3rd payment"]
[null,null,null,"SalesContractPmt3",0.4,"Sales Contract--3rd payment % of job total value"]
[null,null,null,"SalesContractPmt3Amt",39662.364705641608,"Sales Contract--3rd payment $ amount"]
[null,null,null,"SalesContractPmt3Note","Upon delivery of materials to the jobsite","Sales Contract--Job activity associated with 3rd payment"]
[null,null,null,"SalesContractTime4",1,"Sales Contract--approx. time betw. 3rd & 4th payments"]
[null,null,null,"SalesContractPmt4Date",38892,"Sales Contract--Date of 4th payment"]
[null,null,null,"SalesContractPmt4",0.05,"Sales Contract--4th payment % of job total value"]
[null,null,null,"SalesContractPmt4Amt",4957.7955882052011,"Sales Contract--4th payment $ amount"]
[null,null,null,"SalesContractPmt4Note","","Sales Contract--Job activity associated with 4th payment"]
[null,null,null,"SalesContractTime5",3,"Sales Contract--approx. time betw. 4th & 5th payments"]
[null,null,null,"SalesContractPmt5Date",38913,"Sales Contract--Date of 5th payment"]
[null,null,null,"SalesContractPmt5",0.08,"Sales Contract--5th payment % of job total value"]
[null,null,null,"SalesContractPmt5Amt",7932.4729411283206,"Sales Contract--5th payment $ amount"]
[null,null,null,"SalesContractPmt5Note","","Sales Contract--Job activity associated with 5th payment"]
[null,null,null,"SalesContractTime6",2,"Sales Contract--approx. time betw. 5th & 6th payments"]
[null,null,null,"SalesContractPmt6Date",38927,"Sales Contract--Date of 6th payment"]
[null,null,null,"SalesContractPmt6",0.1,"Sales Contract--Final payment % of job total value"]
[null,null,null,"SalesContractPmt6Amt",9915.5911764104021,"Sales Contract--Final payment $ amount"]
[null,null,null,"SalesContractPmt6Note","Upon municipal building/electrical inspection*","Sales Contract--Job activity associated with last payment"]
[]
[null,null,null,"SalesContractRebateStatus","after","Job Cost Basis"]
[null,null,null,"SalesContractRebateRecipient","installer","Rebate Recipient"]
[]
[null,null,null,"SalesContractProvision1","1. All payments are due Net 10 days. 1% interest per month carrying charge.","Sales Contract--Provision 1"]
[null,null,null,"SalesContractProvision2","2. *System Completion occurs upon building or electrical inspectors permit signoff. Utility inspection ","Sales Contract--Provision 2"]
[null,null,null,"SalesContractProvision3","3. **Installer receives rebate as one of the final payments","Sales Contract--Provision 3"]
[null,null,null,"SalesContractProvision4","4. Quoted price does not include permit or electric utility fees","Sales Contract--Provision 4"]
[null,null,null,"SalesContractProvision5","5. This PV system includes a/the 10 year warranty for no cost repair or replacement of the system or system components, including any associated labor as specified in the California Solar Initiative Handbook applicable at the date of this contract.","Sales Contract--Provision 5"]
[null,null,null,"SalesContractProvision6","6.","Sales Contract--Provision 6"]
[]
[]
["SalesContractEnd"]
[null,"Custom Inputs"]
["CustomInputsStart"]
[]
[null,null,null,"UD_CustomerInfo1","","User Defined Info  --  Customer Information Section"]
[null,null,null,"UD_CustomerInfo2","","User Defined Info  --  Customer Information Section"]
[null,null,null,"UD_CustomerInfo3","","User Defined Info  --  Customer Information Section"]
[null,null,null,"UD_CustomerInfo4","","User Defined Info  --  Customer Information Section"]
[null,null,null,"UD_CustomerInfo5","","User Defined Info  --  Customer Information Section"]
[null,null,null,"UD_CustomerInfo6","","User Defined Info  --  Customer Information Section"]
[null,null,null,"UD_CustomerInfo7","","User Defined Info  --  Customer Information Section"]
[null,null,null,"UD_CustomerInfo8","","User Defined Info  --  Customer Information Section"]
[null,null,null,"UD_CustomerInfo9","","User Defined Info  --  Customer Information Section"]
[null,null,null,"UD_CustomerInfo10","","User Defined Info  --  Customer Information Section"]
[null,null,null,"UD_CustomerInfo11","","User Defined Info  --  Customer Information Section"]
[null,null,null,"UD_CustomerInfo12","","User Defined Info  --  Customer Information Section"]
[null,null,null,"UD_CustomerInfo13","","User Defined Info  --  Customer Information Section"]
[null,null,null,"UD_CustomerInfo14","","User Defined Info  --  Customer Information Section"]
[null,null,null,"UD_CustomerInfo15","","User Defined Info  --  Customer Information Section"]
[]
[null,null,null,"UD_ElectricRates1","","User Defined Info  --  Electric Rates Section"]
[null,null,null,"UD_ElectricRates2","","User Defined Info  --  Electric Rates Section"]
[null,null,null,"UD_ElectricRates3","","User Defined Info  --  Electric Rates Section"]
[null,null,null,"UD_ElectricRates4","","User Defined Info  --  Electric Rates Section"]
[null,null,null,"UD_ElectricRates5","","User Defined Info  --  Electric Rates Section"]
[null,null,null,"UD_ElectricRates6","","User Defined Info  --  Electric Rates Section"]
[null,null,null,"UD_ElectricRates7","","User Defined Info  --  Electric Rates Section"]
[null,null,null,"UD_ElectricRates8","","User Defined Info  --  Electric Rates Section"]
[null,null,null,"UD_ElectricRates9","","User Defined Info  --  Electric Rates Section"]
[null,null,null,"UD_ElectricRates10","","User Defined Info  --  Electric Rates Section"]
[null,null,null,"UD_ElectricRates11","","User Defined Info  --  Electric Rates Section"]
[null,null,null,"UD_ElectricRates12","","User Defined Info  --  Electric Rates Section"]
[null,null,null,"UD_ElectricRates13","","User Defined Info  --  Electric Rates Section"]
[null,null,null,"UD_ElectricRates14","","User Defined Info  --  Electric Rates Section"]
[null,null,null,"UD_ElectricRates15","","User Defined Info  --  Electric Rates Section"]
[]
[null,null,null,"UD_SystemVariables1","","User Defined Info  --  Solar System & Site Section"]
[null,null,null,"UD_SystemVariables2","","User Defined Info  --  Solar System & Site Section"]
[null,null,null,"UD_SystemVariables3","","User Defined Info  --  Solar System & Site Section"]
[null,null,null,"UD_SystemVariables4","","User Defined Info  --  Solar System & Site Section"]
[null,null,null,"UD_SystemVariables5","","User Defined Info  --  Solar System & Site Section"]
[null,null,null,"UD_SystemVariables6","","User Defined Info  --  Solar System & Site Section"]
[null,null,null,"UD_SystemVariables7","","User Defined Info  --  Solar System & Site Section"]
[null,null,null,"UD_SystemVariables8","","User Defined Info  --  Solar System & Site Section"]
[null,null,null,"UD_SystemVariables9","","User Defined Info  --  Solar System & Site Section"]
[null,null,null,"UD_SystemVariables10","","User Defined Info  --  Solar System & Site Section"]
[null,null,null,"UD_SystemVariables11","","User Defined Info  --  Solar System & Site Section"]
[null,null,null,"UD_SystemVariables12","","User Defined Info  --  Solar System & Site Section"]
[null,null,null,"UD_SystemVariables13","","User Defined Info  --  Solar System & Site Section"]
[null,null,null,"UD_SystemVariables14","","User Defined Info  --  Solar System & Site Section"]
[null,null,null,"UD_SystemVariables15","","User Defined Info  --  Solar System & Site Section"]
[]
[null,null,null,"UD_Sizing1","","User Defined Info  --  System Sizing Section"]
[null,null,null,"UD_Sizing2","","User Defined Info  --  System Sizing Section"]
[null,null,null,"UD_Sizing3","","User Defined Info  --  System Sizing Section"]
[null,null,null,"UD_Sizing4","","User Defined Info  --  System Sizing Section"]
[null,null,null,"UD_Sizing5","","User Defined Info  --  System Sizing Section"]
[null,null,null,"UD_Sizing6","","User Defined Info  --  System Sizing Section"]
[null,null,null,"UD_Sizing7","","User Defined Info  --  System Sizing Section"]
[null,null,null,"UD_Sizing8","","User Defined Info  --  System Sizing Section"]
[null,null,null,"UD_Sizing9","","User Defined Info  --  System Sizing Section"]
[null,null,null,"UD_Sizing10","","User Defined Info  --  System Sizing Section"]
[null,null,null,"UD_Sizing11","","User Defined Info  --  System Sizing Section"]
[null,null,null,"UD_Sizing12","","User Defined Info  --  System Sizing Section"]
[null,null,null,"UD_Sizing13","","User Defined Info  --  System Sizing Section"]
[null,null,null,"UD_Sizing14","","User Defined Info  --  System Sizing Section"]
[null,null,null,"UD_Sizing15","","User Defined Info  --  System Sizing Section"]
[]
[null,null,null,"UD_Incentives1","","User Defined Info  --  Incentives Section"]
[null,null,null,"UD_Incentives2","","User Defined Info  --  Incentives Section"]
[null,null,null,"UD_Incentives3","","User Defined Info  --  Incentives Section"]
[null,null,null,"UD_Incentives4","","User Defined Info  --  Incentives Section"]
[null,null,null,"UD_Incentives5","","User Defined Info  --  Incentives Section"]
[null,null,null,"UD_Incentives6","","User Defined Info  --  Incentives Section"]
[null,null,null,"UD_Incentives7","","User Defined Info  --  Incentives Section"]
[null,null,null,"UD_Incentives8","","User Defined Info  --  Incentives Section"]
[null,null,null,"UD_Incentives9","","User Defined Info  --  Incentives Section"]
[null,null,null,"UD_Incentives10","","User Defined Info  --  Incentives Section"]
[null,null,null,"UD_Incentives11","","User Defined Info  --  Incentives Section"]
[null,null,null,"UD_Incentives12","","User Defined Info  --  Incentives Section"]
[null,null,null,"UD_Incentives13","","User Defined Info  --  Incentives Section"]
[null,null,null,"UD_Incentives14","","User Defined Info  --  Incentives Section"]
[null,null,null,"UD_Incentives15","","User Defined Info  --  Incentives Section"]
[]
[null,null,null,"UD_Pricing1","","User Defined Info  --  Pricing Section"]
[null,null,null,"UD_Pricing2","","User Defined Info  --  Pricing Section"]
[null,null,null,"UD_Pricing3","","User Defined Info  --  Pricing Section"]
[null,null,null,"UD_Pricing4","","User Defined Info  --  Pricing Section"]
[null,null,null,"UD_Pricing5","","User Defined Info  --  Pricing Section"]
[null,null,null,"UD_Pricing6","","User Defined Info  --  Pricing Section"]
[null,null,null,"UD_Pricing7","","User Defined Info  --  Pricing Section"]
[null,null,null,"UD_Pricing8","","User Defined Info  --  Pricing Section"]
[null,null,null,"UD_Pricing9","","User Defined Info  --  Pricing Section"]
[null,null,null,"UD_Pricing10","","User Defined Info  --  Pricing Section"]
[null,null,null,"UD_Pricing11","","User Defined Info  --  Pricing Section"]
[null,null,null,"UD_Pricing12","","User Defined Info  --  Pricing Section"]
[null,null,null,"UD_Pricing13","","User Defined Info  --  Pricing Section"]
[null,null,null,"UD_Pricing14","","User Defined Info  --  Pricing Section"]
[null,null,null,"UD_Pricing15","","User Defined Info  --  Pricing Section"]
["CustomInputsEnd"]
["FinancialStart"]
["FinancialEnd"]
["EnvironmentalStart"]
["EnvironmentalEnd"]
["RateDetailStart"]
["RateDetailEnd"]
[null,"Boolean Values"]
["BooleanStart"]
[]
[null,null,null,"Residential",0,"Residential or Not"]
[null,null,null,"Commercial",1,"Commercial or Not"]
[null,null,"2010-04-20","NonProfit",0,"Non-Profit or Not"]
[null,null,"2010-04-20","Govt",0,"Government or Not"]
[null,null,null,"NonProfitGov",0,"Non-Profit / Government or Not"]
[null,null,null,"AffHousing",0,"Affordable Housing or Not"]
[]
[null,null,null,"Taxable",1,"Taxable or Not"]
[null,null,null,"TaxExempt",0,"Tax Exempt or Not"]
[null,null,"2010-04-19","Corporate",1,"Corporate or Not"]
[null,null,null,"UDUtility",0,"User Defined Utiliy or Not"]
[null,null,null,"DirectUtility",0,"Direct User Defined Utility or Not"]
[null,null,null,"StateAvgUtility",0,"State Average or Not"]
[null,null,null,"Tiers",0,"Tiers or Not"]
[null,null,null,"Tou",1,"Tou or Not"]
[null,null,null,"FeedIn",0,"Feed-In or Not"]
[null,null,null,"Demand",1,"Demand or Not"]
[null,null,null,"Seasonal",1,"Seasonal or Not"]
[null,null,null,"TiersStarting",0,"Starting Rate--Tiers or Not"]
[null,null,null,"TouStarting",1,"Starting Rate--Tou or Not"]
[null,null,null,"FeedInStarting",0,"Starting Rate--Feed-In or Not"]
[null,null,null,"DemandStarting",1,"Starting Rate--Demand or Not"]
[null,null,null,"UDStarting",0,"Starting Rate--User Defined or Not"]
[null,null,null,"DirectStarting",0,"Starting Rate--Directly entered by user or Not"]
[null,null,null,"SeasonalStarting",1,"Starting Rate--Seasonal or Not"]
[null,null,null,"TiersEnding",0,"Ending Rate--Tiers or Not"]
[null,null,null,"TouEnding",1,"Ending Rate--Tou or Not"]
[null,null,null,"FeedInEnding",0,"Ending Rate--Feed-In or Not"]
[null,null,null,"DemandEnding",0,"Ending Rate--Demand or Not"]
[null,null,null,"SeasonalEnding",1,"Ending Rate--Seasonal or Not"]
[null,null,null,"DirectEnding",0,"Ending Rate--Directly entered by user or Not"]
[null,null,null,"SeasonalEnding",1,"Ending Rate--Seasonal or Not"]
[]
[null,null,null,"CEC",1,"CEC AC is the System Rating Type or Not"]
[null,null,null,"PTC",0,"PTC DC is the System Rating Type or Not"]
[null,null,null,"STC",0,"STC DC is the System Rating Type or Not"]
[null,null,null,"IncentExists",1,"Incentive Program Available or Not"]
[null,null,null,"UDIncent",0,"User-Defined Incentive Program or Not"]
[null,null,null,"ShowLoan",1,"Show Loan in Proposals or Not"]
[null,null,null,"ShowDiscount",1,"Show Discount in Proposals or Not"]
[]
[]
["BooleanEnd"]
[null,"OnGrid Info"]
["OnGridInfoStart"]
[]
[null,null,null,"ToolVersion",4,"Tool Version"]
[null,null,null,"ToolVersionText","OnGrid Tool v4","Tool Version (text)"]
[null,null,null,"ToolDate",38407,"Tool Version Date"]
[null,null,null,"OnGridCopyright","© 2009 OnGrid Solar - All Rights Reserved","OnGrid Copyright"]
[null,null,null,"OnGridDisclaimer1","Disclaimer: This information is provided as an illustration of potential financial benefits stemming from","OnGrid Disclaimer 1"]
[null,null,null,"OnGridDisclaimer2","   ownership of a renewable energy power system.  This is not a production guarantee.","OnGrid Disclaimer 2"]
[null,null,null,"OnGridDisclaimer3","   A professional accountant or tax advisor should confirm these estimates.","OnGrid Disclaimer 3"]
[null,null,null,"OnGridDisclaimer4","   Neither OnGrid Solar nor any authorized user warrants the applicability of these estimates for particular business cases, and both disclaim all liability","OnGrid Disclaimer 4"]
[]
[]
["OnGridInfoEnd"]
["RefNamesEnd"]

{"sheet":"Contracts","index":5,"n_rows":940,"n_cols":38,"rows_kept":940,"cut":false,"hidden":false,"merged":[[198,22,198,24],[199,22,199,24],[200,22,200,24],[201,22,201,24],[202,22,202,24],[203,22,203,24],[206,22,206,24],[198,20,198,21],[199,20,199,21],[200,20,200,21],[201,20,201,21],[202,20,202,21],[203,20,203,21],[212,20,212,30],[451,20,451,30],[447,20,447,30],[261,30,261,31],[367,30,367,31],[353,20,353,30],[221,20,221,30],[32,3,32,4],[32,6,32,7],[33,6,33,7],[34,6,34,7],[36,3,36,4],[36,6,36,7],[426,20,426,30],[338,20,338,30],[11,8,11,9],[25,6,25,8],[26,3,26,4],[26,6,26,8],[27,6,27,8],[28,3,28,4],[28,6,28,8],[30,3,30,4],[361,20,361,30],[326,20,326,30],[330,20,330,30],[334,20,334,30],[342,20,342,30],[346,21,346,30],[357,20,357,30],[424,20,424,30],[37,3,37,4],[37,6,37,7],[35,3,35,4],[35,6,35,7],[101,3,101,9],[61,6,62,9],[72,3,72,9],[73,3,73,9],[83,3,83,9],[84,3,84,9],[38,3,38,4],[38,6,38,7],[60,6,60,9],[39,6,39,9],[42,6,42,9],[43,6,43,8],[44,6,44,8],[48,6,48,9],[52,6,52,9],[181,20,181,30],[106,3,106,9],[169,20,169,24],[171,20,171,24],[172,20,172,24],[140,20,140,30],[53,6,53,9],[56,6,56,9],[57,6,57,9],[58,6,58,9],[59,6,59,9],[175,20,175,30],[85,3,85,9],[777,20,777,30],[788,20,788,30],[773,21,773,30],[273,36,273,37],[937,37,937,38],[733,21,733,30],[753,20,753,30],[759,21,759,30],[723,21,723,30],[725,21,725,30],[727,21,727,30],[729,21,729,30],[731,21,731,30],[443,21,443,30],[445,21,445,30],[628,20,628,30],[637,21,637,30],[641,21,641,30],[645,21,645,30],[622,19,622,31],[623,19,623,31],[847,19,847,31],[846,19,846,31],[803,30,803,31],[814,19,814,31],[815,19,815,31],[833,23,833,24],[850,19,850,30],[894,36,894,38],[895,36,895,38],[439,20,439,30],[767,21,767,30],[469,30,469,31],[693,21,693,30],[679,30,679,31],[695,21,695,30],[697,21,697,30],[649,21,649,30],[657,21,657,30],[664,21,664,30],[763,21,763,30],[703,21,703,30],[705,21,705,30],[707,21,707,30],[666,21,666,30],[669,21,669,30],[709,21,709,30],[711,21,711,30],[715,21,715,30],[740,30,740,31],[717,21,717,30],[721,21,721,30],[699,21,699,30],[701,21,701,30]]}
[]
[]
[]
[]
[null,null,null,null,null,null,"Quotation & Contract"]
[null,null,null,null,null,null,"for a Renewable Energy Power System"]
[]
[null,null,null,null,{"$f":"VendName","v":"Acme Solar"},null,null,null,{"$f":"\"Salesperson: \"&VendSalesperson","v":"Salesperson: Ship Full User"}]
[null,null,null,null,{"$f":"VendAdd1","v":"123 Ship Drive, Bldg 3"},null,null,null,{"$f":"\"Phone: \"&IF(VendSalesPhWork>0,VendSalesPhWork,IF(VendSalesPhCell>0,VendSalesPhCell,\"\"))&IF(VendSalesPhWork>0,IF(VendSalesPhCell>0,\", \"&VendSalesPhCell,\"\"))","v":"Phone: (123) 123 1234, (123) 123 3456"}]
[null,null,null,null,{"$f":"IF(VendAdd2>0,VendAdd2,VendCity&\", \"&VendState&\" \"&VendZip)","v":""},null,null,null,{"$f":"\"Email: \"&VendSalesEmail","v":"Email: fulluser@acmesolar.com"}]
[null,null,null,null,{"$f":"IF(VendAdd2>0,VendCity&\", \"&VendState&\" \"&VendZip,\"\")","v":"Sunnyvale, CA 94086"}]
[null,null,null,null,{"$f":"\"Contractor's License Number: \"&VendStLicNum","v":"Contractor's License Number: Cont. Lic. #"},null,null,null,{"$f":"DateOfAnalysis","v":"2010-03-02"}]
[null,null,null,null,{"$f":"\"Contractor's License Type: \"&VendStLicTypes","v":"Contractor's License Type: Cont Lic Type"}]
[]
[null,null,null,"Client:",null,null,"Site Address:",{"$f":"CustFullSiteAddr","v":"133 Pelhamdale Ave, #1"}]
[null,null,null,{"$f":"CustsFullName","v":"Jackie Sun and Jilla Sky"},null,null,null,{"$f":"CustFullSiteCityStZip","v":"Pelham, CA  10803"}]
[null,null,null,{"$f":"IF(CustCompany>0,CustCompany,\"\")","v":"Ichiban Hibachi"}]
[null,null,null,{"$f":"IF(CustFullPh>0,CustFullPh,\"\")","v":"(408) 111 1111H, (408) 222 2222C, (408) 333 3333x333W"},null,null,"Mailing Address:",{"$f":"CustFullMailAddr","v":"133 Pelhamdale Ave, #1"}]
[null,null,null,{"$f":"IF(CustEmail>0,CustEmail,\"\")&IF(CustEmail>0,IF(CustEmailAlt>0,\", \",IF(CustWebsite>0,\", \",\"\")),\"\")&IF(CustEmailAlt>0,CustEmailAlt,\"\")&IF(CustEmailAlt>0,IF(CustWebsite>0,\", \",\"\"),\"\")&IF(CustWebsite>0,CustWebsite,\"\")","v":"cust@buyer.com, Cake@eater.com, www.ibm.com"},null,null,null,{"$f":"CustFullMailCityStZip","v":"Pelham, CA  10803"}]
[]
[]
[null,null,null,"PROJECT DESCRIPTION and MAJOR COMPONENTS:",null,null,null,"System Size (kW DC, STC)",{"$f":"SysSizeSTC","v":10.395}]
[null,null,null,{"$f":"\"A \"&FIXED(SysSize,1)&\" kW PV System, with turn-key installation at customer's site address stated above.\"","v":"A 9.1 kW PV System, with turn-key installation at customer's site address stated above."},null,null,null,"System Size (kW AC, CEC)",{"$f":"SysSizeCEC","v":9.0710340000000009}]
[null,null,null,{"$f":"\"Mounting type: \"&SysRoofType&IF(SysRoofType=\"Ground Mount\",\"\",IF(SysRoofType=\"Trellis\",\"\",\" roof.\"))","v":"Mounting type: Foam roof."}]
[null,null,null,null,null,null,"System Pricing Details"]
[null,null,null,"Major System Components:",null,null,{"$f":"\"Installed System Price including Sales Tax & Shipping\"&IF(J28<0,\" (before Rebate)\",\"\")","v":"Installed System Price including Sales Tax & Shipping (before Rebate)"},null,null,{"$f":"IF(ShowDiscount,CostGross - CostDiscount,CostGross)","v":109662.5107904}]
[null,null,null,{"$f":"SysModCnt&\" \"&SysModule&\" modules.\"","v":"33 Sanyo Electric HIT-N215A01 modules."},null,null,{"$f":"IF(AND(ShowDiscount,CostDiscountBasis=\"Percent\",CostDiscount<>0),VendName&\" \"&ROUND(CostDiscount/-CostGross*100,0) &\"% Discount\", IF(AND(ShowDiscount,CostDiscountBasis=\"Dollar\",CostDiscount<>0),VendName&\" Discount\", IF(OR(NOT(ShowDiscount),CostDiscount = 0),\"\")))","v":"Acme Solar 3% Discount"},null,null,{"$f":"IF(ShowDiscount,CostDiscount,\"\")","v":-3289.875323712}]
[null,null,null,{"$f":"\"Module STC rating: \"&SysModSTC&\"W\"","v":"Module STC rating: 215W"},null,null,{"$f":"IF(SysRebate<0,\"Estimated Buy-Down Program Rebate at $\"&FIXED(IncentRebatePerW,2)&IF(SysRatingType=\"CEC\",\" per CEC AC Watt \",IF(SysRatingType=\"PTC\",\" per PTC Watt \",\" per STC DC Watt \"))&\"to be paid to the \"&SalesContractRebateRecipient,\"\")","v":"Estimated Buy-Down Program Rebate at $1.10 per CEC AC Watt to be paid to the installer"},null,null,{"$f":"SysRebate","v":-7216.7237025840013}]
[null,null,null,{"$f":"IF(SysModCnt2>0,SysModCnt2&\" \"&SysModule2&\" modules.\",\"\")","v":"15 BP Solar BP3220N modules."},null,null,"Contract Price Net to Customer",null,null,{"$f":"CostAfterRebate","v":99155.911764104007}]
[null,null,null,{"$f":"IF(SysModCnt2>0,\"Module STC rating: \"&SysModSTC2&\"W\",\"\")","v":"Module STC rating: 220W"}]
[null,null,null,{"$f":"SysInvCnt&\" \"&SysInverter&IF(SysInvCnt>1,\" inverters\", \" inverter\")&\".\"","v":"2 SMA America SB3000US (240V) inverters."},null,null,"Payment Schedule:"]
[null,null,null,{"$f":"\"Inverter rating: \"&SysInvRating&\"W each\"","v":"Inverter rating: 3000W each"},null,null,null,"Event   (%)","Amount","Approximate Date"]
[null,null,null,{"$f":"IF(SysInvCnt2>0,SysInvCnt2&\" \"&SysInverter2&IF(SysInvCnt2>1,\" inverters\", \" inverter\")&\".\",\"\")","v":"1 SMA America SB7000US (240V) inverter."},null,null,{"$f":"SalesContractPmt1Note&\" (10% or $1,000)\"","v":"Initial Deposit (10% or $1,000)"},null,{"$f":"SalesContractPmt1Amt","v":1000},{"$f":"IF(SalesContractPmt1Note>0,SalesContractPmt1Date,\"\")","v":"2010-03-12"}]
[null,null,null,{"$f":"IF(SysInvCnt2>0,\"Inverter rating: \"&SysInvRating2&\"W each\",\"\")","v":"Inverter rating: 7000W each"},null,null,{"$f":"IF(SalesContractPmt2Note>0,SalesContractPmt2Note&\" (\"&FIXED(SalesContractPmt2*100,0)&\"%)\",\"\")","v":"1st SAC Payment (36%)"},null,{"$f":"SalesContractPmt2Amt","v":35687.68735271848},{"$f":"IF(SalesContractPmt2Note>0,SalesContractPmt2Date,\"\")","v":"2010-03-26"}]
[null,null,null,"Standard Components:",null,null,{"$f":"IF(SalesContractPmt3Note>0,SalesContractPmt3Note&\" (\"&FIXED(SalesContractPmt3*100,0)&\"%)\",\"\")","v":"Upon delivery of materials to the jobsite (40%)"},null,{"$f":"SalesContractPmt3Amt","v":39662.364705641608},{"$f":"IF(SalesContractPmt3Note>0,SalesContractPmt3Date,\"\")","v":"2010-06-18"}]
[null,null,null,"Racking and mounting components per Uniform Building Code",null,null,{"$f":"IF(SalesContractPmt4Note>0,SalesContractPmt4Note&\" (\"&FIXED(SalesContractPmt4*100,0)&\"%)\",\"\")","v":" (5%)"},null,{"$f":"SalesContractPmt4Amt","v":4957.7955882052011},{"$f":"IF(SalesContractPmt4Note>0,SalesContractPmt4Date,\"\")","v":"2010-06-25"}]
[null,null,null,"AC and DC disconnects per National Electric Code and Utility",null,null,{"$f":"IF(SalesContractPmt5Note>0,SalesContractPmt5Note&\" (\"&FIXED(SalesContractPmt5*100,0)&\"%)\",\"\")","v":" (8%)"},null,{"$f":"SalesContractPmt5Amt","v":7932.4729411283206},{"$f":"IF(SalesContractPmt5Note>0,SalesContractPmt5Date,\"\")","v":"2010-07-16"}]
[null,null,null,"Wiring, conduit, and overcurrent protection per National Electric Code",null,null,{"$f":"SalesContractPmt6Note&\" (\"&FIXED(SalesContractPmt6*100,0)&\"%)\"","v":"Upon municipal building/electrical inspection* (10%)"},null,{"$f":"SalesContractPmt6Amt","v":9915.5911764104021},{"$f":"IF(SalesContractPmt6Note>0,SalesContractPmt6Date,\"\")","v":"2010-07-30"}]
[null,null,null,"Roofing sealant or flashings as needed",null,null,"Total Sale Price**:","Total Sale Price**:",{"$f":"SUM(I33:I38)","v":99155.911764104007}]
[]
[]
[null,null,null,null,null,null,"Time for Completion:"]
[null,null,null,"Additional Components:",null,null,"The work to be performed by Contractor pursuant to this Agreement shall be commenced "]
[null,null,null,null,null,null,"within ________ days from this date or  approximately on:",null,null,{"$f":"J35","v":"2010-06-18"}]
[null,null,null,null,null,null,"and shall be substantially completed within 14 days or approximately on:",null,null,{"$f":"J38","v":"2010-07-30"}]
[]
[null,null,null,"Monitoring:"]
[null,null,null,"Standard monitoring display built into inverter, or ",null,null,"Construction Commencement Schedule:"]
[null,null,null,"remote monitoring in the case of micro inverters or AC modules",null,null,"Commencement of work shall be defined as"]
[null,null,null,null,null,null,"  X    Delivery of material to site, or"]
[null,null,null,null,null,null,"____ __________________________________________________________"]
[null,null,null,"Standard Labor:"]
[null,null,null,"Design system and secure basic building or electrical permit",null,null,"Contractor's failure to substantially commence work without lawful excuse, within twenty"]
[null,null,null,"(Architectural, planning commission or other reviews are extra)",null,null,"(20) days from the date specified above is a violation of the Contractors License Law."]
[null,null,null,"Install specified system in good workman like manner"]
[null,null,null,"Complete and submit utility interconnection documents",null,null,"Additional Contract Provisions:"]
[null,null,null,"Coordinate building, electrical and utility inspections",null,null,{"$f":"IF(SalesContractProvision1<>\"1. \",SalesContractProvision1,\"\")","v":"1. All payments are due Net 10 days. 1% interest per month carrying charge."}]
[null,null,null,"Additional Work:",null,null,{"$f":"IF(SalesContractProvision2<>\"2. \",SalesContractProvision2,\"\")","v":"2. *System Completion occurs upon building or electrical inspectors permit signoff. Utility inspection "}]
[null,null,null,{"$f":"IF(CostAllow4<>0, CostAllow4Label&\" for $\"&CostAllow4,\"\")","v":"Allowance 4 (edit this text) for $700"},null,null,{"$f":"IF(SalesContractProvision3<>\"3. \",SalesContractProvision3,\"\")","v":"3. **Installer receives rebate as one of the final payments"}]
[null,null,null,{"$f":"IF(CostAllow5<>0, CostAllow5Label&\" for $\"&CostAllow5,\"\")","v":"Allowance 5 (edit this text) for $800"},null,null,{"$f":"IF(SalesContractProvision4<>\"4. \",SalesContractProvision4,\"\")","v":"4. Quoted price does not include permit or electric utility fees"}]
[null,null,null,null,null,null,{"$f":"IF(SalesContractProvision5<>\"5. \",SalesContractProvision5,\"\")","v":"5. This PV system includes a/the 10 year warranty for no cost repair or replacement of the system or system components, including any associated labor as specified in the California Solar Initiative Handbook applicable at the date of this contract."}]
[null,null,null,null,null,null,{"$f":"IF(SalesContractProvision6<>\"6. \",SalesContractProvision6,\"\")","v":"6."}]
[null,null,null,"ALLOWANCES: "]
[null,null,null,"The following items or specific prices as indicated are included in the contract price as allowances."]
[null,null,null,"The contract price shall be adjusted based upon actual amounts rather than estimated amounts herein:"]
[null,null,null,{"$f":"IF(CostAllow1<>0, \"_X_ none or  (1) \"&CostAllow1Label&\" for $\"&CostAllow1, \"\")","v":"_X_ none or  (1) Travel for $500"}]
[null,null,null,{"$f":"IF(CostAllow2<>0, \"(2) \"&CostAllow2Label&\" for $\"&CostAllow2,\"\")","v":"(2) Monitoring for $600"}]
[null,null,null,{"$f":"IF(CostAllow3<>0, \"(3) \"&CostAllow3Label&\" for $\"&CostAllow3,\"\")","v":""}]
[]
[null,null,null,{"$f":"\"This quotation price is valid for \"&SalesContractDaysValid&\" days from the above date, quoted schedule is valid for 3 days.\"","v":"This quotation price is valid for 14 days from the above date, quoted schedule is valid for 3 days."}]
[null,null,null,null,null,null,"Salesperson Signature:",null,null,"Date:"]
[]
[null,null,null,"If the customer decides to purchase the goods and services outlined above, this document shall become part of the Agreement for Supply and Installation"]
[null,null,null,"of a Renewable Energy Power System which specifies additional terms and boilerplate consumer rights as part of a Home Improvement Contract."]
[null,null,null,null,null,null,"Customer Acceptance Signature:",null,null,"Date:"]
[null,null,null,null,null,null,"(to be signed when customer decides to purchase)"]
[]
[]
[]
[null,null,null,null,null,null,"Notice of Right to Cancellation"]
[]
[null,null,null,null,"Date of Transaction: __________________________"]
[]
[null,null,null,{"$f":"\"You have entered into a transaction which may result in a lien, mortgage, or other security interest on your home. You have a legal right under Federal law to cancel this transaction, if you \"&\"desire to do so, without any penalty or obligation, within three business days from the above date, or any later date on which all material disclosures required under the Truth in Lending Act \"&\"have been given to you. If you so cancel the transaction, any lien, mortgage, or any other security interest on your home arising from this transaction is automatically void.\"","v":"You have entered into a transaction which may result in a lien, mortgage, or other security interest on your home. You have a legal right under Federal law to cancel this transaction, if you desire to do so, without any penalty or obligation, within three business days from the above date, or any later date on which all material disclosures required under the Truth in Lending Act have been given to you. If you so cancel the transaction, any lien, mortgage, or any other security interest on your home arising from this transaction is automatically void."}]
[null,null,null,{"$f":"\"Any property traded in, any payments made by you under the contract or sale, and any negotiable instrument executed by you will be returned within 10 days following receipt by the seller of \"&\"your cancellation notice.If you cancel, you must make available to the seller at your residence, in substantially as good condition as when received, any goods delivered to you under this \"&\"contract or sale, or you may, if you wish, comply with the instructions of the seller regarding the return shipment of the goods at the seller’s expense and risk.\"","v":"Any property traded in, any payments made by you under the contract or sale, and any negotiable instrument executed by you will be returned within 10 days following receipt by the seller of your cancellation notice.If you cancel, you must make available to the seller at your residence, in substantially as good condition as when received, any goods delivered to you under this contract or sale, or you may, if you wish, comply with the instructions of the seller regarding the return shipment of the goods at the seller’s expense and risk."}]
[null,null,null,{"$f":"\"If you do make the goods available to the seller and the seller does not pick them up within 20 days of the date of your notice of cancellation, you may retain or dispose of the goods without \"&\"any further obligation. If you fail to make the goods available to the seller, or if you agree to return the goods to the seller and fail to do so, then you remain liable for performance of \"&\"all obligations under the contract. To cancel this transaction, mail or deliver a signed and dated copy of this cancellation notice, or any other written notice of cancellation, or send a telegram to:\"","v":"If you do make the goods available to the seller and the seller does not pick them up within 20 days of the date of your notice of cancellation, you may retain or dispose of the goods without any further obligation. If you fail to make the goods available to the seller, or if you agree to return the goods to the seller and fail to do so, then you remain liable for performance of all obligations under the contract. To cancel this transaction, mail or deliver a signed and dated copy of this cancellation notice, or any other written notice of cancellation, or send a telegram to:"}]
[null,null,null,null,{"$f":"VendName","v":"Acme Solar"}]
[null,null,null,null,{"$f":"VendAdd1&\" \"&VendAdd2&\", \"&VendCity&\", \"&VendState&\" \"&VendZip","v":"123 Ship Drive, Bldg 3 , Sunnyvale, CA 94086"}]
[]
[null,null,null,null,"not later than midnight of __________________________"]
[null,null,null,null,null,null,"(date)"]
[]
[null,null,null,"I hereby cancel this transaction ______________________"]
[null,null,null,null,"(date)       "]
[]
[null,null,null,"Customer Signature:___________________________________________________________________"]
[null,null,null,null,null,null," (to be signed only in the event of cancellation)"]
[]
[]
[]
[]
[null,null,null,{"$f":"\"Contractors are required by law to be licensed and regulated by the Contractor's State License Board. Any questions concerning a contractor may be referred to the registrar of the board whose address is:\"","v":"Contractors are required by law to be licensed and regulated by the Contractor's State License Board. Any questions concerning a contractor may be referred to the registrar of the board whose address is:"}]
[null,null,null,null,null,null,"Contractor's State License Board"]
[null,null,null,null,null,null,"9821 Business Park Dr."]
[null,null,null,null,null,null,"Sacramento, CA 95827"]
[]
[null,null,null,{"$f":"\"Receipt is herewith acknowledged of the foregoing Notice, the undersigned Customers having received copied thereof, and been apprised of the fact that after the three day period is over, \"&\"the Contract is binding and that failure to pay according to the terms of the Contract may result in a lien and or mortgage foreclosure.\"","v":"Receipt is herewith acknowledged of the foregoing Notice, the undersigned Customers having received copied thereof, and been apprised of the fact that after the three day period is over, the Contract is binding and that failure to pay according to the terms of the Contract may result in a lien and or mortgage foreclosure."}]
[]
[null,null,null,"The above rights have been read and understood by the undersigned Customer(s)"]
[null,null,null,"this_________________day of ________________, 20____"]
[]
[null,null,null,"Customer Signature:___________________________________________________________________"]
[null,null,null,null,null,null," (to be signed at the time of sale)"]
[]
[]
[]
[]
[]
[]
[null,null,null,null,null,null,null,null,null,null,null,null,null,null,null,null,null,2.0099999999999998,null,null,null,null,null,null,null,{"$f":"VendName","v":"Acme Solar"}]
[null,null,null,null,null,null,null,null,null,null,null,null,null,null,null,null,null,null,null,null,null,null,null,null,null,{"$f":"VendAdd1&IF(VendAdd2>0, \", \"&VendAdd2,\"\")","v":"123 Ship Drive, Bldg 3, "}]
[null,null,null,null,null,null,null,null,null,null,null,null,null,null,null,null,null,null,null,null,null,null,null,null,null,{"$f":"VendCity&\", \"&VendState&\" \"&VendZip","v":"Sunnyvale, CA 94086"}]
[null,null,null,null,null,null,null,null,null,null,null,null,null,null,null,null,null,null,null,null,null,null,null,null,null,{"$f":"\"Phone: \"&IF(VendPhMain>0,VendPhMain,VendSalesFullPh)","v":"Phone: (123) 123 1234"}]
[null,null,null,null,null,null,null,null,null,null,null,null,null,null,null,null,null,null,null,null,null,null,null,null,null,{"$f":"\"Email: \"&IF(LEN(VendEmailMain)>0,VendEmailMain, VendSalesEmail)","v":"Email: fulluser@acmesolar.com"}]
[null,null,null,null,null,null,null,null,null,null,null,null,null,null,null,null,null,null,null,null,null,null,null,null,null,{"$f":"IF(LEN(VendWeb)>0,\"Web: \"&VendWeb, \"\")","v":""}]
[]
[null,null,null,null,null,null,null,null,null,null,null,null,null,null,null,null,null,null,null,null,null,null,null,null,null,"SOLAR HOME IMPROVEMENT AGREEMENT - RESIDENTIAL"]
[]
[]
[null,null,null,null,null,null,null,null,null,null,null,null,null,null,null,null,null,null,null,null,"Customer:",null,null,null,null,"Seller & Installer (The Contractor):",null,null,"Installing Contractor:"]
[null,null,null,null,null,null,null,null,null,null,null,null,null,null,null,null,null,null,null,null,{"$f":"CustsFullName","v":"Jackie Sun and Jilla Sky"},null,null,null,null,{"$f":"VendName","v":"Acme Solar"},null,null,{"$f":"InstallerName","v":""}]
[null,null,null,null,null,null,null,null,null,null,null,null,null,null,null,null,null,null,null,null,{"$f":"CustFullMailAddr","v":"133 Pelhamdale Ave, #1"},null,null,null,null,{"$f":"VendAddrSingleLine","v":"123 Ship Drive, Bldg 3, Sunnyvale, CA 94086"},null,null,{"$f":"InstallerAddrSingleLine","v":""}]
[null,null,null,null,null,null,null,null,null,null,null,null,null,null,null,null,null,null,null,null,{"$f":"CustFullMailCityStZip","v":"Pelham, CA  10803"},null,null,null,null,{"$f":"\"Phone: \"&IF(VendPhMain>0,VendPhMain,VendSalesFullPh)","v":"Phone: (123) 123 1234"},null,null,{"$f":"\"Phone: \"&IF(InstallerPhone>0,InstallerPhone, InstallerContactPh)","v":"Phone: "}]
[null,null,null,null,null,null,null,null,null,null,null,null,null,null,null,null,null,null,null,null,null,null,null,null,null,{"$f":"\"License Number: \"&VendStLicNum","v":"License Number: Cont. Lic. #"},null,null,{"$f":"\"License Number: \"&InstallerStLicNum","v":"License Number: "}]
[]
[null,null,null,null,null,null,null,null,null,null,null,null,null,null,null,null,null,null,null,null,"Installation Location:",null,null,null,null,"Salesperson:"]
[null,null,null,null,null,null,null,null,null,null,null,null,null,null,null,null,null,null,null,null,{"$f":"CustFullSiteAddr","v":"133 Pelhamdale Ave, #1"},null,null,null,null,{"$f":"VendSalesperson","v":"Ship Full User"}]
[null,null,null,null,null,null,null,null,null,null,null,null,null,null,null,null,null,null,null,null,{"$f":"CustFullSiteCityStZip","v":"Pelham, CA  10803"},null,null,null,null,"License Number: ___________________"]
[]
[]
[null,null,null,null,null,null,null,null,null,null,null,null,null,null,null,null,null,null,null,null,{"$f":"\"This Solar Home Improvement Agreement (this “Agreement”) is between \"&VendName&\" (“we” or “The Contractor”) and you (“You”, “Buyer”, “Owner” or “Customer”), collectively “The Parties”, for the sale and installation of the solar system described below (the “Project”) at your home  (the “Property” or your “Home”). \"&\"We look forward to helping you produce clean, renewable solar energy at your Home. The Parties agree  as follows:\"","v":"This Solar Home Improvement Agreement (this “Agreement”) is between Acme Solar (“we” or “The Contractor”) and you (“You”, “Buyer”, “Owner” or “Customer”), collectively “The Parties”, for the sale and installation of the solar system described below (the “Project”) at your home  (the “Property” or your “Home”). We look forward to helping you produce clean, renewable solar energy at your Home. The Parties agree  as follows:"}]
[]
[]
[null,null,null,null,null,null,null,null,null,null,null,null,null,null,null,null,null,null,null,null,"KEY TERMS AND CONDITIONS"]
[]
[null,null,null,null,null,null,null,null,null,null,null,null,null,null,null,null,null,null,null,null,"1. DESCRIPTION OF THE PROJECT AND DESCRIPTION OF THE SIGNIFICANT MATERIALS TO BE USED AND EQUIPMENT TO BE "]
[null,null,null,null,null,null,null,null,null,null,null,null,null,null,null,null,null,null,null,null,"INSTALLED"]
[]
[null,null,null,null,null,null,null,null,null,null,null,null,null,null,null,null,null,null,null,null,null,null,null,null,null,"ITEM"]
[]
[null,null,null,null,null,null,null,null,null,null,null,null,null,null,null,null,null,null,null,null,null,null,null,{"$f":"\"Meter Number for this site : \"","v":"Meter Number for this site : "},null,{"$f":"CustUtilMeterNo","v":"M-q234"}]
[]
[null,null,null,null,null,null,null,null,null,null,null,null,null,null,null,null,null,null,null,null,null,null,null,"Photovoltaic System :",null,{"$f":"FIXED(SysSizeSTC,2)&\" kW DC (STC)\"","v":"10.40 kW DC (STC)"}]
[]
[null,null,null,null,null,null,null,null,null,null,null,null,null,null,null,null,null,null,null,null,null,null,null,"Modules : ",null,{"$f":"SysModule&\" modules  # ( \"&SysModCnt&\" )\"","v":"Sanyo Electric HIT-N215A01 modules  # ( 33 )"}]
[null,null,null,null,null,null,null,null,null,null,null,null,null,null,null,null,null,null,null,null,null,null,null,null,null,{"$f":"IF(SysModCnt2>0,\" \"&SysModule2&\" modules  # ( \"&SysModCnt2&\" )\",\"\")","v":" BP Solar BP3220N modules  # ( 15 )"}]
[]
[null,null,null,null,null,null,null,null,null,null,null,null,null,null,null,null,null,null,null,null,null,null,null,"Inverter(s) :",null,{"$f":"SysInverter&IF(SysInvCnt>1,\" inverters\",\" inverter\")&\"  # ( \"&SysInvCnt&\" )\"","v":"SMA America SB3000US (240V) inverters  # ( 2 )"}]
[null,null,null,null,null,null,null,null,null,null,null,null,null,null,null,null,null,null,null,null,null,null,null,null,null,{"$f":"IF(SysModCnt2>0,SysInverter2&\" Inverter\"&IF(SysInvCnt2>1,\"s\",\"\"),\"\")&IF(SysModCnt2>0,\"  # ( \"&SysInvCnt2&\" )\",\"\")","v":"SMA America SB7000US (240V) Inverter  # ( 1 )"}]
[]
[null,null,null,null,null,null,null,null,null,null,null,null,null,null,null,null,null,null,null,null,null,null,null,"Mounting System "]
[]
[null,null,null,null,null,null,null,null,null,null,null,null,null,null,null,null,null,null,null,null,null,null,null,"System Installation "]
[]
[null,null,null,null,null,null,null,null,null,null,null,null,null,null,null,null,null,null,null,null,"2. CONTRACT PRICE"]
[null,null,null,null,null,null,null,null,null,null,null,null,null,null,null,null,null,null,null,null,{"$f":"\"The Contract Price for the Project is \"&\"$\"&FIXED(IF(ShowDiscount,CostGross - CostDiscount,CostGross),0)&\".00 before any incentives.\"","v":"The Contract Price for the Project is $109,663.00 before any incentives."}]
[null,null,null,null,null,null,null,null,null,null,null,null,null,null,null,null,null,null,null,null,"The Contract Price is subject to any change orders agreed to in writing by both parties."]
[]
[null,null,null,null,null,null,null,null,null,null,null,null,null,null,null,null,null,null,null,null,"System Pricing Details"]
[null,null,null,null,null,null,null,null,null,null,null,null,null,null,null,null,null,null,null,null,{"$f":"\"Installed System Price including Sales Tax & Shipping\"&IF(SysRebate<0,\" (before Rebate)\",\"\")","v":"Installed System Price including Sales Tax & Shipping (before Rebate)"},null,null,null,null,{"$f":"IF(ShowDiscount,CostGross - CostDiscount,CostGross)","v":109662.5107904}]
[null,null,null,null,null,null,null,null,null,null,null,null,null,null,null,null,null,null,null,null,{"$f":"IF(AND(ShowDiscount,CostDiscountBasis=\"Percent\",CostDiscount<>0),VendName&\" \"&ROUND(-CostDiscountPct*100,0) &\"% Discount\", IF(AND(ShowDiscount,CostDiscountBasis=\"Dollar\",CostDiscount<>0),VendName&\" Discount\", IF(OR(NOT(ShowDiscount),CostDiscount = 0),\"\")))","v":"Acme Solar 3% Discount"},null,null,null,null,{"$f":"IF(ShowDiscount,CostDiscount,\" \")","v":-3289.875323712}]
[null,null,null,null,null,null,null,null,null,null,null,null,null,null,null,null,null,null,null,null,{"$f":"IF(SysRebate<>0,\"Estimated Buy-Down Program Rebate to be paid to the \"&SalesContractRebateRecipient,\"\")","v":"Estimated Buy-Down Program Rebate to be paid to the installer"},null,null,null,null,{"$f":"IF(SysRebate<>0, SysRebate, \"\")","v":-7216.7237025840013}]
[null,null,null,null,null,null,null,null,null,null,null,null,null,null,null,null,null,null,null,null,"Contract Price Net to Customer",null,null,null,null,{"$f":"CostAfterRebate","v":99155.911764104007}]
[]
[null,null,null,null,null,null,null,null,null,null,null,null,null,null,null,null,null,null,null,null,"3. INSTALLATION TIMELINE"]
[null,null,null,null,null,null,null,null,null,null,null,null,null,null,null,null,null,null,null,null,"The Contractor will install the System within a reasonable amount of time after we sign this Agreement but no later than three (3) months from the date of this Agreement, which shall be of the essence.  When The Contractor completes installation of the solar panels and the inverter(s), then substantial completion of the work to be performed under this Agreement shall have occurred:"]
[]
[null,null,null,null,null,null,null,null,null,null,null,null,null,null,null,null,null,null,null,null,"Approximate Start Date:  ",null,null,null,{"$f":"IF(SalesContractPmt3Note>0,SalesContractPmt3Date,\"\")","v":"2010-06-18"}]
[]
[null,null,null,null,null,null,null,null,null,null,null,null,null,null,null,null,null,null,null,null,"Approximate Completion Date:  ",null,null,null,{"$f":"IF(SalesContractPmt6Note>0,SalesContractPmt6Date,\"\")","v":"2010-07-30"}]
[]
[null,null,null,null,null,null,null,null,null,null,null,null,null,null,null,null,null,null,null,null,"This performance timeline is an estimate and may be adjusted as provided in this Agreement, including delays due to late payments or unforeseen conditions."]
[]
[]
[null,null,null,null,null,null,null,null,null,null,null,null,null,null,null,null,null,null,null,null,{"$f":"TEXT(TODAY(), \"mmmm d, yyyy\")","v":"January 28, 2026"},null,null,null,null,"Solar Home Improvement Agreement ",null,null,null,null,"Page 1 of 13"]
[null,null,null,null,null,null,null,null,null,null,null,null,null,null,null,null,null,null,null,null,null,null,null,null,null,{"$f":"\"Copyright @ \"&VendName&\" and/or OnGrid Solar. All Rights Reserved.\"","v":"Copyright @ Acme Solar and/or OnGrid Solar. All Rights Reserved."}]
[]
[]
[]
[]
[]
[]
[]
[]
[null,null,null,null,null,null,null,null,null,null,null,null,null,null,null,null,null,2.02,null,null,"4. SCHEDULE OF PAYMENTS"]
[]
[null,null,null,null,null,null,null,null,null,null,null,null,null,null,null,null,null,null,null,null,"Date",null,"Timing",null,null,"Amount",null,"Notes"]
[]
[null,null,null,null,null,null,null,null,null,null,null,null,null,null,null,null,null,null,null,null,{"$f":"IF(SalesContractPmt1Note>0,SalesContractPmt1Date,\"\")","v":"2010-03-12"},null,{"$f":"SalesContractPmt1Note&\" (10% or $1,000)\"","v":"Initial Deposit (10% or $1,000)"},null,null,{"$f":"SalesContractPmt1Amt","v":1000}]
[null,null,null,null,null,null,null,null,null,null,null,null,null,null,null,null,null,null,null,null,{"$f":"IF(SalesContractPmt2Note>0,SalesContractPmt2Date,\"\")","v":"2010-03-26"},null,{"$f":"IF(SalesContractPmt2Note>0,SalesContractPmt2Note&\" (\"&FIXED(SalesContractPmt2*100,0)&\"%)\",\"\")","v":"1st SAC Payment (36%)"},null,null,{"$f":"SalesContractPmt2Amt","v":35687.68735271848}]
[null,null,null,null,null,null,null,null,null,null,null,null,null,null,null,null,null,null,null,null,{"$f":"IF(SalesContractPmt3Note>0,SalesContractPmt3Date,\"\")","v":"2010-06-18"},null,{"$f":"IF(SalesContractPmt3Note>0,SalesContractPmt3Note&\" (\"&FIXED(SalesContractPmt3*100,0)&\"%)\",\"\")","v":"Upon delivery of materials to the jobsite (40%)"},null,null,{"$f":"SalesContractPmt3Amt","v":39662.364705641608}]
[null,null,null,null,null,null,null,null,null,null,null,null,null,null,null,null,null,null,null,null,{"$f":"IF(SalesContractPmt4Note>0,SalesContractPmt4Date,\"\")","v":"2010-06-25"},null,{"$f":"IF(SalesContractPmt4Note>0,SalesContractPmt4Note&\" (\"&FIXED(SalesContractPmt4*100,0)&\"%)\",\"\")","v":" (5%)"},null,null,{"$f":"SalesContractPmt4Amt","v":4957.7955882052011}]
[null,null,null,null,null,null,null,null,null,null,null,null,null,null,null,null,null,null,null,null,{"$f":"IF(SalesContractPmt5Note>0,SalesContractPmt5Date,\"\")","v":"2010-07-16"},null,{"$f":"IF(SalesContractPmt5Note>0,SalesContractPmt5Note&\" (\"&FIXED(SalesContractPmt5*100,0)&\"%)\",\"\")","v":" (8%)"},null,null,{"$f":"SalesContractPmt5Amt","v":7932.4729411283206}]
[null,null,null,null,null,null,null,null,null,null,null,null,null,null,null,null,null,null,null,null,{"$f":"IF(SalesContractPmt6Note>0,SalesContractPmt6Date,\"\")","v":"2010-07-30"},null,{"$f":"SalesContractPmt6Note&\" (\"&FIXED(SalesContractPmt6*100,0)&\"%)\"","v":"Upon municipal building/electrical inspection* (10%)"},null,null,{"$f":"SalesContractPmt6Amt","v":9915.5911764104021}]
[]
[null,null,null,null,null,null,null,null,null,null,null,null,null,null,null,null,null,null,null,null,"Total Sale Price **",null,null,null,null,{"$f":"SUM(Z199:Z205)","v":99155.911764104007}]
[]
[null,null,null,null,null,null,null,null,null,null,null,null,null,null,null,null,null,null,null,null,"Additional Contract Provisions:"]
[null,null,null,null,null,null,null,null,null,null,null,null,null,null,null,null,null,null,null,null,{"$f":"IF(SalesContractProvision1<>1,SalesContractProvision1,\"\")","v":"1. All payments are due Net 10 days. 1% interest per month carrying charge."}]
[null,null,null,null,null,null,null,null,null,null,null,null,null,null,null,null,null,null,null,null,{"$f":"IF(SalesContractProvision2<>2,SalesContractProvision2,\"\")","v":"2. *System Completion occurs upon building or electrical inspectors permit signoff. Utility inspection "}]
[null,null,null,null,null,null,null,null,null,null,null,null,null,null,null,null,null,null,null,null,{"$f":"IF(SalesContractProvision3<>3,SalesContractProvision3,\"\")","v":"3. **Installer receives rebate as one of the final payments"}]
[null,null,null,null,null,null,null,null,null,null,null,null,null,null,null,null,null,null,null,null,{"$f":"IF(SalesContractProvision4<>4,SalesContractProvision4,\"\")","v":"4. Quoted price does not include permit or electric utility fees"}]
[null,null,null,null,null,null,null,null,null,null,null,null,null,null,null,null,null,null,null,null,{"$f":"IF(SalesContractProvision5<>5,SalesContractProvision5,\"\")","v":"5. This PV system includes a/the 10 year warranty for no cost repair or replacement of the system or system components, including any associated labor as specified in the California Solar Initiative Handbook applicable at the date of this contract."}]
[null,null,null,null,null,null,null,null,null,null,null,null,null,null,null,null,null,null,null,null,{"$f":"IF(SalesContractProvision6<>6,SalesContractProvision6,\"\")","v":"6."}]
[]
[]
[]
[null,null,null,null,null,null,null,null,null,null,null,null,null,null,null,null,null,null,null,null,"(BUYER’S INITIALS)      _________________"]
[]
[]
[null,null,null,null,null,null,null,null,null,null,null,null,null,null,null,null,null,null,null,null,"5. NOTICE OF RIGHT TO CANCEL"]
[null,null,null,null,null,null,null,null,null,null,null,null,null,null,null,null,null,null,null,null,"YOU MAY CANCEL THIS AGREEMENT AT ANY TIME PRIOR TO MIDNIGHT OF THE THIRD BUSINESS DAY AFTER THE DATE YOU SIGN THIS AGREEMENT.  SEE THE ATTACHED NOTICE OF CANCELLATION FORM ATTACHED AS EXHIBIT 1 FOR AN EXPLANATION OF THIS RIGHT."]
[]
[]
[null,null,null,null,null,null,null,null,null,null,null,null,null,null,null,null,null,null,null,null,"Owner's Name :",null,{"$f":"CustFullName","v":"Jackie Sun"},null,null,null,"Solar Home Improvement Agreement"]
[null,null,null,null,null,null,null,null,null,null,null,null,null,null,null,null,null,null,null,null,null,null,null,null,null,null,{"$f":"VendName","v":"Acme Solar"}]
[]
[null,null,null,null,null,null,null,null,null,null,null,null,null,null,null,null,null,null,null,null,"Signature :",null,null,null,null,null,"Signature :"]
[]
[null,null,null,null,null,null,null,null,null,null,null,null,null,null,null,null,null,null,null,null,"Date :",null,null,null,null,null,"Date :"]
[]
[]
[null,null,null,null,null,null,null,null,null,null,null,null,null,null,null,null,null,null,null,null,"Co-Owner's Name :"]
[null,null,null,null,null,null,null,null,null,null,null,null,null,null,null,null,null,null,null,null,"(if any)",null,{"$f":"IF(CustSpouseFirstName>0, CustSpouseFirstName&\" \"&CustSpouseLastName, \"\")","v":"Jilla Sky"}]
[]
[]
[null,null,null,null,null,null,null,null,null,null,null,null,null,null,null,null,null,null,null,null,"Signature :"]
[]
[null,null,null,null,null,null,null,null,null,null,null,null,null,null,null,null,null,null,null,null,"Date :"]
[]
[]
[]
[]
[]
[]
[]
[]
[]
[]
[]
[]
[]
[]
[]
[]
[]
[]
[]
[]
[]
[]
[]
[null,null,null,null,null,null,null,null,null,null,null,null,null,null,null,null,null,null,null,null,{"$f":"TEXT(TODAY(), \"mmmm d, yyyy\")","v":"January 28, 2026"},null,null,null,null,"Solar Home Improvement Agreement ",null,null,null,null,"Page 2 of 13"]
[null,null,null,null,null,null,null,null,null,null,null,null,null,null,null,null,null,null,null,null,null,null,null,null,null,{"$f":"\"Copyright @ \"&VendName&\" and/or OnGrid Solar. All Rights Reserved.\"","v":"Copyright @ Acme Solar and/or OnGrid Solar. All Rights Reserved."}]
[]
[]
[null,null,null,null,null,null,null,null,null,null,null,null,null,null,null,null,null,null,null,null,null,null,null,null,null,"PAGE ON RIGHT AND PAGE BELOW"]
[]
[null,null,null,null,null,null,null,null,null,null,null,null,null,null,null,null,null,null,null,null,null,null,null,null,null,null,null,null,null,null,null,null,null,null,null,null,null,"PAGE ON LEFT"]
[]
[]
[]
[]
[null,null,null,null,null,null,null,null,null,null,null,null,null,null,null,null,null,null,null,null,null,null,null,null,null,null,null,null,null,null,null,null,null,null,2.0299999999999998,null,"You are entitled to a fully executed copy of this Agreement, signed by both You and The Contractor, before any work may be started. "]
[]
[null,null,null,null,null,null,null,null,null,null,null,null,null,null,null,null,null,null,null,null,null,null,null,null,null,null,null,null,null,null,null,null,null,null,null,null,"GENERAL TERMS AND CONDITIONS"]
[null,null,null,null,null,null,null,null,null,null,null,null,null,null,null,null,null,null,null,null,null,null,null,null,null,null,null,null,null,null,null,null,null,null,null,null,"  "]
[null,null,null,null,null,null,null,null,null,null,null,null,null,null,null,null,null,null,null,null,null,null,null,null,null,null,null,null,null,null,null,null,null,null,null,null,"1.","CHANGES, PERMITS, REBATES, INCENTIVES"]
[]
[null,null,null,null,null,null,null,null,null,null,null,null,null,null,null,null,null,null,null,null,null,null,null,null,null,null,null,null,null,null,null,null,null,null,null,null,null,"Both parties will have the right to terminate this Agreement, without penalty or fee, if The Contractor determines after the engineering site audit of your Home that it has misestimated by more than ten percent (10%) any of (i) the System size, (ii) the System’s total cost or (iii) the System’s annual production.  Such termination right will expire at the earlier of (i) one (1) week prior to your scheduled System installation date and (ii) one (1) month after we inform you in writing of the revised size, cost or production estimate.  Any changes to the System will be documented in a written amendment to this Agreement signed by both you and The Contractor.  "]
[]
[null,null,null,null,null,null,null,null,null,null,null,null,null,null,null,null,null,null,null,null,null,null,null,null,null,null,null,null,null,null,null,null,null,null,null,null,null,"You acknowledge that the System equipment and materials we will furnish and install are subject to cost increases.  We will hold the Contract Price for three (3) months after the date of this Agreement.  After three (3) months, if the cost of any System equipment or material rises by any unusual amount because of circumstances beyond The Contractor’s control, including but not limited to market price fluctuation or a site audit that reveals the need for additional materials or labor, then The Contractor shall have the right to present you with a change order for the System equipment with a new price. You will have the right to accept or reject this new price and get your deposit, if any, back. If you do not accept the new price, The Contractor shall have the right to terminate this Agreement and issue you a full refund, upon which the parties shall have no further obligations to one another."]
[]
[null,null,null,null,null,null,null,null,null,null,null,null,null,null,null,null,null,null,null,null,null,null,null,null,null,null,null,null,null,null,null,null,null,null,null,null,null,"The Contractor will obtain any necessary permits.  You will pay The Contractor for such permits and for any taxes or assessments required by federal, state or local governments or related regulatory agencies or utilities. The Contractor shall not be responsible for delays in work due to the actions of these permitting and regulatory agencies or their employees"]
[]
[null,null,null,null,null,null,null,null,null,null,null,null,null,null,null,null,null,null,null,null,null,null,null,null,null,null,null,null,null,null,null,null,null,null,null,null,"2.","SCHEDULE OF PROGRESS PAYMENTS "]
[]
[null,null,null,null,null,null,null,null,null,null,null,null,null,null,null,null,null,null,null,null,null,null,null,null,null,null,null,null,null,null,null,null,null,null,null,null,null,"The schedule of progress payments (see Key Terms and Conditions cover sheet) must specifically describe each phase of work, including the type and amount of work or services scheduled to be supplied in each phase, along with the amount of each proposed progress payment.   IT IS AGAINST THE LAW FOR A CONTRACTOR TO COLLECT PAYMENT FOR WORK NOT YET COMPLETED, OR FOR MATERIALS NOT YET DELIVERED.  HOWEVER, A CONTRACTOR MAY REQUIRE A DOWNPAYMENT.  Buyer may, at its discretion, issue payment to Contractor via joint check with any of Contractor’s subcontractors or suppliers.   "]
[]
[null,null,null,null,null,null,null,null,null,null,null,null,null,null,null,null,null,null,null,null,null,null,null,null,null,null,null,null,null,null,null,null,null,null,null,null,null,"Note about Extra Work and Change Orders.  Extra Work and Change Orders become part of the contract once the order is prepared in writing and signed by the parties prior to commencement of any work covered by the new change order.  The order must describe (i) the scope of the extra work or change, (ii) the cost to be added or subtracted from the contract; and (iii) the effect the order will have on the schedule of progress payments or the completion date. Notwithstanding this provision, the Contractor shall have the right to substitute System equipment without Buyer’s agreement, so long as that substitution adds no extra cost to the project and does not materially affect the System’s performance.  The Contractor’s failure to comply with the requirements of this paragraph does not preclude the recovery of compensation for work performed based on legal or equitable remedies designed to prevent unjust enrichment."]
[]
[null,null,null,null,null,null,null,null,null,null,null,null,null,null,null,null,null,null,null,null,null,null,null,null,null,null,null,null,null,null,null,null,null,null,null,null,"3.","PROPERTY CONDITIONS"]
[]
[null,null,null,null,null,null,null,null,null,null,null,null,null,null,null,null,null,null,null,null,null,null,null,null,null,null,null,null,null,null,null,null,null,null,null,null,null,"You will be responsible for the structural integrity of the location where the System is installed, including structural or electrical modifications necessary to prepare your Property for the System. You agree that The Contractor is not responsible for any known or unknown Property conditions.  Known Property conditions that you have decided not to repair or replace are listed in Exhibit 4. If you agree to make changes to the Property before we perform the Project, those changes shall be listed in Exhibit 3.  If you fail to make those changes before performance begins, then you shall be in default of this Agreement and The Contractor shall not be responsible for any performance delays."]
[]
[null,null,null,null,null,null,null,null,null,null,null,null,null,null,null,null,null,null,null,null,null,null,null,null,null,null,null,null,null,null,null,null,null,null,null,null,"4.","EXISTING CONDITIONS "]
[]
[null,null,null,null,null,null,null,null,null,null,null,null,null,null,null,null,null,null,null,null,null,null,null,null,null,null,null,null,null,null,null,null,null,null,null,null,null,"The Contractor is not responsible and bears no liability for the malfunctioning of existing electrical equipment at the Property, including but not limited to the main electrical service panel, any major electrical devices, or any other fuses or similar devices. "]
[]
[null,null,null,null,null,null,null,null,null,null,null,null,null,null,null,null,null,null,null,null,null,null,null,null,null,null,null,null,null,null,null,null,null,null,null,null,"5.","COST OR DELAY DUE TO UNFORESEEN CONDITIONS  "]
[]
[null,null,null,null,null,null,null,null,null,null,null,null,null,null,null,null,null,null,null,null,null,null,null,null,null,null,null,null,null,null,null,null,null,null,null,null,null,"The Contractor is not responsible for failures, delays or expenses related to unanticipated, unusual, or unforeseen conditions at the Property arising out of conditions beyond The Contractor’s reasonable control (all of which shall be considered “Force Majeure Events”). Performance times under this Agreement will be considered extended for a period of time equivalent to the time lost due to such conditions.  If The Contractor discovers unforeseen conditions requiring additional cost, then The Contractor shall present such costs to you and get your written approval before beginning or continuing performance.  Failure to provide such approval may result in The Contractor exercising its rights pursuant to Section 8 of this Agreement."]
[]
[]
[]
[]
[]
[]
[null,null,null,null,null,null,null,null,null,null,null,null,null,null,null,null,null,null,null,null,null,null,null,null,null,null,null,null,null,null,null,null,null,null,null,null,null,{"$f":"TEXT(TODAY(), \"mmmm d, yyyy\")&\"                                                                     Solar Home Improvement Agreement\"&\"                                                                        Page 3 of 13\"","v":"January 28, 2026                                                                     Solar Home Improvement Agreement                                                                        Page 3 of 13"}]
[null,null,null,null,null,null,null,null,null,null,null,null,null,null,null,null,null,null,null,null,null,null,null,null,null,null,null,null,null,null,null,null,null,null,null,null,null,{"$f":"\"Copyright @ \"&VendName&\" and/or OnGrid Solar. All Rights Reserved.\"","v":"Copyright @ Acme Solar and/or OnGrid Solar. All Rights Reserved."}]
[]
[]
[null,null,null,null,null,null,null,null,null,null,null,null,null,null,null,null,null,null,null,null,null,null,null,null,null,null,null,null,null,null,null,null,null,null,null,null,null,"PAGE ON LEFT AND PAGE BELOW"]
[]
[]
[]
[]
[]
[]
[null,null,null,null,null,null,null,null,null,null,null,null,null,null,null,null,null,null,null,null,null,null,null,null,null,"PAGE ON RIGHT AND PAGE ABOVE"]
[]
[]
[]
[]
[null,null,null,null,null,null,null,null,null,null,null,null,null,null,null,null,null,2.04,null,"6.","PROPERTY ACCESS "]
[]
[null,null,null,null,null,null,null,null,null,null,null,null,null,null,null,null,null,null,null,null,"You grant  to The Contractor and its employees, agents and contractors the right to reasonably access all of the Property as necessary for the purposes of (A) installing, constructing, operating, repairing, removing and replacing the System or making any additions to the System; (B) installing, using and maintaining electric lines and inverters and meters, necessary to interconnect the System to your electric system at the Property and/or to the utility’s electric distribution system; or (C) taking any other action reasonably necessary in connection with the construction, installation, operation, maintenance, removal or repair of the System."]
[]
[null,null,null,null,null,null,null,null,null,null,null,null,null,null,null,null,null,null,null,"7.","TITLE AND RISK OF LOSS "]
[]
[null,null,null,null,null,null,null,null,null,null,null,null,null,null,null,null,null,null,null,null,"Title to the Project shall transfer to you when we complete performance of the Project. After delivery, other than damage directly resulting from The Contractor’s actions, you bear risk of loss to the System for all causes of loss not covered by the System insurance policy (see Exhibit 6) and for all losses occurring after the end of the Warranty Period (see Exhibit 2).  "]
[]
[null,null,null,null,null,null,null,null,null,null,null,null,null,null,null,null,null,null,null,"8.","TERMINATION AND DEFAULT "]
[]
[null,null,null,null,null,null,null,null,null,null,null,null,null,null,null,null,null,null,null,null,"The Contractor may terminate this Agreement, upon seven (7) days written notice, for any material or non-material breach, for any failure of Buyer to agree to an appropriate change order, for any failure of Buyer to pay The Contractor any amount due, for any bankruptcy or financial distress of Buyer, or for any hindrance to The Contractor in the performance process. "]
[]
[null,null,null,null,null,null,null,null,null,null,null,null,null,null,null,null,null,null,null,"9.","REMEDIES UPON BUYER’S BREACH"]
[]
[null,null,null,null,null,null,null,null,null,null,null,null,null,null,null,null,null,null,null,null,"Without limiting any of The Contractor’s other rights and remedies, upon any breach by Buyer, including any failure of Buyer to pay The Contractor any amount due, The Contractor shall have the right to: (i) pursue a stop work order at the Property; (ii) prevent any more work from being done at the Property until the breach is cured and a bond is posted by the Buyer for any amounts payable under this Agreement; (iii) recover  all amounts due under this Agreement for services provided through the date of termination including interest (prime + 1% or such amount as allowed by law); Customer will have a 15 day grace period; (iv) remove  any Project materials or equipment from the Property; and (v) any other legal remedies including but not limited to mechanics liens or similar remedies."]
[]
[null,null,null,null,null,null,null,null,null,null,null,null,null,null,null,null,null,null,null,"10.","MECHANICS’ LIEN RELEASES  "]
[]
[null,null,null,null,null,null,null,null,null,null,null,null,null,null,null,null,null,null,null,null,"Upon satisfactory payment for any portion of the work performed, The Contractor shall, prior to any further payment, furnish to Buyer a full and unconditional release from any claim or mechanics’ lien pursuant to applicable law for that portion of the work for which payment has been made.  Please see Exhibit 5 for applicable lien notices and warnings required by law. "]
[]
[null,null,null,null,null,null,null,null,null,null,null,null,null,null,null,null,null,null,null,"11.","The Contractor’s INSURANCE"]
[]
[null,null,null,null,null,null,null,null,null,null,null,null,null,null,null,null,null,null,null,null,"a.  ","Commercial General Liability Insurance (CGL). The Contractor carries commercial general liability insurance with coverage amounts that meet or exceed those required by law and written by an AM Best’s rated A-VII or higher insurance company.  You may be added as an additional insured on this policy during the course of construction for a service charge of fifty dollars ($50)."]
[]
[null,null,null,null,null,null,null,null,null,null,null,null,null,null,null,null,null,null,null,null,"b.  ","Workers' Compensation Insurance.  "]
[null,null,null,null,null,null,null,null,null,null,null,null,null,null,null,null,null,null,null,null,null,"Contractors shall provide workers' compensation insurance for all employees in compliance with law."]
[]
[null,null,null,null,null,null,null,null,null,null,null,null,null,null,null,null,null,null,null,"12.","INDEMNIFICATION "]
[]
[null,null,null,null,null,null,null,null,null,null,null,null,null,null,null,null,null,null,null,null,"Both parties shall indemnify, defend and hold harmless the other and its employees, officers, directors, agents and assigns from any and all third party claims, actions, costs, expenses (including reasonable attorneys’ fees and expenses), damages, liabilities, penalties, losses, obligations, demands and liens of any kind arising out of or relating to its failure to perform its obligations under this Agreement. Neither party shall be required to indemnify the other for its own negligence, willful misconduct or fraud.  "]
[]
[null,null,null,null,null,null,null,null,null,null,null,null,null,null,null,null,null,null,null,"13."," GOVERNING LAW "]
[]
[null,null,null,null,null,null,null,null,null,null,null,null,null,null,null,null,null,null,null,null,"The laws of the state where your Home is located shall govern this Agreement without giving effect to conflict of laws principles. "]
[]
[null,null,null,null,null,null,null,null,null,null,null,null,null,null,null,null,null,null,null,"14.","ENTIRE AGREEMENT"]
[]
[null,null,null,null,null,null,null,null,null,null,null,null,null,null,null,null,null,null,null,null,"This Agreement contains the parties’ entire agreement regarding the Project.  There are no other agreements regarding this Agreement, either written or spoken.  Any change to this Agreement must be in writing and signed by both parties.  If any portion of this Agreement is determined to be unenforceable or invalid, the remaining provisions shall be enforced in accordance with their terms or shall be interpreted or re-written so as to make them enforceable.  Provisions that should reasonably be considered to survive termination of this interpreted or re-written so as to make them enforceable.  Provisions that should reasonably be considered to survive termination of this Agreement shall survive."]
[]
[]
[]
[]
[]
[]
[null,null,null,null,null,null,null,null,null,null,null,null,null,null,null,null,null,null,null,null,{"$f":"TEXT(TODAY(), \"mmmm d, yyyy\")","v":"January 28, 2026"},null,null,null,null,"Solar Home Improvement Agreement ",null,null,null,null,"Page 4 of 13"]
[null,null,null,null,null,null,null,null,null,null,null,null,null,null,null,null,null,null,null,null,null,null,null,null,null,{"$f":"\"Copyright @ \"&VendName&\" and/or OnGrid Solar. All Rights Reserved.\"","v":"Copyright @ Acme Solar and/or OnGrid Solar. All Rights Reserved."}]
[]
[]
[null,null,null,null,null,null,null,null,null,null,null,null,null,null,null,null,null,null,null,null,null,null,null,null,null,"PAGE ON RIGHT AND PAGE BELOW"]
[]
[]
[]
[null,null,null,null,null,null,null,null,null,null,null,null,null,null,null,null,null,null,null,null,null,null,null,null,null,null,null,null,null,null,null,null,null,null,null,null,null,"PAGE ON LEFT AND PAGE BELOW"]
[]
[]
[null,null,null,null,null,null,null,null,null,null,null,null,null,null,null,null,null,null,null,null,null,null,null,null,null,null,null,null,null,null,null,null,null,null,2.0499999999999998,null,"15.  ","WAIVER"]
[]
[null,null,null,null,null,null,null,null,null,null,null,null,null,null,null,null,null,null,null,null,null,null,null,null,null,null,null,null,null,null,null,null,null,null,null,null,null,"Any delay or failure of a party to enforce any of the provisions of this Agreement, including but not limited to any remedies listed in this Agreement, or to require performance by the other party of any of the provisions of this Agreement, shall not be construed to (i) be a waiver of such provisions or a party’s right to enforce that provision; or (ii) affect the validity of this Agreement."]
[]
[null,null,null,null,null,null,null,null,null,null,null,null,null,null,null,null,null,null,null,null,null,null,null,null,null,null,null,null,null,null,null,null,null,null,null,null,"16.  ASSIGNMENT "]
[]
[null,null,null,null,null,null,null,null,null,null,null,null,null,null,null,null,null,null,null,null,null,null,null,null,null,null,null,null,null,null,null,null,null,null,null,null,null,"You may not assign your rights or duties under this Agreement without our written permission. The Contractor may assign or subcontract its rights to any successor, partner or purchaser."]
[]
[null,null,null,null,null,null,null,null,null,null,null,null,null,null,null,null,null,null,null,null,null,null,null,null,null,null,null,null,null,null,null,null,null,null,null,null,"17.  PRIVACY/PUBLICITY"]
[]
[null,null,null,null,null,null,null,null,null,null,null,null,null,null,null,null,null,null,null,null,null,null,null,null,null,null,null,null,null,null,null,null,null,null,null,null,null,"You grant The Contractor the right to publicly use, display, share, and advertise the photographic images, Project details, price and any other non-personally identifying information of your Project. The Contractor shall not knowingly release any personally identifiable information about you or any data associating you with the Project location. You may opt-out of these publicity rights by giving us written notice. "]
[]
[null,null,null,null,null,null,null,null,null,null,null,null,null,null,null,null,null,null,null,null,null,null,null,null,null,null,null,null,null,null,null,null,null,null,null,null,"18.","ARBITRATION OF DISPUTES"]
[]
[null,null,null,null,null,null,null,null,null,null,null,null,null,null,null,null,null,null,null,null,null,null,null,null,null,null,null,null,null,null,null,null,null,null,null,null,null,"PLEASE READ THIS SECTION CAREFULLY. ARBITRATION REPLACES THE RIGHT TO GO TO COURT, INCLUDING THE RIGHT TO A JURY AND THE RIGHT TO PARTICIPATE IN A CLASS ACTION OR SIMILAR PROCEEDING. IN ARBITRATION, A DISPUTE IS RESOLVED BY AN ARBITRATOR INSTEAD OF A JUDGE OR JURY.  "]
[]
[null,null,null,null,null,null,null,null,null,null,null,null,null,null,null,null,null,null,null,null,null,null,null,null,null,null,null,null,null,null,null,null,null,null,null,null,null,"The laws of the state where your Home is located shall govern this Agreement without giving effect to conflict of laws principles. We agree that any dispute, claim or disagreement between us (a “Dispute”) shall be resolved exclusively by arbitration. "]
[]
[null,null,null,null,null,null,null,null,null,null,null,null,null,null,null,null,null,null,null,null,null,null,null,null,null,null,null,null,null,null,null,null,null,null,null,null,null,"The arbitration, including the selecting of the arbitrator, will be administered by JAMS, under its Streamlined Arbitration Rules (the “Rules”) by a single neutral arbitrator agreed on by the parties within thirty (30) days of the commencement of the arbitration.   The arbitration will be governed by the Federal Arbitration Act (Title 9 of the U.S. Code). Either party may initiate the arbitration process by filing the necessary forms with JAMS. To learn more about arbitration, you can call any JAMS office or review the materials at www.jamsadr.com. The arbitration shall be held in the location that is most convenient to your Home. If a JAMS office does not exist in the county where you live, then we will use another accredited arbitration provider with offices close to your Home."]
[]
[null,null,null,null,null,null,null,null,null,null,null,null,null,null,null,null,null,null,null,null,null,null,null,null,null,null,null,null,null,null,null,null,null,null,null,null,null,"If you initiate the arbitration, you will be required to pay the first $125 of any filing fee.  We will pay any filing fees in excess of $125 and we will pay all of the arbitration fees and costs.  If we initiate the arbitration, we will pay all of the filing fees and all of the arbitration fees and costs.  We will each bear all of our own attorney’s fees and costs except that you are entitled to recover your attorney’s fees and costs if you prevail in the arbitration and the award you receive from the arbitrator is higher than The Contractor’s last written settlement offer.  When determining whether your award is higher than The Contractor’s last written settlement offer your attorney’s fees and costs will not be included."]
[]
[null,null,null,null,null,null,null,null,null,null,null,null,null,null,null,null,null,null,null,null,null,null,null,null,null,null,null,null,null,null,null,null,null,null,null,null,null,"Only Disputes involving you and The Contractor may be addressed in the arbitration. Disputes must be brought in the name of an individual person or entity and must proceed on an individual (non-class, non-representative) basis. The arbitrator will not award relief for or against anyone who is not a party. If either of us arbitrates a Dispute, neither of us, nor any other person, may pursue the Dispute in arbitration as a class action, class arbitration, private attorney general action or other representative action, nor may any such Dispute be pursued on your or our behalf in any litigation in any court. Claims regarding any Dispute and remedies sought as part of a class action, class arbitration, private attorney general or other representative action are subject to arbitration on an individual (non-class, non-representative) basis, and the arbitrator may award relief only on an individual (non-class, non-representative) basis. This means that the arbitration may not address disputes involving other persons with disputes similar to the Disputes between you and The Contractor."]
[]
[null,null,null,null,null,null,null,null,null,null,null,null,null,null,null,null,null,null,null,null,null,null,null,null,null,null,null,null,null,null,null,null,null,null,null,null,null,"The arbitrator shall have the authority to award any legal or equitable remedy or relief that a court could order or grant under this agreement. The arbitrator, however, is not authorized to change or alter the terms of this agreement or to make any award that would extend to any transaction other than yours. All statutes of limitations that are applicable to any dispute shall apply to any arbitration between us.  The Arbitrator will issue a decision or award in writing, briefly stating the essential findings of fact and conclusions of law."]
[]
[null,null,null,null,null,null,null,null,null,null,null,null,null,null,null,null,null,null,null,null,null,null,null,null,null,null,null,null,null,null,null,null,null,null,null,null,null,"BECAUSE YOU AND WE HAVE AGREED TO ARBITRATE ALL DISPUTES, NEITHER OF US WILL HAVE THE RIGHT TO LITIGATE THAT DISPUTE IN COURT, OR TO HAVE A JURY TRIAL ON THAT DISPUTE, OR ENGAGE IN DISCOVERY EXCEPT AS PROVIDED FOR IN THE RULES. FURTHER, YOU WILL NOT HAVE THE RIGHT TO PARTICIPATE AS A REPRESENTATIVE OR MEMBER OF ANY CLASS PERTAINING TO ANY DISPUTE. THE ARBITRATOR’S DECISION WILL BE FINAL AND BINDING ON THE PARTIES AND MAY BE ENTERED AND ENFORCED IN ANY COURT HAVING JURISDICTION, EXCEPT TO THE EXTENT IT IS SUBJECT TO REVIEW IN ACCORDANCE WITH APPLICABLE LAW GOVERNING ARBITRATION AWARDS. OTHER RIGHTS THAT YOU OR WE WOULD HAVE IN COURT MAY ALSO NOT BE AVAILABLE IN ARBITRATION."]
[]
[]
[]
[]
[]
[]
[]
[null,null,null,null,null,null,null,null,null,null,null,null,null,null,null,null,null,null,null,null,null,null,null,null,null,null,null,null,null,null,null,null,null,null,null,null,null,{"$f":"TEXT(TODAY(), \"mmmm d, yyyy\")&\"                                                                     Solar Home Improvement Agreement\"&\"                                                                        Page 5 of 13\"","v":"January 28, 2026                                                                     Solar Home Improvement Agreement                                                                        Page 5 of 13"}]
[null,null,null,null,null,null,null,null,null,null,null,null,null,null,null,null,null,null,null,null,null,null,null,null,null,null,null,null,null,null,null,null,null,null,null,null,null,{"$f":"\"Copyright @ \"&VendName&\" and/or OnGrid Solar. All Rights Reserved.\"","v":"Copyright @ Acme Solar and/or OnGrid Solar. All Rights Reserved."}]
[]
[]
[]
[]
[]
[]
[null,null,null,null,null,null,null,null,null,null,null,null,null,null,null,null,null,null,null,null,null,null,null,null,null,"PAGE ON RIGHT AND PAGE ABOVE"]
[]
[]
[null,null,null,null,null,null,null,null,null,null,null,null,null,null,null,null,null,2.06,null,null,"NOTICE: BY INITIALLING IN THE SPACE BELOW YOU ARE AGREEING TO HAVE ANY DISPUTE ARISING OUT OF THE MATTERS INCLUDED IN THE “ARBITRATION OF DISPUTE” PROVISION DECIDED BY NEUTRAL ARBITRATION AS PROVIDED BY CALIFORNIA LAW AND YOU ARE GIVING UP ANY RIGHTS YOU MIGHT POSSESS TO HAVE THE DISPUTE LITIGATED IN A COURT OR JURY TRIAL.  BY INITIALLING IN THE SPACE BELOW YOU ARE GIVING UP YOUR JUDICIAL RIGHTS TO DISCOVERY AND APPEAL, UNLESS THOSE RIGHTS ARE SPECIFICAALLY INCLUDED IN THE “ARBITRATION OF DISPUTE” PROVISION.  IF YOU REFUSE TO SUBMIT TO ARBITRATION AFTER AGREEING TO THIS PROVISION, YOU MAY BE COMPELLED TO ARBITRATE UNDER THE AUTHORITY OF THE BUSINESS AND PROFESSIONS CODE OR OTHER APPLICABLE LAWS.  YOUR AGREEMENT TO THIS ARBITRATION PROVISION IS VOLUNTARY.  "]
[]
[null,null,null,null,null,null,null,null,null,null,null,null,null,null,null,null,null,null,null,null,"WE HAVE READ AND UNDERSTAND THE FOREGOING AND AGREE TO SUBMIT DISPUTE ARISING OUT OF THE MATTERS INCLUDED IN THE “ARBITRATION OF DISPUTES” PROVISION TO NEUTRAL ARBITRATION."]
[]
[]
[null,null,null,null,null,null,null,null,null,null,null,null,null,null,null,null,null,null,null,null,null,"BUYER’S INITIALS:    _________________________"]
[]
[]
[]
[null,null,null,null,null,null,null,null,null,null,null,null,null,null,null,null,null,null,null,null,null,"CONTRACTOR’S INITIALS:      ________________________"]
[]
[]
[]
[null,null,null,null,null,null,null,null,null,null,null,null,null,null,null,null,null,null,null,"19.","LIMITED WARRANTY"]
[]
[null,null,null,null,null,null,null,null,null,null,null,null,null,null,null,null,null,null,null,null,"YOU UNDERSTAND THAT THE PROJECT IS WARRANTIED UNDER THE TERMS OF EXHIBIT 2, AND THAT THERE ARE NO OTHER REPRESENTATIONS OR WARRANTIES, EXPRESS OR IMPLIED, AS TO THE MERCHANTABILITY, FITNESS FOR ANY PURPOSE, CONDITION, DESIGN, CAPACITY, SUITABILITY OR PERFORMANCE OF THE PROJECT OR ITS INSTALLATION. UPON RECEIPT OF PAYMENT IN FULL UNDER THIS AGREEMENT ALL WARRANTIES THAT ARE PROVIDED BY MANUFACTURERS OF EQUIPMENT USED IN THE PROJECT WILL BE TRANSFERRED DIRECTLY TO YOU.  YOU UNDERSTAND THAT The Contractor HAS NO RESPONSIBILITY WITH RESPECT TO SUCH WARRANTIES OTHER THAN TO TRANSFER THEM TO YOU.  "]
[]
[null,null,null,null,null,null,null,null,null,null,null,null,null,null,null,null,null,null,null,"20.","LIMITATION OF LIABILITY"]
[]
[null,null,null,null,null,null,null,null,null,null,null,null,null,null,null,null,null,null,null,"a.","a.","No Consequential Damages.  UNDER THIS AGREEMENT, EACH PARTY’S LIABILITY TO THE OTHER SHALL BE LIMITED TO DIRECT, ACTUAL DAMAGES ONLY.  WE BOTH AGREE THAT IN NO EVENT SHALL EITHER PARTY BE LIABLE TO THE OTHER FOR CONSEQUENTIAL, INCIDENTAL, PUNITIVE, EXEMPLARY, SPECIAL OR INDIRECT DAMAGES."]
[]
[null,null,null,null,null,null,null,null,null,null,null,null,null,null,null,null,null,null,null,null,"b.","Actual Damages.  Neither party’s liability to the other will exceed $2,000,000, including without limitation, damages to your Home or Property during the performance of the Project or resulting from the Project."]
[]
[null,null,null,null,null,null,null,null,null,null,null,null,null,null,null,null,null,null,null,null,"EXCEPTING THE OTHER PROVISIONS UNDER THIS HEADING, THE CONTRACTOR DISCLAIMS AND BUYER WAIVES ALL EXPRESS OR IMPLIED WARRANTIES INCLUDING (WITHOUT LIMITATION) ANY IMPLIED WARRANTIES OF MERCHANTABILITY AND FITNESS FOR A PARTICULAR PURPOSE. THE CONTRACTOR SHALL NOT BE LIABLE TO BUYER UNDER THIS WARRANTY IF AN ALLEGED DEFECT IN ANY WORK OR EQUIPMENT WAS CAUSED BY BUYER'S OR ANY THIRD PERSON'S (FOR WHOM THE CONTRACTOR IS NOT RESPONSIBLE AS PROVIDED HEREIN) MISUSE, NEGLECT, UNAUTHORIZED ATTEMPTS TO REPAIR, OR ANY OTHER CAUSE BEYOND THE RANGE OF THE INTENDED USE, OR BY ACCIDENT, FIRE, LIGHTNING OR OTHER HAZARD."]
[]
[null,null,null,null,null,null,null,null,null,null,null,null,null,null,null,null,null,null,null,"21.","NOTICE REGARDING PERFORMANCE AND PAYMENT BONDS  "]
[]
[null,null,null,null,null,null,null,null,null,null,null,null,null,null,null,null,null,null,null,null,"The owner or tenant in a home improvement contract has the right to require the contractor to have a performance and payment bond. "]
[]
[null,null,null,null,null,null,null,null,null,null,null,null,null,null,null,null,null,null,null,"22.","List of documents to be incorporated into the contract"]
[]
[null,null,null,null,null,null,null,null,null,null,null,null,null,null,null,null,null,null,null,null,"þ","Exhibit 1: Notice of Cancellation (3 Day Right to Cancel)"]
[null,null,null,null,null,null,null,null,null,null,null,null,null,null,null,null,null,null,null,null,"þ","Exhibit 2: Limited Warranty"]
[null,null,null,null,null,null,null,null,null,null,null,null,null,null,null,null,null,null,null,null,"þ","Exhibit 3: Property Conditions to be Repaired by Buyer"]
[null,null,null,null,null,null,null,null,null,null,null,null,null,null,null,null,null,null,null,null,"þ","Exhibit 4: Unrepaired Property Conditions"]
[null,null,null,null,null,null,null,null,null,null,null,null,null,null,null,null,null,null,null,null,"þ","Exhibit 5: State Specific Provisions"]
[]
[null,null,null,null,null,null,null,null,null,null,null,null,null,null,null,null,null,null,null,null,"o","Exhibit 6: Insurance"]
[null,null,null,null,null,null,null,null,null,null,null,null,null,null,null,null,null,null,null,null,"o","Schedule A (Purchase Order)"]
[null,null,null,null,null,null,null,null,null,null,null,null,null,null,null,null,null,null,null,null,"o","Change Order Form"]
[null,null,null,null,null,null,null,null,null,null,null,null,null,null,null,null,null,null,null,null,"o","Solar Operation and Maintenance Guide"]
[]
[]
[]
[]
[]
[null,null,null,null,null,null,null,null,null,null,null,null,null,null,null,null,null,null,null,null,{"$f":"TEXT(TODAY(), \"mmmm d, yyyy\")","v":"January 28, 2026"},null,null,null,null,"Solar Home Improvement Agreement ",null,null,null,null,"Page 6 of 13"]
[null,null,null,null,null,null,null,null,null,null,null,null,null,null,null,null,null,null,null,null,null,null,null,null,null,{"$f":"\"Copyright @ \"&VendName&\" and/or OnGrid Solar. All Rights Reserved.\"","v":"Copyright @ Acme Solar and/or OnGrid Solar. All Rights Reserved."}]
[]
[]
[null,null,null,null,null,null,null,null,null,null,null,null,null,null,null,null,null,null,null,null,null,null,null,null,null,"PAGE ON RIGHT AND PAGE BELOW"]
[]
[]
[null,null,null,null,null,null,null,null,null,null,null,null,null,null,null,null,null,null,null,null,null,null,null,null,null,null,null,null,null,null,null,null,null,null,null,null,null,"PAGE ON LEFT AND PAGE ABOVE"]
[]
[]
[]
[]
[null,null,null,null,null,null,null,null,null,null,null,null,null,null,null,null,null,null,null,null,null,null,null,null,null,null,null,null,null,null,null,null,null,null,2.0699999999999998,null,null,"EXHIBIT 1 (CONTRACTOR COPY)"]
[null,null,null,null,null,null,null,null,null,null,null,null,null,null,null,null,null,null,null,null,null,null,null,null,null,null,null,null,null,null,null,null,null,null,null,null,null,"NOTICE OF CANCELLATION "]
[null,null,null,null,null,null,null,null,null,null,null,null,null,null,null,null,null,null,null,null,null,null,null,null,null,null,null,null,null,null,null,null,null,null,null,null,null,"STATUTORILY-REQUIRED LANGUAGE"]
[null,null,null,null,null,null,null,null,null,null,null,null,null,null,null,null,null,null,null,null,null,null,null,null,null,null,null,null,null,null,null,null,null,null,null,null,null,"Notice of Cancellation"]
[]
[]
[null,null,null,null,null,null,null,null,null,null,null,null,null,null,null,null,null,null,null,null,null,null,null,null,null,null,null,null,null,null,null,null,null,null,null,null,null,"Date of Transaction: The date you signed the Agreement."]
[]
[]
[null,null,null,null,null,null,null,null,null,null,null,null,null,null,null,null,null,null,null,null,null,null,null,null,null,null,null,null,null,null,null,null,null,null,null,null,null,"You may cancel this transaction, without any penalty or obligation, within three business days from the above date.  If you cancel, any property traded in, any payments made by you under the contract or sale and any negotiable instrument executed by you will be returned within 10 days following receipt by the seller (The Contractor) of your cancellation notice, and any security interest arising out of the transaction will be canceled.  If you cancel, you must make available to the seller (The Contractor) at your residence, in substantially as good condition as when received, any goods delivered to you under this contract or sale, or you may, if you wish, comply with the instructions of the seller (The Contractor) regarding the return shipment of the goods at the seller’s (The Contractor’s) expense and risk.  If you do make the goods available to the seller (The Contractor) and the seller (The Contractor) does not pick them up within 20 days of the date of your notice of cancellation, you may retain or dispose of the goods without any further obligation.  If you fail to make the goods available to the seller (The Contractor), or if you agree to return the goods to the seller (The Contractor) and fail to do so, then you remain liable for performance of all obligations under the contract.  "]
[]
[null,null,null,null,null,null,null,null,null,null,null,null,null,null,null,null,null,null,null,null,null,null,null,null,null,null,null,null,null,null,null,null,null,null,null,null,null,{"$f":"\"To cancel this transaction, mail or deliver a signed and dated copy of this cancellation notice, or any other written notice, or send a telegram to \"&VendName&\", \"&VendAddrSingleLine&\" not later than midnight of the date that is 3 business days from the date you signed the Agreement.\"","v":"To cancel this transaction, mail or deliver a signed and dated copy of this cancellation notice, or any other written notice, or send a telegram to Acme Solar, 123 Ship Drive, Bldg 3, Sunnyvale, CA 94086 not later than midnight of the date that is 3 business days from the date you signed the Agreement."}]
[]
[null,null,null,null,null,null,null,null,null,null,null,null,null,null,null,null,null,null,null,null,null,null,null,null,null,null,null,null,null,null,null,null,null,null,null,null,null,{"$f":"\"I, \"&CustsFullName&\" [Name], hereby cancel this transaction on \"&\"  _________________________   [Date].\"","v":"I, Jackie Sun and Jilla Sky [Name], hereby cancel this transaction on   _________________________   [Date]."}]
[]
[]
[]
[null,null,null,null,null,null,null,null,null,null,null,null,null,null,null,null,null,null,null,null,null,null,null,null,null,null,null,null,null,null,null,null,null,null,null,null,null,"Buyer’s Signature:  "]
[]
[]
[]
[null,null,null,null,null,null,null,null,null,null,null,null,null,null,null,null,null,null,null,null,null,null,null,null,null,null,null,null,null,null,null,null,null,null,null,null,null,"_________________________________"]
[]
[null,null,null,null,null,null,null,null,null,null,null,null,null,null,null,null,null,null,null,null,null,null,null,null,null,null,null,null,null,null,null,null,null,null,null,null,null,"Co-Buyer’s Signature:  "]
[]
[]
[]
[null,null,null,null,null,null,null,null,null,null,null,null,null,null,null,null,null,null,null,null,null,null,null,null,null,null,null,null,null,null,null,null,null,null,null,null,null,"_________________________________"]
[]
[]
[]
[]
[]
[]
[]
[]
[]
[]
[]
[]
[]
[]
[]
[]
[]
[]
[]
[]
[]
[]
[]
[]
[]
[]
[]
[]
[]
[]
[]
[]
[null,null,null,null,null,null,null,null,null,null,null,null,null,null,null,null,null,null,null,null,null,null,null,null,null,null,null,null,null,null,null,null,null,null,null,null,null,{"$f":"TEXT(TODAY(), \"mmmm d, yyyy\")&\"                                                                     Solar Home Improvement Agreement\"&\"                                                                        Page 7 of 13\"","v":"January 28, 2026                                                                     Solar Home Improvement Agreement                                                                        Page 7 of 13"}]
[null,null,null,null,null,null,null,null,null,null,null,null,null,null,null,null,null,null,null,null,null,null,null,null,null,null,null,null,null,null,null,null,null,null,null,null,null,{"$f":"\"Copyright @ \"&VendName&\" and/or OnGrid Solar. All Rights Reserved.\"","v":"Copyright @ Acme Solar and/or OnGrid Solar. All Rights Reserved."}]
[]
[]
[]
[]
[]
[null,null,null,null,null,null,null,null,null,null,null,null,null,null,null,null,null,null,null,null,null,null,null,null,null,null,null,null,null,null,null,null,null,null,2.08,null,null,"EXHIBIT 1 (CUSTOMER COPY)"]
[null,null,null,null,null,null,null,null,null,null,null,null,null,null,null,null,null,null,null,null,null,null,null,null,null,null,null,null,null,null,null,null,null,null,null,null,null,"NOTICE OF CANCELLATION "]
[null,null,null,null,null,null,null,null,null,null,null,null,null,null,null,null,null,null,null,null,null,null,null,null,null,null,null,null,null,null,null,null,null,null,null,null,null,"STATUTORILY-REQUIRED LANGUAGE"]
[null,null,null,null,null,null,null,null,null,null,null,null,null,null,null,null,null,null,null,null,null,null,null,null,null,null,null,null,null,null,null,null,null,null,null,null,null,"Notice of Cancellation"]
[]
[]
[null,null,null,null,null,null,null,null,null,null,null,null,null,null,null,null,null,null,null,null,null,null,null,null,null,null,null,null,null,null,null,null,null,null,null,null,null,"Date of Transaction: The date you signed the Agreement."]
[]
[]
[null,null,null,null,null,null,null,null,null,null,null,null,null,null,null,null,null,null,null,null,null,null,null,null,null,null,null,null,null,null,null,null,null,null,null,null,null,"You may cancel this transaction, without any penalty or obligation, within three business days from the above date.  If you cancel, any property traded in, any payments made by you under the contract or sale and any negotiable instrument executed by you will be returned within 10 days following receipt by the seller (The Contractor) of your cancellation notice, and any security interest arising out of the transaction will be canceled.  If you cancel, you must make available to the seller (The Contractor) at your residence, in substantially as good condition as when received, any goods delivered to you under this contract or sale, or you may, if you wish, comply with the instructions of the seller (The Contractor) regarding the return shipment of the goods at the seller’s (The Contractor’s) expense and risk.  If you do make the goods available to the seller (The Contractor) and the seller (The Contractor) does not pick them up within 20 days of the date of your notice of cancellation, you may retain or dispose of the goods without any further obligation.  If you fail to make the goods available to the seller (The Contractor), or if you agree to return the goods to the seller (The Contractor) and fail to do so, then you remain liable for performance of all obligations under the contract.  "]
[]
[null,null,null,null,null,null,null,null,null,null,null,null,null,null,null,null,null,null,null,null,null,null,null,null,null,null,null,null,null,null,null,null,null,null,null,null,null,{"$f":"\"To cancel this transaction, mail or deliver a signed and dated copy of this cancellation notice, or any other written notice, or send a telegram to \"&VendName&\", \"&VendAddrSingleLine&\" not later than midnight of the date that is 3 business days from the date you signed the Agreement.\"","v":"To cancel this transaction, mail or deliver a signed and dated copy of this cancellation notice, or any other written notice, or send a telegram to Acme Solar, 123 Ship Drive, Bldg 3, Sunnyvale, CA 94086 not later than midnight of the date that is 3 business days from the date you signed the Agreement."}]
[]
[null,null,null,null,null,null,null,null,null,null,null,null,null,null,null,null,null,null,null,null,null,null,null,null,null,null,null,null,null,null,null,null,null,null,null,null,null,{"$f":"\"I, \"&CustsFullName&\" [Name], hereby cancel this transaction on \"&\"  _________________________   [Date].\"","v":"I, Jackie Sun and Jilla Sky [Name], hereby cancel this transaction on   _________________________   [Date]."}]
[]
[]
[]
[null,null,null,null,null,null,null,null,null,null,null,null,null,null,null,null,null,null,null,null,null,null,null,null,null,null,null,null,null,null,null,null,null,null,null,null,null,"Buyer’s Signature:  "]
[]
[]
[]
[null,null,null,null,null,null,null,null,null,null,null,null,null,null,null,null,null,null,null,null,null,null,null,null,null,null,null,null,null,null,null,null,null,null,null,null,null,"_________________________________"]
[]
[null,null,null,null,null,null,null,null,null,null,null,null,null,null,null,null,null,null,null,null,null,null,null,null,null,null,null,null,null,null,null,null,null,null,null,null,null,"Co-Buyer’s Signature:  "]
[]
[]
[]
[null,null,null,null,null,null,null,null,null,null,null,null,null,null,null,null,null,null,null,null,null,null,null,null,null,null,null,null,null,null,null,null,null,null,null,null,null,"_________________________________"]
[]
[]
[]
[]
[]
[]
[]
[]
[]
[]
[]
[]
[]
[]
[]
[]
[]
[]
[]
[]
[]
[]
[]
[]
[]
[]
[]
[]
[]
[]
[]
[]
[null,null,null,null,null,null,null,null,null,null,null,null,null,null,null,null,null,null,null,null,null,null,null,null,null,null,null,null,null,null,null,null,null,null,null,null,null,{"$f":"TEXT(TODAY(), \"mmmm d, yyyy\")&\"                                                                     Solar Home Improvement Agreement\"&\"                                                                        Page 8 of 13\"","v":"January 28, 2026                                                                     Solar Home Improvement Agreement                                                                        Page 8 of 13"}]
[null,null,null,null,null,null,null,null,null,null,null,null,null,null,null,null,null,null,null,null,null,null,null,null,null,null,null,null,null,null,null,null,null,null,null,null,null,{"$f":"\"Copyright @ \"&VendName&\" and/or OnGrid Solar. All Rights Reserved.\"","v":"Copyright @ Acme Solar and/or OnGrid Solar. All Rights Reserved."}]
[]
[]
[null,null,null,null,null,null,null,null,null,null,null,null,null,null,null,null,null,null,null,null,null,null,null,null,null,null,null,null,null,null,null,null,null,null,null,null,null,"PAGE ON LEFT AND PAGE BELOW"]
[]
[]
[]
[]
[null,null,null,null,null,null,null,null,null,null,null,null,null,null,null,null,null,null,null,null,null,null,null,null,null,"PAGE ON RIGHT AND PAGE ABOVE"]
[]
[]
[]
[null,null,null,null,null,null,null,null,null,null,null,null,null,null,null,null,null,"2.09",null,"EXHIBIT 2"]
[null,null,null,null,null,null,null,null,null,null,null,null,null,null,null,null,null,null,null,"LIMITED WARRANTY"]
[]
[]
[null,null,null,null,null,null,null,null,null,null,null,null,null,null,null,null,null,null,null,"1.","INTRODUCTION"]
[]
[null,null,null,null,null,null,null,null,null,null,null,null,null,null,null,null,null,null,null,null,"This Limited Warranty (this “Limited Warranty”) is The Contractor’s agreement to provide you warranties on the System you purchased under the Agreement.  The System will be professionally installed by The Contractor’s at the address you listed in the Agreement. We will refer to the installation location as your “Property” or your “Home.”  This Limited Warranty begins when we start installing the System at your Home.  We look forward to helping you produce clean, renewable solar power at your Home. "]
[]
[null,null,null,null,null,null,null,null,null,null,null,null,null,null,null,null,null,null,null,"2.","LIMITED WARRANTIES"]
[]
[null,null,null,null,null,null,null,null,null,null,null,null,null,null,null,null,null,null,null,null,"(a)","Limited Warranties"]
[null,null,null,null,null,null,null,null,null,null,null,null,null,null,null,null,null,null,null,null,null,"The Contractor warrants the System as follows:"]
[]
[null,null,null,null,null,null,null,null,null,null,null,null,null,null,null,null,null,null,null,null,null,"(i)   System Warranty"]
[]
[null,null,null,null,null,null,null,null,null,null,null,null,null,null,null,null,null,null,null,null,null,"During the entire Warranty Period, under normal use and service conditions, the System will be free from defects in workmanship or defects in, or a breakdown of, materials or components (the “System Warranty”); "]
[]
[null,null,null,null,null,null,null,null,null,null,null,null,null,null,null,null,null,null,null,null,null,"(ii)   Roof Warranty"]
[]
[null,null,null,null,null,null,null,null,null,null,null,null,null,null,null,null,null,null,null,null,null,"When we penetrate your roof during a System installation we will warrant roof damage we cause due to our roof penetrations.  This roof warranty will run (1) year following the completion of the System installation."]
[]
[null,null,null,null,null,null,null,null,null,null,null,null,null,null,null,null,null,null,null,null,null,"(iii)  Repair Promise"]
[]
[null,null,null,null,null,null,null,null,null,null,null,null,null,null,null,null,null,null,null,null,null,"During the entire Warranty Period The Contractor will honor the System Warranty and will repair or replace any defective part, material or component or correct any defective workmanship, at no cost or expense to you (including all labor costs), when you submit a valid claim to us under this Limited Warranty (the “Repair Promise”).  If we damage your Home, your belongings or your Property we will repair the damage we cause or pay you for the damage we cause. The Contractor may use new or reconditioned parts when making repairs or replacements. The Contractor may also, at no additional cost to you, upgrade or add to any part of the System to ensure that it performs according to the guarantees set forth in this Limited Warranty.  Cosmetic repairs that do not involve safety or performance shall be made at The Contractor’s discretion."]
[]
[null,null,null,null,null,null,null,null,null,null,null,null,null,null,null,null,null,null,null,null,"(b)","Warranty Length "]
[]
[null,null,null,null,null,null,null,null,null,null,null,null,null,null,null,null,null,null,null,null,null,"(i)    The warranties in Sections 2(a)(i) and (a)(iii) above will start when we begin installing the System at your Home and continue to until the tenth (ten) year  anniversary of the first day of the month immediately following the month in which your System commences operation (the “Warranty Period”)."]
[]
[null,null,null,null,null,null,null,null,null,null,null,null,null,null,null,null,null,null,null,null,null,"(ii)   The Roof Warranty Period may be shorter than the System Warranty, as described in Section 2(a)(ii) above.   "]
[]
[null,null,null,null,null,null,null,null,null,null,null,null,null,null,null,null,null,null,null,null,"(c)","Maintenance and Operation"]
[]
[null,null,null,null,null,null,null,null,null,null,null,null,null,null,null,null,null,null,null,null,null,"(i)   General"]
[]
[null,null,null,null,null,null,null,null,null,null,null,null,null,null,null,null,null,null,null,null,null,"When the System is installed The Contractor will provide you with a copy of its Solar Operation and Maintenance Guide. This Guide provides you with System operation and maintenance instructions, answers to frequently asked questions, troubleshooting tips and service information. "]
[]
[null,null,null,null,null,null,null,null,null,null,null,null,null,null,null,null,null,null,null,null,"(d)","Making a Claim; Transferring this Warranty  "]
[]
[null,null,null,null,null,null,null,null,null,null,null,null,null,null,null,null,null,null,null,null,null,"(i)   Claim Process"]
[null,null,null,null,null,null,null,null,null,null,null,null,null,null,null,null,null,null,null,null,null,"You can make a claim by:"]
[]
[null,null,null,null,null,null,null,null,null,null,null,null,null,null,null,null,null,null,null,null,null,"A.   emailing us at the email address in Section 6 below; "]
[]
[null,null,null,null,null,null,null,null,null,null,null,null,null,null,null,null,null,null,null,null,null,"B.   writing us a letter and sending it overnight mail with a well-known service; or "]
[]
[null,null,null,null,null,null,null,null,null,null,null,null,null,null,null,null,null,null,null,null,null,"(ii)   Transferable Limited Warranty"]
[null,null,null,null,null,null,null,null,null,null,null,null,null,null,null,null,null,null,null,null,null,"The Contractor will accept and honor any valid and properly submitted Warranty claim made during the Warranty Period by any person who purchases the System from you."]
[]
[]
[]
[]
[]
[]
[]
[]
[]
[]
[null,null,null,null,null,null,null,null,null,null,null,null,null,null,null,null,null,null,null,null,{"$f":"TEXT(TODAY(), \"mmmm d, yyyy\")","v":"January 28, 2026"},null,null,null,null,"Solar Home Improvement Agreement ",null,null,null,null,"Page 9 of 13"]
[null,null,null,null,null,null,null,null,null,null,null,null,null,null,null,null,null,null,null,null,null,null,null,null,null,{"$f":"\"Copyright @ \"&VendName&\" and/or OnGrid Solar. All Rights Reserved.\"","v":"Copyright @ Acme Solar and/or OnGrid Solar. All Rights Reserved."}]
[]
[]
[]
[]
[]
[]
[]
[]
[]
[null,null,null,null,null,null,null,null,null,null,null,null,null,null,null,null,null,"2.10",null,null,"(e)","Exclusions and Disclaimer"]
[]
[null,null,null,null,null,null,null,null,null,null,null,null,null,null,null,null,null,null,null,null,null,"The limited warranties and guaranty provided in this Limited Warranty do not apply to any lost power production or any repair, replacement or correction required due to the following: "]
[]
[null,null,null,null,null,null,null,null,null,null,null,null,null,null,null,null,null,null,null,null,null,"(i)   Someone other than The Contractor or its approved service providers installed, removed, re-installed or repaired the System; "]
[]
[null,null,null,null,null,null,null,null,null,null,null,null,null,null,null,null,null,null,null,null,null,"(ii)  destruction or damage to the System or its ability to safely produce power not caused by The Contractor or its approved service providers while servicing the System (e.g. if a tree falls on the System our insurance may cover replacement per the terms of the insurance obligation (Exhibit 6), but we will not pay you for power it did not produce);"]
[]
[null,null,null,null,null,null,null,null,null,null,null,null,null,null,null,null,null,null,null,null,null,"(iii)  your failure to perform, or breach of, your obligations under this Limited Warranty, including your being unavailable to provide access or assistance to us in diagnosing or repairing a problem, or your failing to maintain the System as stated in the Solar Operation and Maintenance Guide, or you modify or alter the System;"]
[]
[null,null,null,null,null,null,null,null,null,null,null,null,null,null,null,null,null,null,null,null,null,"(v)   Any Force Majeure Event (as defined below); "]
[]
[null,null,null,null,null,null,null,null,null,null,null,null,null,null,null,null,null,null,null,null,null,"(vi)  shading from foliage that is new growth or is not kept trimmed to its appearance on the date the System was installed; "]
[]
[null,null,null,null,null,null,null,null,null,null,null,null,null,null,null,null,null,null,null,null,null,"(vii) any system failure or lost production not caused by a System defect (e.g. the System is not producing power because it has been removed to make roof repairs or you have required us to locate the inverter in a non-shaded area [If the inverter is placed in sun, inverter may not be covered under warranty due to over-exposure to sun and heat resulting in pre-mature failure]); and"]
[]
[null,null,null,null,null,null,null,null,null,null,null,null,null,null,null,null,null,null,null,null,null,"(viii) theft of the System prior to installation (e.g. if the System is stolen our insurance may cover replacement per the terms of the insurance obligation (Exhibit 6), but we will not pay you for the power it did not produce)."]
[]
[null,null,null,null,null,null,null,null,null,null,null,null,null,null,null,null,null,null,null,null,null,"This Limited Warranty gives you specific rights, and you may also have other rights which vary from state to state. This Limited Warranty does not warrant any specific electrical performance of the System, other than that described above. "]
[]
[null,null,null,null,null,null,null,null,null,null,null,null,null,null,null,null,null,null,null,null,null,"THE LIMITED WARRANTIES DESCRIBED IN SECTIONS 2(a) and (c) ABOVE ARE THE ONLY EXPRESS WARRANTIES MADE BY THE CONTRACTOR WITH RESPECT TO THE SYSTEM. THE CONTRACTOR HEREBY DISCLAIMS, AND ANY BENEFICIARY OF THIS LIMITED WARRANTY HEREBY WAIVES, ANY WARRANTY WITH RESPECT TO ANY COST SAVINGS FROM USING THE SYSTEM. SOME STATES DO NOT ALLOW SUCH LIMITATIONS, SO THE ABOVE LIMITATIONS MAY NOT APPLY TO YOU."]
[]
[null,null,null,null,null,null,null,null,null,null,null,null,null,null,null,null,null,null,null,"3.","YOUR ADDITIONAL OBLIGATIONS"]
[]
[null,null,null,null,null,null,null,null,null,null,null,null,null,null,null,null,null,null,null,null,"(a)","You grant to The Contractor and its employees, agents and contractors the right to reasonably access all of the Property as necessary for the purposes of compliance with this Limited Warranty. "]
[]
[null,null,null,null,null,null,null,null,null,null,null,null,null,null,null,null,null,null,null,null,"(b)","If you want to make any repairs or improvements to the Property that could interfere with the System (such as repairing the roof where the System is located), you may only remove and replace the System pursuant to Section 5 of this Limited Warranty."]
[]
[null,null,null,null,null,null,null,null,null,null,null,null,null,null,null,null,null,null,null,null,"(c)","During the Warranty Period you agree:"]
[]
[null,null,null,null,null,null,null,null,null,null,null,null,null,null,null,null,null,null,null,null,null,"(i)   to only have the System repaired pursuant to the Limited Warranty and reasonably cooperate when repairs are being made;   "]
[]
[null,null,null,null,null,null,null,null,null,null,null,null,null,null,null,null,null,null,null,null,null,"(ii)  to keep trees, bushes and hedges trimmed so that the System receives as much sunlight as it did when The Contractor installed it;"]
[]
[null,null,null,null,null,null,null,null,null,null,null,null,null,null,null,null,null,null,null,null,null,"(iii) to keep the panels clean, pursuant to this Limited Warranty and the Solar Operation and Maintenance Guide;"]
[]
[null,null,null,null,null,null,null,null,null,null,null,null,null,null,null,null,null,null,null,null,null,"(iv) to not modify your Home in a way that shades the System;"]
[]
[null,null,null,null,null,null,null,null,null,null,null,null,null,null,null,null,null,null,null,null,null,"(v)  to be responsible for any conditions at your Home that affect the installation (e.g. blocking access to the roof or removing a tree that is in the way); "]
[]
[null,null,null,null,null,null,null,null,null,null,null,null,null,null,null,null,null,null,null,null,null,"(vi) to not do anything, permit or allow to exist any condition or circumstance that would cause the System not to operate as intended at the Property; "]
[]
[null,null,null,null,null,null,null,null,null,null,null,null,null,null,null,null,null,null,null,null,null,"(vii) that you will not make any modifications, improvements, revisions or additions to the System or take any other action that could void the Limited Warranty on the System without The Contractor’s prior written consent."]
[]
[]
[]
[]
[]
[]
[]
[null,null,null,null,null,null,null,null,null,null,null,null,null,null,null,null,null,null,null,null,{"$f":"TEXT(TODAY(), \"mmmm d, yyyy\")","v":"January 28, 2026"},null,null,null,null,"Solar Home Improvement Agreement ",null,null,null,null,"Page 10 of 13"]
[null,null,null,null,null,null,null,null,null,null,null,null,null,null,null,null,null,null,null,null,null,null,null,null,null,{"$f":"\"Copyright @ \"&VendName&\" and/or OnGrid Solar. All Rights Reserved.\"","v":"Copyright @ Acme Solar and/or OnGrid Solar. All Rights Reserved."}]
[]
[]
[]
[]
[]
[]
[]
[]
[null,null,null,null,null,null,null,null,null,null,null,null,null,null,null,null,null,"2.11",null,"4.","THE CONTRACTOR'S STANDARDS"]
[]
[null,null,null,null,null,null,null,null,null,null,null,null,null,null,null,null,null,null,null,null,"For the purpose of this Limited Warranty the standards for our performance will be (i) normal professional standards of performance within the solar photovoltaic power generation industry in the relevant market; and (ii) Prudent Electrical Practices.  “Prudent Electrical Practices” means those practices, as changed from time to time, that are engaged in or approved by a significant portion of the solar power electrical generation industry operating in the United States to operate electric equipment lawfully and with reasonable safety, dependability, efficiency and economy."]
[]
[null,null,null,null,null,null,null,null,null,null,null,null,null,null,null,null,null,null,null,"5.","LIMITATIONS ON LIABILITY"]
[]
[null,null,null,null,null,null,null,null,null,null,null,null,null,null,null,null,null,null,null,null,"(a)","No Consequential Damages"]
[]
[null,null,null,null,null,null,null,null,null,null,null,null,null,null,null,null,null,null,null,null,null,"YOU MAY ONLY RECOVER DIRECT DAMAGES INCLUDING THOSE AMOUNTS DUE PURSUANT TO SECTION 2(c) UNDER THIS LIMITED WARRANTY, AND IN NO EVENT SHALL THE CONTRACTOR OR ITS AGENTS OR SUBCONTRACTORS BE LIABLE TO YOU OR YOUR ASSIGNS FOR SPECIAL, INDIRECT, PUNITIVE, EXEMPLARY, INCIDENTAL OR CONSEQUENTIAL DAMAGES OF ANY NATURE.  SOME STATES DO NOT ALLOW THE EXCLUSION OR LIMITATION OF INCIDENTAL OR CONSEQUENTIAL DAMAGES, SO THE ABOVE LIMITATION MAY NOT APPLY TO YOU. "]
[]
[null,null,null,null,null,null,null,null,null,null,null,null,null,null,null,null,null,null,null,null,"(b)","Limitation of Duration of Implied Warranties"]
[]
[null,null,null,null,null,null,null,null,null,null,null,null,null,null,null,null,null,null,null,null,null,"ANY IMPLIED WARRANTIES, INCLUDING THE IMPLIED WARRANTIES OF FITNESS FOR A PARTICULAR PURPOSE AND MERCHANTABILITY ARISING UNDER STATE LAW, SHALL IN NO EVENT EXTEND PAST THE EXPIRATION OF ANY WARRANTY PERIOD IN THIS LIMITED WARRANTY.  SOME STATES DO NOT ALLOW LIMITATIONS ON HOW LONG AN IMPLIED WARRANTY LASTS, SO THE ABOVE LIMITATION MAY NOT APPLY TO YOU."]
[]
[null,null,null,null,null,null,null,null,null,null,null,null,null,null,null,null,null,null,null,null,"(c)","Limit of Liability"]
[]
[null,null,null,null,null,null,null,null,null,null,null,null,null,null,null,null,null,null,null,null,null,"Notwithstanding any other provision of this Limited Warranty to the contrary, The Contractor’s total liability arising out of relating to this Limited Warranty shall in no event: "]
[]
[null,null,null,null,null,null,null,null,null,null,null,null,null,null,null,null,null,null,null,null,null,"(i)   For System Replacement:  exceed the original cost of the System; and "]
[]
[null,null,null,null,null,null,null,null,null,null,null,null,null,null,null,null,null,null,null,null,null,"(ii)  For damages to your Home, Belongings and Property:  exceed two million dollars ($2,000,000). "]
[]
[null,null,null,null,null,null,null,null,null,null,null,null,null,null,null,null,null,null,null,null,null,"THE EVALUATION AND THE REPORT DO NOT CONSTITUTE A WARRANTY OR GUARANTEE OF ANY KIND, EXPRESS OR IMPLED.  THE REPORT IS NOT A HOME INSPECTION REPORT AND OWNER AGREES NOT TO USE THE REPORT IN CONJUNCTION WITH ANY TRANSFER OF THE HOUSE.  YOU UNDERSTAND THAT THE CONTRACTOR MAKES NO REPRESENTATIONS OR WARRANTIES WITH RESPECT TO THE EVALUATION, THE REPORT OR THE CONTRACTOR’S OTHER PERFORMANCE UNDER THIS AGREEMENT, EXPRESS OR IMPLIED, INCLUDING AS TO MERCHANTABILITY, FITNESS FOR ANY PURPOSE, CONDITION, DESIGN, CAPACITY, SUITABILITY OR PERFORMANCE."]
[]
[null,null,null,null,null,null,null,null,null,null,null,null,null,null,null,null,null,null,null,"6.","NOTICES"]
[]
[null,null,null,null,null,null,null,null,null,null,null,null,null,null,null,null,null,null,null,null,"All notices under this Limited Warranty shall be made in the same manner as set forth in the Agreement to the addresses listed below:"]
[]
[null,null,null,null,null,null,null,null,null,null,null,null,null,null,null,null,null,null,null,null,null,"TO THE CONTRACTOR:",null,null,{"$f":"VendName","v":"Acme Solar"}]
[null,null,null,null,null,null,null,null,null,null,null,null,null,null,null,null,null,null,null,null,null,null,null,null,{"$f":"VendAdd1&IF(VendAdd2>0, \", \"&VendAdd2,\"\")","v":"123 Ship Drive, Bldg 3, "}]
[null,null,null,null,null,null,null,null,null,null,null,null,null,null,null,null,null,null,null,null,null,null,null,null,{"$f":"VendCity&\", \"&VendState&\" \"&VendZip","v":"Sunnyvale, CA 94086"}]
[null,null,null,null,null,null,null,null,null,null,null,null,null,null,null,null,null,null,null,null,null,null,null,null,"Attention: Warranty Claims"]
[null,null,null,null,null,null,null,null,null,null,null,null,null,null,null,null,null,null,null,null,null,null,null,null,{"$f":"\"Telephone: \"&IF(VendPhMain>0,VendPhMain,VendSalesFullPh)","v":"Telephone: (123) 123 1234"}]
[null,null,null,null,null,null,null,null,null,null,null,null,null,null,null,null,null,null,null,null,null,null,null,null,{"$f":"\"Email: \"&IF(VendEmailMain>0,VendEmailMain,VendSalesEmail)","v":"Email: "}]
[]
[null,null,null,null,null,null,null,null,null,null,null,null,null,null,null,null,null,null,null,"7.","Assignment and Transfer of this Limited Warranty"]
[]
[null,null,null,null,null,null,null,null,null,null,null,null,null,null,null,null,null,null,null,null,"The Contractor may assign its rights or obligations under this Limited Warranty to a third party without your consent, provided that any assignment of The Contractor’s obligations under this Limited Warranty shall be to a party professionally and financially qualified to perform such obligation.  This Limited Warranty protects only the person who owns the System.  Your rights and obligations under this Limited Warranty will be automatically transferred to any person who purchases the System from you. This Limited Warranty contains the parties’ entire agreement regarding the limited warranty of the System.  "]
[]
[]
[]
[]
[]
[]
[]
[]
[]
[]
[]
[]
[]
[]
[]
[null,null,null,null,null,null,null,null,null,null,null,null,null,null,null,null,null,null,null,null,{"$f":"TEXT(TODAY(), \"mmmm d, yyyy\")","v":"January 28, 2026"},null,null,null,null,"Solar Home Improvement Agreement ",null,null,null,null,"Page 11 of 13"]
[null,null,null,null,null,null,null,null,null,null,null,null,null,null,null,null,null,null,null,null,null,null,null,null,null,{"$f":"\"Copyright @ \"&VendName&\" and/or OnGrid Solar. All Rights Reserved.\"","v":"Copyright @ Acme Solar and/or OnGrid Solar. All Rights Reserved."}]
[]
[]
[]
[]
[]
[]
[]
[]
[null,null,null,null,null,null,null,null,null,null,null,null,null,null,null,null,null,"2.12",null,"EXHIBIT 3"]
[null,null,null,null,null,null,null,null,null,null,null,null,null,null,null,null,null,null,null,"PROPERTY CONDITIONS TO BE REPAIRED BY BUYER"]
[]
[]
[null,null,null,null,null,null,null,null,null,null,null,null,null,null,null,null,null,null,null,"Buyer agrees to complete the follow repairs prior to Project Installation."]
[]
[null,null,null,null,null,null,null,null,null,null,null,null,null,null,null,null,null,null,null,"1."]
[]
[null,null,null,null,null,null,null,null,null,null,null,null,null,null,null,null,null,null,null,"2."]
[]
[null,null,null,null,null,null,null,null,null,null,null,null,null,null,null,null,null,null,null,"3."]
[]
[null,null,null,null,null,null,null,null,null,null,null,null,null,null,null,null,null,null,null,"4."]
[]
[null,null,null,null,null,null,null,null,null,null,null,null,null,null,null,null,null,null,null,"5."]
[]
[null,null,null,null,null,null,null,null,null,null,null,null,null,null,null,null,null,null,null,"6."]
[]
[]
[null,null,null,null,null,null,null,null,null,null,null,null,null,null,null,null,null,null,null,"Date repairs to be completed:"]
[]
[]
[]
[]
[]
[null,null,null,null,null,null,null,null,null,null,null,null,null,null,null,null,null,null,null,"BUYER’S INITIALS      ",null,null,null,null,null,null,null,"Date"]
[]
[]
[]
[]
[]
[]
[null,null,null,null,null,null,null,null,null,null,null,null,null,null,null,null,null,null,null,"EXHIBIT 4"]
[null,null,null,null,null,null,null,null,null,null,null,null,null,null,null,null,null,null,null,"UNREPAIRED EXISTING PROPERTY CONDITIONS"]
[]
[]
[null,null,null,null,null,null,null,null,null,null,null,null,null,null,null,null,null,null,null,"Buyer agrees that The Contractor is not responsible or liable for damage, breach or failure arising from or relating to any of the following Property conditions, before, during or after Project Installation."]
[]
[null,null,null,null,null,null,null,null,null,null,null,null,null,null,null,null,null,null,null,"1."]
[]
[null,null,null,null,null,null,null,null,null,null,null,null,null,null,null,null,null,null,null,"2."]
[]
[null,null,null,null,null,null,null,null,null,null,null,null,null,null,null,null,null,null,null,"3."]
[]
[null,null,null,null,null,null,null,null,null,null,null,null,null,null,null,null,null,null,null,"4."]
[]
[null,null,null,null,null,null,null,null,null,null,null,null,null,null,null,null,null,null,null,"5."]
[]
[null,null,null,null,null,null,null,null,null,null,null,null,null,null,null,null,null,null,null,"6."]
[]
[]
[]
[]
[]
[null,null,null,null,null,null,null,null,null,null,null,null,null,null,null,null,null,null,null,"BUYER’S INITIALS      ",null,null,null,null,null,null,null,"Date"]
[]
[]
[]
[]
[]
[]
[]
[]
[]
[]
[]
[]
[]
[]
[]
[]
[null,null,null,null,null,null,null,null,null,null,null,null,null,null,null,null,null,null,null,null,{"$f":"TEXT(TODAY(), \"mmmm d, yyyy\")","v":"January 28, 2026"},null,null,null,null,"Solar Home Improvement Agreement ",null,null,null,null,"Page 12 of 13"]
[null,null,null,null,null,null,null,null,null,null,null,null,null,null,null,null,null,null,null,null,null,null,null,null,null,{"$f":"\"Copyright @ \"&VendName&\" and/or OnGrid Solar. All Rights Reserved.\"","v":"Copyright @ Acme Solar and/or OnGrid Solar. All Rights Reserved."}]
[]
[]
[null,null,null,null,null,null,null,null,null,null,null,null,null,null,null,null,null,null,null,null,null,null,null,null,null,"PAGE ON RIGHT "]
[]
[null,null,null,null,null,null,null,null,null,null,null,null,null,null,null,null,null,null,null,null,null,null,null,null,null,null,null,null,null,null,null,null,null,null,null,null,null,"PAGE ON LEFT AND PAGE ABOVE"]
[]
[]
[null,null,null,null,null,null,null,null,null,null,null,null,null,null,null,null,null,null,null,null,null,null,null,null,null,null,null,null,null,null,null,null,null,null,"2.13",null,"EXHIBIT 5"]
[null,null,null,null,null,null,null,null,null,null,null,null,null,null,null,null,null,null,null,null,null,null,null,null,null,null,null,null,null,null,null,null,null,null,null,null,"STATE SPECIFIC PROVISIONS"]
[]
[]
[null,null,null,null,null,null,null,null,null,null,null,null,null,null,null,null,null,null,null,null,null,null,null,null,null,null,null,null,null,null,null,null,null,null,null,null,null,"CALIFORNIA CONTRACTOR LICENSING INFORMATION: CSLB is the state consumer protection agency that licenses and regulates construction contractors.  Contact CSLB for information about the licensed contractor you are considering, including information about disclosable complaints, disciplinary actions and civil judgments that are reported to CSLB.  Use only licensed contractors.  If you file a complaint against a licensed contractor within the legal deadline (usually four years), CSLB has authority to investigate the complaint.  If you use an unlicensed contractor, CSLB may not be able to help you resolve your complaint.  Your only remedy may be in civil court, and you may be liable for damages arising out of any injuries to the unlicensed contractor or the unlicensed contractor's employees.  For more information:"]
[]
[null,null,null,null,null,null,null,null,null,null,null,null,null,null,null,null,null,null,null,null,null,null,null,null,null,null,null,null,null,null,null,null,null,null,null,null,null,"- Visit CSLB’s Internet website at www.cslb.ca.gov"]
[null,null,null,null,null,null,null,null,null,null,null,null,null,null,null,null,null,null,null,null,null,null,null,null,null,null,null,null,null,null,null,null,null,null,null,null,null,"- Call CSLB at 800-321-CSLB (2752)"]
[null,null,null,null,null,null,null,null,null,null,null,null,null,null,null,null,null,null,null,null,null,null,null,null,null,null,null,null,null,null,null,null,null,null,null,null,null,"- Write CSLB at P.O. Box 26000, Sacramento, CA 95826"]
[]
[null,null,null,null,null,null,null,null,null,null,null,null,null,null,null,null,null,null,null,null,null,null,null,null,null,null,null,null,null,null,null,null,null,null,null,null,null,"CALIFORNIA MECHANICS LIEN WARNING:"]
[null,null,null,null,null,null,null,null,null,null,null,null,null,null,null,null,null,null,null,null,null,null,null,null,null,null,null,null,null,null,null,null,null,null,null,null,null,"NOTICE TO PROPERTY OWNER:  If bills are not paid in full for the labor, services, equipment, or materials furnished or to be furnished, a mechanic’s lien leading to the loss, through court foreclosure proceedings, of all or part of your property being so improved may be placed against the property even though you have paid your contractor in full. You may wish to protect yourself against this consequence by (1) requiring your contractor to furnish a signed release by the person or firm giving you this notice before making payment to your contractor or (2) any other method or device that is appropriate under the circumstances."]
[]
[null,null,null,null,null,null,null,null,null,null,null,null,null,null,null,null,null,null,null,null,null,null,null,null,null,null,null,null,null,null,null,null,null,null,null,null,null,"Anyone who helps improve your property, but who is not paid, may record what is called a mechanics lien on your property. A mechanics lien is a claim, like a mortgage or home equity loan, made against your property and recorded with the county recorder."]
[]
[null,null,null,null,null,null,null,null,null,null,null,null,null,null,null,null,null,null,null,null,null,null,null,null,null,null,null,null,null,null,null,null,null,null,null,null,null,"Even if you pay your contractor in full, unpaid subcontractors, suppliers, and laborers who helped to improve your property may record mechanics liens and sue you in court to foreclose the lien. If a court finds the lien is valid, you could be forced to pay twice or have a court officer sell your home to pay the lien. Liens can also affect your credit."]
[]
[null,null,null,null,null,null,null,null,null,null,null,null,null,null,null,null,null,null,null,null,null,null,null,null,null,null,null,null,null,null,null,null,null,null,null,null,null,"To preserve their right to record a lien, each subcontractor and material supplier must provide you with a document called a ‘Preliminary Notice.’ This notice is not a lien. The purpose of the notice is to let you know that the person who sends you the notice has the right to record a lien on your property if he or she is not paid."]
[]
[null,null,null,null,null,null,null,null,null,null,null,null,null,null,null,null,null,null,null,null,null,null,null,null,null,null,null,null,null,null,null,null,null,null,null,null,null,"BE CAREFUL.   The Preliminary Notice can be sent up to 20 days after the subcontractor starts work or the supplier provides material. This can be a big problem if you pay your contractor before you have received the Preliminary Notices."]
[]
[null,null,null,null,null,null,null,null,null,null,null,null,null,null,null,null,null,null,null,null,null,null,null,null,null,null,null,null,null,null,null,null,null,null,null,null,null,"You will not get Preliminary Notices from your prime contractor or from laborers who work on your project. The law assumes that you already know they are improving your property."]
[]
[null,null,null,null,null,null,null,null,null,null,null,null,null,null,null,null,null,null,null,null,null,null,null,null,null,null,null,null,null,null,null,null,null,null,null,null,null,"PROTECT YOURSELF FROM LIENS.   You can protect yourself from liens by getting a list from your contractor of all the subcontractors and material suppliers that work on your project. Find out from your contractor when these subcontractors started work and when these suppliers delivered goods or materials. Then wait 20 days, paying attention to the Preliminary Notices you receive."]
[]
[null,null,null,null,null,null,null,null,null,null,null,null,null,null,null,null,null,null,null,null,null,null,null,null,null,null,null,null,null,null,null,null,null,null,null,null,null,"PAY WITH JOINT CHECKS.   One way to protect yourself is to pay with a joint check. When your contractor tells you it is time to pay for the work of a subcontractor or supplier who has provided you with a Preliminary Notice, write a joint check payable to both the contractor and the subcontractor or material supplier."]
[]
[null,null,null,null,null,null,null,null,null,null,null,null,null,null,null,null,null,null,null,null,null,null,null,null,null,null,null,null,null,null,null,null,null,null,null,null,null,"For other ways to prevent liens, visit CSLB’s Internet Web site at www.cslb.ca.gov or call CSLB at 800-321-CSLB (2752)."]
[]
[null,null,null,null,null,null,null,null,null,null,null,null,null,null,null,null,null,null,null,null,null,null,null,null,null,null,null,null,null,null,null,null,null,null,null,null,null,"REMEMBER, IF YOU DO NOTHING, YOU RISK HAVING A LIEN PLACED ON YOUR HOME. This can mean that you may have to pay twice, or face the forced sale of your home to pay what you owe."]
[]
[]
[]
[]
[]
[]
[]
[]
[]
[]
[]
[]
[]
[]
[null,null,null,null,null,null,null,null,null,null,null,null,null,null,null,null,null,null,null,null,null,null,null,null,null,null,null,null,null,null,null,null,null,null,null,null,null,{"$f":"TEXT(TODAY(), \"mmmm d, yyyy\")&\"                                                                     Solar Home Improvement Agreement\"&\"                                                                        Page 13 of 13\"","v":"January 28, 2026                                                                     Solar Home Improvement Agreement                                                                        Page 13 of 13"}]
[null,null,null,null,null,null,null,null,null,null,null,null,null,null,null,null,null,null,null,null,null,null,null,null,null,null,null,null,null,null,null,null,null,null,null,null,null,{"$f":"\"Copyright @ \"&VendName&\" and/or OnGrid Solar. All Rights Reserved.\"","v":"Copyright @ Acme Solar and/or OnGrid Solar. All Rights Reserved."}]

{"sheet":"Loan_Application_Forms","index":6,"n_rows":108,"n_cols":20,"rows_kept":108,"cut":false,"hidden":false,"merged":[[9,1,9,21],[17,1,17,21],[13,6,13,8],[13,11,13,14],[12,14,12,20],[11,18,11,20],[14,6,14,8],[14,11,14,14],[14,18,14,20],[102,16,102,19],[106,16,106,19],[67,1,67,21],[12,5,12,8],[15,18,15,20],[22,4,22,10],[22,14,22,20],[27,1,27,21],[73,1,73,21],[36,5,36,10],[36,15,36,20],[37,5,37,10],[37,15,37,20],[68,1,68,21],[57,1,57,21]]}
[]
[]
[]
[]
[null,"Contractor/Company whom referred you: ",null,null,null,null,null,null,"Contractor Code:",null,null,"ONGRIDCA"]
[null,null,null,null,null,null,null,null,"Salesperson, Company: ",null,null,{"$f":"VendSalesperson&\", \"&VendName","v":"Ship Full User, Acme Solar"}]
[null,null,null,null,null,null,null,null,"Contractor Contact Info: ",null,null,{"$f":"VendSalesFullPh","v":"(123) 123 1234, (123) 123 3456"}]
[null,"HOME IMPROVEMENTS",null,null,null,{"$f":"FIXED(SysSize,1)&\" kW Solar Electric System\"","v":"9.1 kW Solar Electric System"},null,null,null,null,null,null,null,"AMOUNT REQUESTED"]
[]
[null,"REAL ESTATE INFORMATION"]
[]
[null,null,"ADDRESS",null,{"$f":"CustFullSiteAddr","v":"133 Pelhamdale Ave, #1"},null,null,null,null,"CITY",{"$f":"CustSiteCity","v":"Pelham"},null,null,null,null,"ST",{"$f":"CustSiteState","v":"CA"},"ZIP",{"$f":"CustSiteZip","v":10803}]
[null,null,"DATE PURCHASED",null,null,null,null,null,null,"ORIGINAL PURCHASE PRICE"]
[null,null,"1ST MORTGAGE BALANCE",null,null,null,null,null,null,"PAYMENT",null,null,null,null,null,"TAXES & INS. INCLUDED? ",null,null,null,"Y / N"]
[null,null,"2ND MORTGAGE BALANCE",null,null,null,null,null,null,"PAYMENT",null,null,null,null,null,null,null,"CURRENT VALUE"]
[null,null,"MOBILE HOME",null,null,"Y / N",null,"MULTI FAMILY PROPERTY",null,null,null,null,"Y / N",null,null,null,null,"# OF UNITS"]
[]
[null,"BORROWER INFORMATION"]
[]
[null,null,null,null,null,null,"BORROWER",null,null,null,null,null,null,null,null,null,"CO-BORROWER"]
[]
[null,null,"NAME",null,{"$f":"CustFirstName&\" \"&CustLastName","v":"Jackie Sun"},null,null,null,null,null,null,null,"NAME",null,{"$f":"CustSpouseFirstName&\" \"&CustSpouseLastName","v":"Jilla Sky"}]
[null,null,"SOC SEC #",null,null,null,null,null,null,null,null,null,"SOC SEC #"]
[null,null,"DATE OF BIRTH",null,null,null,null,null,null,null,null,null,"DATE OF BIRTH"]
[null,null,"HOME PHONE",null,null,{"$f":"CustPhHome","v":"(408) 111 1111H"},null,null,null,null,null,null,"HOME PHONE",null,null,{"$f":"CustPhHome","v":"(408) 111 1111H"}]
[null,null,"ALTERNATIVE PHONE",null,null,null,{"$f":"CustPhCell","v":"(408) 222 2222C"},null,null,null,null,null,"ALTERNATIVE PHONE",null,null,null,{"$f":"CustPhCell","v":"(408) 222 2222C"}]
[]
[null,"EMPLOYMENT INFORMATION"]
[]
[null,null,null,null,null,null,"BORROWER",null,null,null,null,null,null,null,null,null,"CO-BORROWER"]
[]
[null,null,"EMPLOYER",null,null,null,null,null,null,null,null,null,"EMPLOYER"]
[null,null,"ADDRESS",null,null,null,null,null,null,null,null,null,"ADDRESS"]
[null,null,"PHONE",null,null,null,null,null,null,null,null,null,"PHONE"]
[null,null,"LENGTH OF EMPLOYMENT",null,null,null,null,null,null,null,null,null,"LENGTH OF EMPLOYMENT"]
[null,null,"POSITION",null,null,null,null,null,null,null,null,null,"POSITION"]
[null,null,"ANNUAL INCOME",null,null,null,null,null,null,null,null,null,"ANNUAL INCOME"]
[null,null,"OTHER INCOME",null,null,null,null,null,null,null,null,null,"OTHER INCOME"]
[]
[]
[null,null,null,null,null,"BORROWER",null,null,null,null,null,null,null,null,null,"CO-BORROWER"]
[null,null,null,"o I do not wish to furnish this information",null,null,null,null,null,null,null,null,null,"o I do not wish to furnish this information"]
[]
[null,null,null,null,null,"ETHNICITY",null,null,null,null,null,null,null,null,null,"ETHNICITY"]
[null,null,"o Hispanic or Latino",null,null,"o Not Hispanic or Latino",null,null,null,null,null,null,"o Hispanic or Latino",null,null,"o Not Hispanic or Latino"]
[]
[null,null,null,null,null,"RACE",null,null,null,null,null,null,null,null,null,"RACE"]
[null,null,null,"o American Indian or Native Alaskan",null,null,null,null,null,null,null,null,null,"o American Indian or Native Alaskan"]
[null,null,null,null,null,"o Asian",null,null,null,null,null,null,null,null,null,"o Asian"]
[null,null,null,null,null,"o White",null,null,null,null,null,null,null,null,null,"o White"]
[null,null,null,null,"o Black or African American",null,null,null,null,null,null,null,null,null,"o Black or African American"]
[null,null,null,"o Native Hawaiian or Other Pacific Islander",null,null,null,null,null,null,null,null,null,"o Native Hawaiian or Other Pacific Islander"]
[]
[null,null,null,null,null,"SEX",null,null,null,null,null,null,null,null,null,"SEX"]
[null,null,null,null,"o Male",null,"o Female",null,null,null,null,null,null,null,"o Male",null,"o Female"]
[]
[]
[null,"15 Park Row West, Providence, RI 02903, USA │ 1-800-572-7844 │ Member FDIC │ http://www.admiralsbank.com"]
[]
[]
[]
[]
[]
[]
[]
[]
[]
[null,"ADMIRALS BANK"]
[null,"Home Improvement Lending"]
[]
[]
[]
[]
[null,"INFORMATION DISCLOSURE AUTHORIZATION"]
[]
[]
[null,null,null,"To Whom It May Concern:"]
[]
[]
[null,null,null,"I/we hereby authorize you to release to Admirals Bank for verification "]
[null,null,null,"purposes, information concerning:"]
[]
[null,null,null,null,"Employment history, dates, title, income, hours worked, etc."]
[]
[null,null,null,null,"Banking and savings account records."]
[]
[null,null,null,null,"Mortgage loan rating (opening date, high credit, payment amount,"]
[null,null,null,null,"loan balance, payment record, and maturity date)."]
[]
[null,null,null,null,"Any information deemed necessary in connection with a consumer"]
[null,null,null,null,"credit report for a real estate secured transaction."]
[]
[]
[null,null,null,"This information is for Lender's confidential use in completing a "]
[null,null,null,"mortgage loan application and may be used as a duplicate original."]
[]
[null,null,null,"Your prompt reply will help expedite my real estate transaction."]
[]
[]
[null,null,null,"Thank you."]
[]
[]
[null,null,null,null,null,null,null,null,null,null,null,null,null,null,null,"Date:"]
[null,null,null,null,null,null,null,"(borrower signature)"]
[]
[]
[null,null,null,null,null,null,null,null,null,null,null,null,null,null,null,"Date:"]
[null,null,null,null,null,null,null,"(co-borrower signature)"]

{"sheet":"Letters","index":7,"n_rows":649,"n_cols":7,"rows_kept":649,"cut":false,"hidden":false,"merged":[]}
[]
[]
[]
[null,"LetterIntro: Initial letter of introduction (to be sent upon getting the lead)"]
[]
[null,null,{"$f":"VendSalesperson","v":"Ship Full User"}]
[null,null,{"$f":"VendName","v":"Acme Solar"}]
[null,null,{"$f":"VendAdd1&\" \"&VendAdd2","v":"123 Ship Drive, Bldg 3 "}]
[null,null,{"$f":"VendCity&\", \"&VendState&\"  \"&VendZip","v":"Sunnyvale, CA  94086"}]
[null,null,{"$f":"VendSalesPhWork&\" (office), \"&VendSalesPhCell&\" (mobile)\"","v":"(123) 123 1234 (office), (123) 123 3456 (mobile)"}]
[null,null,{"$f":"VendSalesEmail","v":"fulluser@acmesolar.com"}]
[]
[null,null,{"$f":"TODAY()","v":"2026-01-28"}]
[]
[null,null,{"$f":"CustsFullName","v":"Jackie Sun and Jilla Sky"}]
[null,null,{"$f":"IF(CustCompany>0,CustCompany,\"\")","v":"Ichiban Hibachi"}]
[null,null,{"$f":"IF(CustSiteAddr1>0,CustSiteAddr1&IF(CustSiteAddr2=\"\",\"\",\", \"&CustSiteAddr2),\"\")","v":"133 Pelhamdale Ave, #1"}]
[null,null,{"$f":"IF(CustSiteCity>0,(CustSiteCity&\", \"&CustSiteState&\" \"&CustSiteZip),\"\")","v":"Pelham, CA 10803"}]
[]
[null,null,{"$f":"\"Dear \"&CustFirstName&IF(CustSpouseFirstName>0,\" & \"&CustSpouseFirstName,\"\")&\",\"","v":"Dear Jackie & Jilla,"}]
[]
[null,null,{"$f":"\"Thank you for contacting \"&VendName&\" regarding solar energy. We will be delighted to help you learn more and provide you the information you'll need to decide if solar is right for you.\"","v":"Thank you for contacting Acme Solar regarding solar energy. We will be delighted to help you learn more and provide you the information you'll need to decide if solar is right for you."}]
[]
[null,null,{"$f":"\"We will be contract you shortly to schedule a preliminary telephone conversation to discuss your situation. Having 12 months of recent utility bills will help expedite the analysis. We will then \"&\"provide you a preliminary analysis and estimate of of what solar can do for you and what it will cost. This is also a great time for you to begin asking any questions that you may have. If \"&\"there is anyone else who will be part of the decision, we'd be delighted to have them join the conversation as well.\"","v":"We will be contract you shortly to schedule a preliminary telephone conversation to discuss your situation. Having 12 months of recent utility bills will help expedite the analysis. We will then provide you a preliminary analysis and estimate of of what solar can do for you and what it will cost. This is also a great time for you to begin asking any questions that you may have. If there is anyone else who will be part of the decision, we'd be delighted to have them join the conversation as well."}]
[]
[null,null,"Once you've received the preliminary analysis, as is appropriate to your desires, we can discuss follow-up actions and a site visit."]
[]
[null,null,"We look forward to working with you."]
[]
[null,null,"Best, "]
[]
[]
[]
[null,null,{"$f":"VendSalesperson","v":"Ship Full User"}]
[]
[]
[]
[]
[]
[]
[null,"LetterPrelimProposal1: Letter to go w/ preliminary proposal"]
[]
[null,null,{"$f":"VendSalesperson","v":"Ship Full User"}]
[null,null,{"$f":"VendName","v":"Acme Solar"}]
[null,null,{"$f":"VendAdd1&\" \"&VendAdd2","v":"123 Ship Drive, Bldg 3 "}]
[null,null,{"$f":"VendCity&\", \"&VendState&\"  \"&VendZip","v":"Sunnyvale, CA  94086"}]
[null,null,{"$f":"VendSalesPhWork&\" (office), \"&VendSalesPhCell&\" (mobile)\"","v":"(123) 123 1234 (office), (123) 123 3456 (mobile)"}]
[null,null,{"$f":"VendSalesEmail","v":"fulluser@acmesolar.com"}]
[]
[null,null,{"$f":"TODAY()","v":"2026-01-28"}]
[]
[null,null,{"$f":"CustsFullName","v":"Jackie Sun and Jilla Sky"}]
[null,null,{"$f":"IF(CustCompany>0,CustCompany,\"\")","v":"Ichiban Hibachi"}]
[null,null,{"$f":"IF(CustSiteAddr1>0,CustSiteAddr1&IF(CustSiteAddr2=\"\",\"\",\", \"&CustSiteAddr2),\"\")","v":"133 Pelhamdale Ave, #1"}]
[null,null,{"$f":"IF(CustSiteCity>0,(CustSiteCity&\", \"&CustSiteState&\" \"&CustSiteZip),\"\")","v":"Pelham, CA 10803"}]
[]
[null,null,{"$f":"\"Dear \"&CustFirstName&IF(CustSpouseFirstName>0,\" & \"&CustSpouseFirstName,\"\")&\",\"","v":"Dear Jackie & Jilla,"}]
[]
[null,null,{"$f":"\"Thank you for our recent conversation to discussion your solar options. I've prepared an initial ball-park anaysis of what an appropriate system might look like in terms of size, cost, savings, and benefits it might provide you.\"","v":"Thank you for our recent conversation to discussion your solar options. I've prepared an initial ball-park anaysis of what an appropriate system might look like in terms of size, cost, savings, and benefits it might provide you."}]
[]
[null,null,"We discussed a lot of the important variables and I have a good sense of the likely system size needed and its performance. I'll need to do a site visit to fine tune the analysis and finalize my bid."]
[]
[null,null,"Once you've had a chance to review the preliminary analysis, let's follow-up and discuss what next steps you'd like to take."]
[]
[null,null,"Thanks again for your time on the phone. It's a pleasure to work with you."]
[]
[null,null,"Best, "]
[]
[]
[]
[null,null,{"$f":"VendSalesperson","v":"Ship Full User"}]
[]
[]
[]
[]
[]
[null,"LetterSiteVisit: Letter in site visit folder"]
[]
[null,null,{"$f":"VendSalesperson","v":"Ship Full User"}]
[null,null,{"$f":"VendName","v":"Acme Solar"}]
[null,null,{"$f":"VendAdd1&\" \"&VendAdd2","v":"123 Ship Drive, Bldg 3 "}]
[null,null,{"$f":"VendCity&\", \"&VendState&\"  \"&VendZip","v":"Sunnyvale, CA  94086"}]
[null,null,{"$f":"VendSalesPhWork&\" (office), \"&VendSalesPhCell&\" (mobile)\"","v":"(123) 123 1234 (office), (123) 123 3456 (mobile)"}]
[null,null,{"$f":"VendSalesEmail","v":"fulluser@acmesolar.com"}]
[]
[null,null,{"$f":"TODAY()","v":"2026-01-28"}]
[]
[null,null,{"$f":"CustsFullName","v":"Jackie Sun and Jilla Sky"}]
[null,null,{"$f":"IF(CustCompany>0,CustCompany,\"\")","v":"Ichiban Hibachi"}]
[null,null,{"$f":"IF(CustSiteAddr1>0,CustSiteAddr1&IF(CustSiteAddr2=\"\",\"\",\", \"&CustSiteAddr2),\"\")","v":"133 Pelhamdale Ave, #1"}]
[null,null,{"$f":"IF(CustSiteCity>0,(CustSiteCity&\", \"&CustSiteState&\" \"&CustSiteZip),\"\")","v":"Pelham, CA 10803"}]
[]
[null,null,{"$f":"\"Dear \"&CustFirstName&IF(CustSpouseFirstName>0,\" & \"&CustSpouseFirstName,\"\")&\",\"","v":"Dear Jackie & Jilla,"}]
[]
[null,null,"Thank you for your interest in solar electricity and for agreeing to meet with me to do a site visit to assess the feasibility of the project."]
[]
[null,null,"Enclosed in this folder are the preliminary analysis that I sent previously, plus some module and inverter data sheets, so that you might better know the products that might be appropriate for your project."]
[]
[null,null,{"$f":"\"On today's site visit, I'll be measuring all the parameters that will be essential for accurately determining the best system for your project and determining all the foreseeable cost elements, \"&\"as well as identifying as many of the unknowns as possible, so that I can give you a solid bid.\"","v":"On today's site visit, I'll be measuring all the parameters that will be essential for accurately determining the best system for your project and determining all the foreseeable cost elements, as well as identifying as many of the unknowns as possible, so that I can give you a solid bid."}]
[]
[null,null,{"$f":"\"If at any point any questions come up, please don't hesitate to ask, and feel free to call me on \"&VendSalesPhCell&\" at any time, so that I can get you the information you need to make a good decision.\"","v":"If at any point any questions come up, please don't hesitate to ask, and feel free to call me on (123) 123 3456 at any time, so that I can get you the information you need to make a good decision."}]
[]
[null,null,"Thanks again for the opportunity to meet with you in person."]
[]
[null,null,"Best, "]
[]
[]
[]
[null,null,{"$f":"VendSalesperson","v":"Ship Full User"}]
[]
[]
[]
[]
[]
[]
[null,"LetterProposalEmailed: Letter w/ proposal (if emailed?)?"]
[]
[null,null,{"$f":"VendSalesperson","v":"Ship Full User"}]
[null,null,{"$f":"VendName","v":"Acme Solar"}]
[null,null,{"$f":"VendAdd1&\" \"&VendAdd2","v":"123 Ship Drive, Bldg 3 "}]
[null,null,{"$f":"VendCity&\", \"&VendState&\"  \"&VendZip","v":"Sunnyvale, CA  94086"}]
[null,null,{"$f":"VendSalesPhWork&\" (office), \"&VendSalesPhCell&\" (mobile)\"","v":"(123) 123 1234 (office), (123) 123 3456 (mobile)"}]
[null,null,{"$f":"VendSalesEmail","v":"fulluser@acmesolar.com"}]
[]
[null,null,{"$f":"TODAY()","v":"2026-01-28"}]
[]
[null,null,{"$f":"CustsFullName","v":"Jackie Sun and Jilla Sky"}]
[null,null,{"$f":"IF(CustCompany>0,CustCompany,\"\")","v":"Ichiban Hibachi"}]
[null,null,{"$f":"IF(CustSiteAddr1>0,CustSiteAddr1&IF(CustSiteAddr2=\"\",\"\",\", \"&CustSiteAddr2),\"\")","v":"133 Pelhamdale Ave, #1"}]
[null,null,{"$f":"IF(CustSiteCity>0,(CustSiteCity&\", \"&CustSiteState&\" \"&CustSiteZip),\"\")","v":"Pelham, CA 10803"}]
[]
[null,null,{"$f":"\"Dear \"&CustFirstName&IF(CustSpouseFirstName>0,\" & \"&CustSpouseFirstName,\"\")&\",\"","v":"Dear Jackie & Jilla,"}]
[]
[null,null,"Thank you for allowing me to work with you in your research into solar energy."]
[]
[null,null,{"$f":"\"Included with this note is a proposal for the solar system we've been discussing, a firm quote/bid, and copies of all the paperwork for your review that you be asked to sign to move forward with a system (including incentive and utility documents).\"","v":"Included with this note is a proposal for the solar system we've been discussing, a firm quote/bid, and copies of all the paperwork for your review that you be asked to sign to move forward with a system (including incentive and utility documents)."}]
[]
[null,null,{"$f":"\"Some of this material may generate questions - feel free to call me on \"&VendSalesPhCell&\" at any time, so that I can get you the answers you need to make a good decision. I'll follow up with you shortly as well.\"","v":"Some of this material may generate questions - feel free to call me on (123) 123 3456 at any time, so that I can get you the answers you need to make a good decision. I'll follow up with you shortly as well."}]
[]
[null,null,"Thank you for the opportunity to present you with this proposal."]
[]
[null,null,"Best, "]
[]
[]
[]
[null,null,{"$f":"VendSalesperson","v":"Ship Full User"}]
[]
[]
[]
[]
[]
[]
[null,"LetterFollowup1: 1st Letter to follow-up after proposal (to compliment calls to customer)"]
[]
[null,null,{"$f":"VendSalesperson","v":"Ship Full User"}]
[null,null,{"$f":"VendName","v":"Acme Solar"}]
[null,null,{"$f":"VendAdd1&\" \"&VendAdd2","v":"123 Ship Drive, Bldg 3 "}]
[null,null,{"$f":"VendCity&\", \"&VendState&\"  \"&VendZip","v":"Sunnyvale, CA  94086"}]
[null,null,{"$f":"VendSalesPhWork&\" (office), \"&VendSalesPhCell&\" (mobile)\"","v":"(123) 123 1234 (office), (123) 123 3456 (mobile)"}]
[null,null,{"$f":"VendSalesEmail","v":"fulluser@acmesolar.com"}]
[]
[null,null,{"$f":"TODAY()","v":"2026-01-28"}]
[]
[null,null,{"$f":"CustsFullName","v":"Jackie Sun and Jilla Sky"}]
[null,null,{"$f":"IF(CustCompany>0,CustCompany,\"\")","v":"Ichiban Hibachi"}]
[null,null,{"$f":"IF(CustSiteAddr1>0,CustSiteAddr1&IF(CustSiteAddr2=\"\",\"\",\", \"&CustSiteAddr2),\"\")","v":"133 Pelhamdale Ave, #1"}]
[null,null,{"$f":"IF(CustSiteCity>0,(CustSiteCity&\", \"&CustSiteState&\" \"&CustSiteZip),\"\")","v":"Pelham, CA 10803"}]
[]
[null,null,{"$f":"\"Dear \"&CustFirstName&IF(CustSpouseFirstName>0,\" & \"&CustSpouseFirstName,\"\")&\",\"","v":"Dear Jackie & Jilla,"}]
[]
[null,null,"Thank you for allowing me to present you with a proposal for solar energy recently."]
[]
[null,null,{"$f":"\"I'm writing today to check in with you on your decision process. If any questions have come up,  feel free to call me on \"&VendSalesPhCell&\" at any time, so that I can get you the answers you need to make a good decision. I look forward to following up by phone with you shortly as well.\"","v":"I'm writing today to check in with you on your decision process. If any questions have come up,  feel free to call me on (123) 123 3456 at any time, so that I can get you the answers you need to make a good decision. I look forward to following up by phone with you shortly as well."}]
[]
[null,null,"Thanks again for the chance to work with you."]
[]
[null,null,"Best, "]
[]
[]
[]
[null,null,{"$f":"VendSalesperson","v":"Ship Full User"}]
[]
[]
[]
[]
[]
[null,"LetterFollowup23: 2nd, & 3rd Letter to follow-up after proposal (to compliment calls to customer)"]
[]
[null,null,{"$f":"VendSalesperson","v":"Ship Full User"}]
[null,null,{"$f":"VendName","v":"Acme Solar"}]
[null,null,{"$f":"VendAdd1&\" \"&VendAdd2","v":"123 Ship Drive, Bldg 3 "}]
[null,null,{"$f":"VendCity&\", \"&VendState&\"  \"&VendZip","v":"Sunnyvale, CA  94086"}]
[null,null,{"$f":"VendSalesPhWork&\" (office), \"&VendSalesPhCell&\" (mobile)\"","v":"(123) 123 1234 (office), (123) 123 3456 (mobile)"}]
[null,null,{"$f":"VendSalesEmail","v":"fulluser@acmesolar.com"}]
[]
[null,null,{"$f":"TODAY()","v":"2026-01-28"}]
[]
[null,null,{"$f":"CustsFullName","v":"Jackie Sun and Jilla Sky"}]
[null,null,{"$f":"IF(CustCompany>0,CustCompany,\"\")","v":"Ichiban Hibachi"}]
[null,null,{"$f":"IF(CustSiteAddr1>0,CustSiteAddr1&IF(CustSiteAddr2=\"\",\"\",\", \"&CustSiteAddr2),\"\")","v":"133 Pelhamdale Ave, #1"}]
[null,null,{"$f":"IF(CustSiteCity>0,(CustSiteCity&\", \"&CustSiteState&\" \"&CustSiteZip),\"\")","v":"Pelham, CA 10803"}]
[]
[null,null,{"$f":"\"Dear \"&CustFirstName&IF(CustSpouseFirstName>0,\" & \"&CustSpouseFirstName,\"\")&\",\"","v":"Dear Jackie & Jilla,"}]
[]
[null,null,"Thank you for allowing me to work with you in your research into solar energy."]
[]
[null,null,{"$f":"\"I'm writing today to check in with you on your decision process. If any questions have come up,  feel free to call me on \"&VendSalesPhCell&\" at any time, so that I can get you the answers you need to make a good decision. I look forward to following up by phone with you shortly as well.\"","v":"I'm writing today to check in with you on your decision process. If any questions have come up,  feel free to call me on (123) 123 3456 at any time, so that I can get you the answers you need to make a good decision. I look forward to following up by phone with you shortly as well."}]
[]
[null,null,"Thanks again for the chance to work with you."]
[]
[null,null,"Best, "]
[]
[]
[]
[null,null,{"$f":"VendSalesperson","v":"Ship Full User"}]
[]
[]
[]
[]
[]
[]
[null,"LetterThanksClosed: Letter of thanks upon closed sale"]
[]
[null,null,{"$f":"VendSalesperson","v":"Ship Full User"}]
[null,null,{"$f":"VendName","v":"Acme Solar"}]
[null,null,{"$f":"VendAdd1&\" \"&VendAdd2","v":"123 Ship Drive, Bldg 3 "}]
[null,null,{"$f":"VendCity&\", \"&VendState&\"  \"&VendZip","v":"Sunnyvale, CA  94086"}]
[null,null,{"$f":"VendSalesPhWork&\" (office), \"&VendSalesPhCell&\" (mobile)\"","v":"(123) 123 1234 (office), (123) 123 3456 (mobile)"}]
[null,null,{"$f":"VendSalesEmail","v":"fulluser@acmesolar.com"}]
[]
[null,null,{"$f":"TODAY()","v":"2026-01-28"}]
[]
[null,null,{"$f":"CustsFullName","v":"Jackie Sun and Jilla Sky"}]
[null,null,{"$f":"IF(CustCompany>0,CustCompany,\"\")","v":"Ichiban Hibachi"}]
[null,null,{"$f":"IF(CustSiteAddr1>0,CustSiteAddr1&IF(CustSiteAddr2=\"\",\"\",\", \"&CustSiteAddr2),\"\")","v":"133 Pelhamdale Ave, #1"}]
[null,null,{"$f":"IF(CustSiteCity>0,(CustSiteCity&\", \"&CustSiteState&\" \"&CustSiteZip),\"\")","v":"Pelham, CA 10803"}]
[]
[null,null,{"$f":"\"Dear \"&CustFirstName&IF(CustSpouseFirstName>0,\" & \"&CustSpouseFirstName,\"\")&\",\"","v":"Dear Jackie & Jilla,"}]
[]
[null,null,{"$f":"\"Thank you for choosing \"&VendName&\" to supply and install your solar electric system. We are delighted to be working with you.\"","v":"Thank you for choosing Acme Solar to supply and install your solar electric system. We are delighted to be working with you."}]
[]
[null,null,{"$f":"\"Installation of a solar system is generally straightforward, however sometimes the paperwork can be a little confusing (we'll handle as much of that as possible). If any questions come up, please call me on \"&VendSalesPhCell&\" at any time. I want to make sure you are delighted with both the results and the process of having your new solar electric system installed. Please think of me as your go-to person to make sure everything turns out right.\"","v":"Installation of a solar system is generally straightforward, however sometimes the paperwork can be a little confusing (we'll handle as much of that as possible). If any questions come up, please call me on (123) 123 3456 at any time. I want to make sure you are delighted with both the results and the process of having your new solar electric system installed. Please think of me as your go-to person to make sure everything turns out right."}]
[]
[null,null,"I'll be checking in with you as well from time to time while we wait for construction to begin, and during the installation process to make sure you are as happy as we can make you!"]
[]
[null,null,"Thanks again for choosing us to install your system."]
[]
[null,null,"Best, "]
[]
[]
[]
[null,null,{"$f":"VendSalesperson","v":"Ship Full User"}]
[]
[]
[]
[]
[]
[null,"LetterConstrComm: Letters of communication during construction"]
[]
[null,null,{"$f":"VendSalesperson","v":"Ship Full User"}]
[null,null,{"$f":"VendName","v":"Acme Solar"}]
[null,null,{"$f":"VendAdd1&\" \"&VendAdd2","v":"123 Ship Drive, Bldg 3 "}]
[null,null,{"$f":"VendCity&\", \"&VendState&\"  \"&VendZip","v":"Sunnyvale, CA  94086"}]
[null,null,{"$f":"VendSalesPhWork&\" (office), \"&VendSalesPhCell&\" (mobile)\"","v":"(123) 123 1234 (office), (123) 123 3456 (mobile)"}]
[null,null,{"$f":"VendSalesEmail","v":"fulluser@acmesolar.com"}]
[]
[null,null,{"$f":"TODAY()","v":"2026-01-28"}]
[]
[null,null,{"$f":"CustsFullName","v":"Jackie Sun and Jilla Sky"}]
[null,null,{"$f":"IF(CustCompany>0,CustCompany,\"\")","v":"Ichiban Hibachi"}]
[null,null,{"$f":"IF(CustSiteAddr1>0,CustSiteAddr1&IF(CustSiteAddr2=\"\",\"\",\", \"&CustSiteAddr2),\"\")","v":"133 Pelhamdale Ave, #1"}]
[null,null,{"$f":"IF(CustSiteCity>0,(CustSiteCity&\", \"&CustSiteState&\" \"&CustSiteZip),\"\")","v":"Pelham, CA 10803"}]
[]
[null,null,{"$f":"\"Dear \"&CustFirstName&IF(CustSpouseFirstName>0,\" & \"&CustSpouseFirstName,\"\")&\",\"","v":"Dear Jackie & Jilla,"}]
[]
[null,null,{"$f":"\"We'll soon be starting construction on your new solar electric system. Just before and during construction, the installation manager will be in touch with you regarding day-to-day \"&\"activities and needs of the crew to ensure your system is intalled in a professional and workmanlike fashion. \"","v":"We'll soon be starting construction on your new solar electric system. Just before and during construction, the installation manager will be in touch with you regarding day-to-day activities and needs of the crew to ensure your system is intalled in a professional and workmanlike fashion. "}]
[]
[null,null,{"$f":"\"In general, the installation manager will be the best person to answer your questions about the operational details of the installation, \"&\"however, if at any point you wish to reach me (either as backup or to resolve an issue that you aren't getting satisfaction on), please call me on \"&VendSalesPhCell&\" at any time. I want to make sure you are delighted with both the results and the process of having your new solar electric system installed.\"&\" We're looking to make sure everything turns out right for you, since we rely on referrals for the bulk of our business.\"","v":"In general, the installation manager will be the best person to answer your questions about the operational details of the installation, however, if at any point you wish to reach me (either as backup or to resolve an issue that you aren't getting satisfaction on), please call me on (123) 123 3456 at any time. I want to make sure you are delighted with both the results and the process of having your new solar electric system installed. We're looking to make sure everything turns out right for you, since we rely on referrals for the bulk of our business."}]
[]
[null,null,"I'll be checking in with you as well from time to time during the process to make sure you are as happy as we can make you! Thank you for your business."]
[]
[null,null,"Best, "]
[]
[]
[]
[null,null,{"$f":"VendSalesperson","v":"Ship Full User"}]
[]
[]
[]
[]
[]
[]
[null,"LetterConstPermToAskNeighbors: Letter to asking permission to contact neighbors apologizing for noise/activity w/ offer of free tour of the installation site as compensation for their trouble"]
[]
[null,null,{"$f":"VendSalesperson","v":"Ship Full User"}]
[null,null,{"$f":"VendName","v":"Acme Solar"}]
[null,null,{"$f":"VendAdd1&\" \"&VendAdd2","v":"123 Ship Drive, Bldg 3 "}]
[null,null,{"$f":"VendCity&\", \"&VendState&\"  \"&VendZip","v":"Sunnyvale, CA  94086"}]
[null,null,{"$f":"VendSalesPhWork&\" (office), \"&VendSalesPhCell&\" (mobile)\"","v":"(123) 123 1234 (office), (123) 123 3456 (mobile)"}]
[null,null,{"$f":"VendSalesEmail","v":"fulluser@acmesolar.com"}]
[]
[null,null,{"$f":"TODAY()","v":"2026-01-28"}]
[]
[null,null,{"$f":"CustsFullName","v":"Jackie Sun and Jilla Sky"}]
[null,null,{"$f":"IF(CustCompany>0,CustCompany,\"\")","v":"Ichiban Hibachi"}]
[null,null,{"$f":"IF(CustSiteAddr1>0,CustSiteAddr1&IF(CustSiteAddr2=\"\",\"\",\", \"&CustSiteAddr2),\"\")","v":"133 Pelhamdale Ave, #1"}]
[null,null,{"$f":"IF(CustSiteCity>0,(CustSiteCity&\", \"&CustSiteState&\" \"&CustSiteZip),\"\")","v":"Pelham, CA 10803"}]
[]
[null,null,{"$f":"\"Dear \"&CustFirstName&IF(CustSpouseFirstName>0,\" & \"&CustSpouseFirstName,\"\")&\",\"","v":"Dear Jackie & Jilla,"}]
[]
[null,null,{"$f":"\"The installation of your solar system may create a small disturbance for your neighbors (some noise during permitted business hours and some extra street traffic from our vehicles). We'd \"&\"like to contact them to let them know how to reach us in case they have any concerns or in case there is anything we can do differently/better to minimize the impact on them, and to apologize in advance for the disturbance.\"","v":"The installation of your solar system may create a small disturbance for your neighbors (some noise during permitted business hours and some extra street traffic from our vehicles). We'd like to contact them to let them know how to reach us in case they have any concerns or in case there is anything we can do differently/better to minimize the impact on them, and to apologize in advance for the disturbance."}]
[]
[null,null,{"$f":"\"Sometimes the neighbors are curious about solar and may not have seen a solar system up close before. With your permission, we have two requests: 1. That we mail them (or leave a note on their door) the above mentioned communique. 2.\"&\" If they are curious about the installation process, that we be able to give them a guided tour of your system during the installation process (from the outside only). I'll follow up by phone to ask your consent, or you can call me on \"&VendSalesPhCell&\" to let me know.\"","v":"Sometimes the neighbors are curious about solar and may not have seen a solar system up close before. With your permission, we have two requests: 1. That we mail them (or leave a note on their door) the above mentioned communique. 2. If they are curious about the installation process, that we be able to give them a guided tour of your system during the installation process (from the outside only). I'll follow up by phone to ask your consent, or you can call me on (123) 123 3456 to let me know."}]
[]
[null,null,"As a thank you to you for considering these requests, we'd like to offer you a referral bonus for any of your neighbors who sign up for a system within a year of when your system is completed."]
[]
[null,null,"Best, "]
[]
[]
[]
[null,null,{"$f":"VendSalesperson","v":"Ship Full User"}]
[]
[]
[]
[]
[]
[]
[null,"LetterApologyToNeighborsForNoise: Letter to neighbors apologizing for noise/activity w/ offer of free tour of the installation site"]
[]
[null,null,{"$f":"VendSalesperson","v":"Ship Full User"}]
[null,null,{"$f":"VendName","v":"Acme Solar"}]
[null,null,{"$f":"VendAdd1&\" \"&VendAdd2","v":"123 Ship Drive, Bldg 3 "}]
[null,null,{"$f":"VendCity&\", \"&VendState&\"  \"&VendZip","v":"Sunnyvale, CA  94086"}]
[null,null,{"$f":"VendSalesPhWork&\" (office), \"&VendSalesPhCell&\" (mobile)\"","v":"(123) 123 1234 (office), (123) 123 3456 (mobile)"}]
[null,null,{"$f":"VendSalesEmail","v":"fulluser@acmesolar.com"}]
[]
[null,null,{"$f":"TODAY()","v":"2026-01-28"}]
[]
[null,null,{"$f":"\"Dear Neighbor of \"&CustsFullName&\",\"","v":"Dear Neighbor of Jackie Sun and Jilla Sky,"}]
[]
[null,null,{"$f":"CustFirstName&IF(CustSpouseFirstName>0,\" & \"&CustSpouseFirstName,\"\")&\" are having a solar electric system installed by our company: \"&VendName&\". The installation of your solar system may create a small disturbance for your neighbors (some noise during permitted business hours and some extra street traffic from our vehicles). \"&\" how to reach us in case they have any concerns or in case there is anything we can do differently/better to minimize the impact on them, and to apologize in advance for the disturbance.\"","v":"Jackie & Jilla are having a solar electric system installed by our company: Acme Solar. The installation of your solar system may create a small disturbance for your neighbors (some noise during permitted business hours and some extra street traffic from our vehicles).  how to reach us in case they have any concerns or in case there is anything we can do differently/better to minimize the impact on them, and to apologize in advance for the disturbance."}]
[]
[]
[null,null,{"$f":"\"The installation of your solar system may create a small disturbance in your neighborhood (some noise during permitted business hours and some extra street traffic from our vehicles). \"&\"We apologize in advance, and will of course attempt to keep this disturbance to a minimum. If you have any concerns or notice anything we can do differently/better to minimize the impact on you please let us know. I can be reached at: \"&VendSalesPhCell&\", and the project manager is NAME and can be reached at: NUMBER\"","v":"The installation of your solar system may create a small disturbance in your neighborhood (some noise during permitted business hours and some extra street traffic from our vehicles). We apologize in advance, and will of course attempt to keep this disturbance to a minimum. If you have any concerns or notice anything we can do differently/better to minimize the impact on you please let us know. I can be reached at: (123) 123 3456, and the project manager is NAME and can be reached at: NUMBER"}]
[]
[null,null,{"$f":"\"In case you are curious about solar electric systems, \"&CustFirstName&IF(CustSpouseFirstName>0,\" & \"&CustSpouseFirstName,\"\")&\" have agreed for us to provide you guided tours of the system as it is being installed. If that would be of interest, please call me at the above number and I'll be happy to make the arrangements.\"","v":"In case you are curious about solar electric systems, Jackie & Jilla have agreed for us to provide you guided tours of the system as it is being installed. If that would be of interest, please call me at the above number and I'll be happy to make the arrangements."}]
[]
[null,null,{"$f":"\"Finally, if you have any questions or would like a free analysis and quote for solar for your situation, please let me know. I am eager to spread knowledge and awareness of what solar energy can due for the community.\"","v":"Finally, if you have any questions or would like a free analysis and quote for solar for your situation, please let me know. I am eager to spread knowledge and awareness of what solar energy can due for the community."}]
[]
[null,null,"Best, "]
[]
[]
[]
[null,null,{"$f":"VendSalesperson","v":"Ship Full User"}]
[]
[]
[]
[]
[]
[null,"LetterCompletionCongrats: Letter of completion/congratulations on your new system (from the sales guy) in add’n to the owner’s manual completion docs (maybe includes offer to have BBQ for neighbors & give them a tour to celebrate)"]
[]
[null,null,{"$f":"VendSalesperson","v":"Ship Full User"}]
[null,null,{"$f":"VendName","v":"Acme Solar"}]
[null,null,{"$f":"VendAdd1&\" \"&VendAdd2","v":"123 Ship Drive, Bldg 3 "}]
[null,null,{"$f":"VendCity&\", \"&VendState&\"  \"&VendZip","v":"Sunnyvale, CA  94086"}]
[null,null,{"$f":"VendSalesPhWork&\" (office), \"&VendSalesPhCell&\" (mobile)\"","v":"(123) 123 1234 (office), (123) 123 3456 (mobile)"}]
[null,null,{"$f":"VendSalesEmail","v":"fulluser@acmesolar.com"}]
[]
[null,null,{"$f":"TODAY()","v":"2026-01-28"}]
[]
[null,null,{"$f":"CustsFullName","v":"Jackie Sun and Jilla Sky"}]
[null,null,{"$f":"IF(CustCompany>0,CustCompany,\"\")","v":"Ichiban Hibachi"}]
[null,null,{"$f":"IF(CustSiteAddr1>0,CustSiteAddr1&IF(CustSiteAddr2=\"\",\"\",\", \"&CustSiteAddr2),\"\")","v":"133 Pelhamdale Ave, #1"}]
[null,null,{"$f":"IF(CustSiteCity>0,(CustSiteCity&\", \"&CustSiteState&\" \"&CustSiteZip),\"\")","v":"Pelham, CA 10803"}]
[]
[null,null,{"$f":"\"Dear \"&CustFirstName&IF(CustSpouseFirstName>0,\" & \"&CustSpouseFirstName,\"\")&\",\"","v":"Dear Jackie & Jilla,"}]
[]
[null,null,{"$f":"\"Congratulations! Your solar system installation is complete and the local inspector and utility have signed off on the project allow us (our you if you'd like to throw the switch!) to turn your \"&\"system on and start making power with your system. We're excited to see even more solar power on the grid, for all the positive things it does for our customers and the community - we share in your joy!\"","v":"Congratulations! Your solar system installation is complete and the local inspector and utility have signed off on the project allow us (our you if you'd like to throw the switch!) to turn your system on and start making power with your system. We're excited to see even more solar power on the grid, for all the positive things it does for our customers and the community - we share in your joy!"}]
[]
[null,null,"With this note is your Owner's Manual, explaining the details of how to  keep your system in top working condition, as well as how to contact us to investigate any problems that may occur. "]
[]
[null,null,{"$f":"\"We recognize that nothing is ever perfect, and that there is always room to grow and improve. We would very much appreciate it if you would share with us in writing or by phone any and all \"&\"of the things that were problems during the entire process - things that we could have done better for you. We depend on your feedback in order for us to become better, and to help us \"&\"survive and grow to ensure we are here to honor your warranty and serve you in the future. We'll call you to follow up on this point as well.\"","v":"We recognize that nothing is ever perfect, and that there is always room to grow and improve. We would very much appreciate it if you would share with us in writing or by phone any and all of the things that were problems during the entire process - things that we could have done better for you. We depend on your feedback in order for us to become better, and to help us survive and grow to ensure we are here to honor your warranty and serve you in the future. We'll call you to follow up on this point as well."}]
[]
[null,null,{"$f":"\"I'd also like to introduce our referral bonus program. For a any referral you provide us who signs up for an completes installation of a solar electric system, we'd like to give you a bonus of at \"&\"least $250 (cash or gift to share with someone special), more for systems over 5kW. Simply ask your referral to let us know it was you who referred them when we ask, and if you would \"&\"please also let us know to expect a call from them, that way we can ensure you are properly thanked for your kind words about our quality and workmanship.\"","v":"I'd also like to introduce our referral bonus program. For a any referral you provide us who signs up for an completes installation of a solar electric system, we'd like to give you a bonus of at least $250 (cash or gift to share with someone special), more for systems over 5kW. Simply ask your referral to let us know it was you who referred them when we ask, and if you would please also let us know to expect a call from them, that way we can ensure you are properly thanked for your kind words about our quality and workmanship."}]
[]
[null,null,{"$f":"\"I'll follow up periodically to make sure everything is working correctly and that you're seeing the benefits and performance you expected. However, please don't hesitate to contact me on \"&VendSalesPhCell&\" in case there is anything I can do for you. My goals are for the long term - to be the person you turn to the next time you need a solar system!\"","v":"I'll follow up periodically to make sure everything is working correctly and that you're seeing the benefits and performance you expected. However, please don't hesitate to contact me on (123) 123 3456 in case there is anything I can do for you. My goals are for the long term - to be the person you turn to the next time you need a solar system!"}]
[]
[null,null,"Best, "]
[]
[]
[]
[null,null,{"$f":"VendSalesperson","v":"Ship Full User"}]
[]
[]
[]
[]
[]
[null,"LetterReferralRequest: Referral request letter / script"]
[]
[null,null,{"$f":"VendSalesperson","v":"Ship Full User"}]
[null,null,{"$f":"VendName","v":"Acme Solar"}]
[null,null,{"$f":"VendAdd1&\" \"&VendAdd2","v":"123 Ship Drive, Bldg 3 "}]
[null,null,{"$f":"VendCity&\", \"&VendState&\"  \"&VendZip","v":"Sunnyvale, CA  94086"}]
[null,null,{"$f":"VendSalesPhWork&\" (office), \"&VendSalesPhCell&\" (mobile)\"","v":"(123) 123 1234 (office), (123) 123 3456 (mobile)"}]
[null,null,{"$f":"VendSalesEmail","v":"fulluser@acmesolar.com"}]
[]
[null,null,{"$f":"TODAY()","v":"2026-01-28"}]
[]
[null,null,{"$f":"CustsFullName","v":"Jackie Sun and Jilla Sky"}]
[null,null,{"$f":"IF(CustCompany>0,CustCompany,\"\")","v":"Ichiban Hibachi"}]
[null,null,{"$f":"IF(CustSiteAddr1>0,CustSiteAddr1&IF(CustSiteAddr2=\"\",\"\",\", \"&CustSiteAddr2),\"\")","v":"133 Pelhamdale Ave, #1"}]
[null,null,{"$f":"IF(CustSiteCity>0,(CustSiteCity&\", \"&CustSiteState&\" \"&CustSiteZip),\"\")","v":"Pelham, CA 10803"}]
[]
[null,null,{"$f":"\"Dear \"&CustFirstName&IF(CustSpouseFirstName>0,\" & \"&CustSpouseFirstName,\"\")&\",\"","v":"Dear Jackie & Jilla,"}]
[]
[null,null,{"$f":"\"Thank you again for choosing \"&VendName&\" to supply and install your solar electric system. We have been delighted to work with you.\"","v":"Thank you again for choosing Acme Solar to supply and install your solar electric system. We have been delighted to work with you."}]
[]
[null,null,{"$f":"\"We hope you are as happy with this relationship as we are. If you are, why not share it with your friends and neighbors? We'd be thrilled to offer them the same excellent service we've attempted to offer you, and we'd like to make it worth your while too!\"","v":"We hope you are as happy with this relationship as we are. If you are, why not share it with your friends and neighbors? We'd be thrilled to offer them the same excellent service we've attempted to offer you, and we'd like to make it worth your while too!"}]
[]
[null,null,{"$f":"\"For a any referral you provide us who signs up for an completes installation of a solar electric system, we'd like to give you a bonus of at least $250 (cash or gift to share with someone \"&\"special), more for systems over 5kW. Simply ask your referral to let us know it was you who referred them when we ask, and if you would please also let us know to expect a call from them, \"&\"that way we can ensure you are properly thanked for your kind words about our quality and workmanship.\"","v":"For a any referral you provide us who signs up for an completes installation of a solar electric system, we'd like to give you a bonus of at least $250 (cash or gift to share with someone special), more for systems over 5kW. Simply ask your referral to let us know it was you who referred them when we ask, and if you would please also let us know to expect a call from them, that way we can ensure you are properly thanked for your kind words about our quality and workmanship."}]
[]
[null,null,{"$f":"\"We live and die by our referrals - they are the bulk of our new business, so we'll work just as hard for them as we did for you. If there's anything I can do for you, please contact me on \"&VendSalesPhCell&\". Thanks again for your business.\"","v":"We live and die by our referrals - they are the bulk of our new business, so we'll work just as hard for them as we did for you. If there's anything I can do for you, please contact me on (123) 123 3456. Thanks again for your business."}]
[]
[null,null,"Best, "]
[]
[]
[]
[null,null,{"$f":"VendSalesperson","v":"Ship Full User"}]
[]
[]
[]
[]
[]
[]
[null,"LetterQuoteRequest: Testimonial/Quote request letter / script"]
[]
[null,null,{"$f":"VendSalesperson","v":"Ship Full User"}]
[null,null,{"$f":"VendName","v":"Acme Solar"}]
[null,null,{"$f":"VendAdd1&\" \"&VendAdd2","v":"123 Ship Drive, Bldg 3 "}]
[null,null,{"$f":"VendCity&\", \"&VendState&\"  \"&VendZip","v":"Sunnyvale, CA  94086"}]
[null,null,{"$f":"VendSalesPhWork&\" (office), \"&VendSalesPhCell&\" (mobile)\"","v":"(123) 123 1234 (office), (123) 123 3456 (mobile)"}]
[null,null,{"$f":"VendSalesEmail","v":"fulluser@acmesolar.com"}]
[]
[null,null,{"$f":"TODAY()","v":"2026-01-28"}]
[]
[null,null,{"$f":"CustsFullName","v":"Jackie Sun and Jilla Sky"}]
[null,null,{"$f":"IF(CustCompany>0,CustCompany,\"\")","v":"Ichiban Hibachi"}]
[null,null,{"$f":"IF(CustSiteAddr1>0,CustSiteAddr1&IF(CustSiteAddr2=\"\",\"\",\", \"&CustSiteAddr2),\"\")","v":"133 Pelhamdale Ave, #1"}]
[null,null,{"$f":"IF(CustSiteCity>0,(CustSiteCity&\", \"&CustSiteState&\" \"&CustSiteZip),\"\")","v":"Pelham, CA 10803"}]
[]
[null,null,{"$f":"\"Dear \"&CustFirstName&IF(CustSpouseFirstName>0,\" & \"&CustSpouseFirstName,\"\")&\",\"","v":"Dear Jackie & Jilla,"}]
[]
[null,null,{"$f":"\"Thank you again for choosing \"&VendName&\" to supply and install your solar electric system. We have been delighted to work with you.\"","v":"Thank you again for choosing Acme Solar to supply and install your solar electric system. We have been delighted to work with you."}]
[]
[null,null,{"$f":"\"We hope you are as happy with this relationship as we are. If you are, would you be wiling to share a quote or testimonial about us that we can use to let other's know about our workmanship and dedication to quality and our customers?\"","v":"We hope you are as happy with this relationship as we are. If you are, would you be wiling to share a quote or testimonial about us that we can use to let other's know about our workmanship and dedication to quality and our customers?"}]
[]
[null,null,{"$f":"\"Whatever you feel is appropriate would be great with us - anything from 1 word to 1,000. Feel free to send it by email or U.S. Mail to the addresses above, or by fax to \"&VendSalesFax&\".\"","v":"Whatever you feel is appropriate would be great with us - anything from 1 word to 1,000. Feel free to send it by email or U.S. Mail to the addresses above, or by fax to (123) 123 4567."}]
[]
[null,null,{"$f":"\"We live and die by your referrals - they are the bulk of our new business, so we'll work just as hard for them as we did for you, so that we can earn their referrals too. If there's anything I can do for you, please contact me on \"&VendSalesPhCell&\". Thanks again for your business.\"","v":"We live and die by your referrals - they are the bulk of our new business, so we'll work just as hard for them as we did for you, so that we can earn their referrals too. If there's anything I can do for you, please contact me on (123) 123 3456. Thanks again for your business."}]
[]
[null,null,"Best, "]
[]
[]
[]
[null,null,{"$f":"VendSalesperson","v":"Ship Full User"}]
[]
[]
[]
[]
[]
[null,"Letter1MonthFollowup: 1 month follow-up letter to explain new bill"]
[]
[null,null,{"$f":"VendSalesperson","v":"Ship Full User"}]
[null,null,{"$f":"VendName","v":"Acme Solar"}]
[null,null,{"$f":"VendAdd1&\" \"&VendAdd2","v":"123 Ship Drive, Bldg 3 "}]
[null,null,{"$f":"VendCity&\", \"&VendState&\"  \"&VendZip","v":"Sunnyvale, CA  94086"}]
[null,null,{"$f":"VendSalesPhWork&\" (office), \"&VendSalesPhCell&\" (mobile)\"","v":"(123) 123 1234 (office), (123) 123 3456 (mobile)"}]
[null,null,{"$f":"VendSalesEmail","v":"fulluser@acmesolar.com"}]
[]
[null,null,{"$f":"TODAY()","v":"2026-01-28"}]
[]
[null,null,{"$f":"CustsFullName","v":"Jackie Sun and Jilla Sky"}]
[null,null,{"$f":"IF(CustCompany>0,CustCompany,\"\")","v":"Ichiban Hibachi"}]
[null,null,{"$f":"IF(CustSiteAddr1>0,CustSiteAddr1&IF(CustSiteAddr2=\"\",\"\",\", \"&CustSiteAddr2),\"\")","v":"133 Pelhamdale Ave, #1"}]
[null,null,{"$f":"IF(CustSiteCity>0,(CustSiteCity&\", \"&CustSiteState&\" \"&CustSiteZip),\"\")","v":"Pelham, CA 10803"}]
[]
[null,null,{"$f":"\"Dear \"&CustFirstName&IF(CustSpouseFirstName>0,\" & \"&CustSpouseFirstName,\"\")&\",\"","v":"Dear Jackie & Jilla,"}]
[]
[null,null,{"$f":"\"Thank you again for choosing \"&VendName&\" to supply and install your solar electric system. It's been a little over a month since your system was installed. We wanted to check in with you to make sure it's working correctly, and that you've received your first net-metering statement from \"&Utility&\".\"","v":"Thank you again for choosing Acme Solar to supply and install your solar electric system. It's been a little over a month since your system was installed. We wanted to check in with you to make sure it's working correctly, and that you've received your first net-metering statement from PG&E."}]
[]
[null,null,{"$f":"\"The net metering statements are a little confusing, so if you have any trouble reading it, or have any questions about it, please give me a call. I want to make sure you know how to read it \"&\"and the display on your inverter, so you an be assured your system is working well.\"","v":"The net metering statements are a little confusing, so if you have any trouble reading it, or have any questions about it, please give me a call. I want to make sure you know how to read it and the display on your inverter, so you an be assured your system is working well."}]
[]
[null,null,{"$f":"\"I've included some extra business cards in case there is anyone you wanted to let know I was here to help. We've worked hard to make you happy and earn your referrals. Please be \"&\"assured anyone you send our way will receive the same low-pressure 'consultative sales' informational service that you did in evaluating solar. We're here to make you look good (and smart for having gone solar).\"","v":"I've included some extra business cards in case there is anyone you wanted to let know I was here to help. We've worked hard to make you happy and earn your referrals. Please be assured anyone you send our way will receive the same low-pressure 'consultative sales' informational service that you did in evaluating solar. We're here to make you look good (and smart for having gone solar)."}]
[]
[null,null,{"$f":"\"If there's anything I can do for you, please contact me on \"&VendSalesPhCell&\". Thanks again for your business.\"","v":"If there's anything I can do for you, please contact me on (123) 123 3456. Thanks again for your business."}]
[]
[null,null,"Best, "]
[]
[]
[]
[null,null,{"$f":"VendSalesperson","v":"Ship Full User"}]
[]
[]
[]
[]
[]
[null,"Letter3MonthFollowup: 3-4 month follow-up letter to check in"]
[]
[null,null,{"$f":"VendSalesperson","v":"Ship Full User"}]
[null,null,{"$f":"VendName","v":"Acme Solar"}]
[null,null,{"$f":"VendAdd1&\" \"&VendAdd2","v":"123 Ship Drive, Bldg 3 "}]
[null,null,{"$f":"VendCity&\", \"&VendState&\"  \"&VendZip","v":"Sunnyvale, CA  94086"}]
[null,null,{"$f":"VendSalesPhWork&\" (office), \"&VendSalesPhCell&\" (mobile)\"","v":"(123) 123 1234 (office), (123) 123 3456 (mobile)"}]
[null,null,{"$f":"VendSalesEmail","v":"fulluser@acmesolar.com"}]
[]
[null,null,{"$f":"TODAY()","v":"2026-01-28"}]
[]
[null,null,{"$f":"CustsFullName","v":"Jackie Sun and Jilla Sky"}]
[null,null,{"$f":"IF(CustCompany>0,CustCompany,\"\")","v":"Ichiban Hibachi"}]
[null,null,{"$f":"IF(CustSiteAddr1>0,CustSiteAddr1&IF(CustSiteAddr2=\"\",\"\",\", \"&CustSiteAddr2),\"\")","v":"133 Pelhamdale Ave, #1"}]
[null,null,{"$f":"IF(CustSiteCity>0,(CustSiteCity&\", \"&CustSiteState&\" \"&CustSiteZip),\"\")","v":"Pelham, CA 10803"}]
[]
[null,null,{"$f":"\"Dear \"&CustFirstName&IF(CustSpouseFirstName>0,\" & \"&CustSpouseFirstName,\"\")&\",\"","v":"Dear Jackie & Jilla,"}]
[]
[null,null,{"$f":"\"Thank you again for choosing \"&VendName&\" to supply and install your solar electric system. It's been a little a few months since your system was installed. We wanted to check in with you to make sure it's working correctly, and that you're receiving net-metering statements from \"&Utility&\" and that they are making sense.\"","v":"Thank you again for choosing Acme Solar to supply and install your solar electric system. It's been a little a few months since your system was installed. We wanted to check in with you to make sure it's working correctly, and that you're receiving net-metering statements from PG&E and that they are making sense."}]
[]
[null,null,{"$f":"\"The net metering statements are a little confusing, so if you have any trouble reading them, or have any questions, please give me a call. I want to make sure you know how to read them \"&\"and the display on your inverter, so you an be assured your system is working well.\"","v":"The net metering statements are a little confusing, so if you have any trouble reading them, or have any questions, please give me a call. I want to make sure you know how to read them and the display on your inverter, so you an be assured your system is working well."},null,null,null,"<< Include predicted usage, production and net $ amounts on their bills based on time of year of install and expected production (once these features are developed)"]
[]
[null,null,{"$f":"\"I would also like to remind you of our referral bonus program: For a any referral you provide us who signs up for an completes installation of a solar electric system, we'd like to give you a \"&\"bonus of at least $250 (cash or gift to share with someone special), more for systems over 5kW. Simply ask your referral to let us know it was you who referred them when we ask, and if you \"&\"would please also let us know to expect a call from them, that way we can ensure you are properly thanked for your kind words about our quality and workmanship.\"","v":"I would also like to remind you of our referral bonus program: For a any referral you provide us who signs up for an completes installation of a solar electric system, we'd like to give you a bonus of at least $250 (cash or gift to share with someone special), more for systems over 5kW. Simply ask your referral to let us know it was you who referred them when we ask, and if you would please also let us know to expect a call from them, that way we can ensure you are properly thanked for your kind words about our quality and workmanship."}]
[]
[null,null,{"$f":"\"If there's anything I can do for you, please contact me on \"&VendSalesPhCell&\". Thanks again for your business.\"","v":"If there's anything I can do for you, please contact me on (123) 123 3456. Thanks again for your business."}]
[]
[null,null,"Best, "]
[]
[]
[]
[null,null,{"$f":"VendSalesperson","v":"Ship Full User"}]
[]
[]
[]
[]
[]
[null,"Letter12MonthFollowup: 12th month true-up follow-up letter"]
[]
[null,null,{"$f":"VendSalesperson","v":"Ship Full User"}]
[null,null,{"$f":"VendName","v":"Acme Solar"}]
[null,null,{"$f":"VendAdd1&\" \"&VendAdd2","v":"123 Ship Drive, Bldg 3 "}]
[null,null,{"$f":"VendCity&\", \"&VendState&\"  \"&VendZip","v":"Sunnyvale, CA  94086"}]
[null,null,{"$f":"VendSalesPhWork&\" (office), \"&VendSalesPhCell&\" (mobile)\"","v":"(123) 123 1234 (office), (123) 123 3456 (mobile)"}]
[null,null,{"$f":"VendSalesEmail","v":"fulluser@acmesolar.com"}]
[]
[null,null,{"$f":"TODAY()","v":"2026-01-28"}]
[]
[null,null,{"$f":"CustsFullName","v":"Jackie Sun and Jilla Sky"}]
[null,null,{"$f":"IF(CustCompany>0,CustCompany,\"\")","v":"Ichiban Hibachi"}]
[null,null,{"$f":"IF(CustSiteAddr1>0,CustSiteAddr1&IF(CustSiteAddr2=\"\",\"\",\", \"&CustSiteAddr2),\"\")","v":"133 Pelhamdale Ave, #1"}]
[null,null,{"$f":"IF(CustSiteCity>0,(CustSiteCity&\", \"&CustSiteState&\" \"&CustSiteZip),\"\")","v":"Pelham, CA 10803"}]
[]
[null,null,{"$f":"\"Dear \"&CustFirstName&IF(CustSpouseFirstName>0,\" & \"&CustSpouseFirstName,\"\")&\",\"","v":"Dear Jackie & Jilla,"}]
[]
[null,null,{"$f":"\"Thank you again for choosing \"&VendName&\" to supply and install your solar electric system. It's been about a year since your system was installed. We wanted to check in with you to make sure \"&\"your solar system is working correctly. We also wanted to make sure that you knew to look for your annual net-metering 'true-up' statement from \"&Utility&\" and that it makes sense and is what you expected.\"","v":"Thank you again for choosing Acme Solar to supply and install your solar electric system. It's been about a year since your system was installed. We wanted to check in with you to make sure your solar system is working correctly. We also wanted to make sure that you knew to look for your annual net-metering 'true-up' statement from PG&E and that it makes sense and is what you expected."}]
[]
[null,null,{"$f":"\"The 'true-up' net metering statement is a little confusing, so if you have any trouble reading it, or have any questions about it, please give me a call. I want to make sure you know how to \"&\"read it and the display on your inverter, so you an be assured your system is working well. On each anniversary is a good time to record the production displayed on your inverter, for your records.\"","v":"The 'true-up' net metering statement is a little confusing, so if you have any trouble reading it, or have any questions about it, please give me a call. I want to make sure you know how to read it and the display on your inverter, so you an be assured your system is working well. On each anniversary is a good time to record the production displayed on your inverter, for your records."}]
[]
[null,null,{"$f":"\"I would also like to remind you of our referral bonus program: For a any referral you provide us who signs up for an completes installation of a solar electric system, we'd like to give you a \"&\"bonus of at least $250 (cash or gift to share with someone special), more for systems over 5kW. Simply ask your referral to let us know it was you who referred them when we ask, and if you \"&\"would please also let us know to expect a call from them, that way we can ensure you are properly thanked for your kind words about our quality and workmanship.\"","v":"I would also like to remind you of our referral bonus program: For a any referral you provide us who signs up for an completes installation of a solar electric system, we'd like to give you a bonus of at least $250 (cash or gift to share with someone special), more for systems over 5kW. Simply ask your referral to let us know it was you who referred them when we ask, and if you would please also let us know to expect a call from them, that way we can ensure you are properly thanked for your kind words about our quality and workmanship."}]
[]
[null,null,{"$f":"\"If there's anything I can do for you, please contact me on \"&VendSalesPhCell&\". Thanks again for your business.\"","v":"If there's anything I can do for you, please contact me on (123) 123 3456. Thanks again for your business."}]
[]
[null,null,"Best, "]
[]
[]
[]
[null,null,{"$f":"VendSalesperson","v":"Ship Full User"}]
[]
[]
[]
[]
[]
[null,"LetterAnnualFollowup: Annual follow-up letter"]
[]
[null,null,{"$f":"VendSalesperson","v":"Ship Full User"}]
[null,null,{"$f":"VendName","v":"Acme Solar"}]
[null,null,{"$f":"VendAdd1&\" \"&VendAdd2","v":"123 Ship Drive, Bldg 3 "}]
[null,null,{"$f":"VendCity&\", \"&VendState&\"  \"&VendZip","v":"Sunnyvale, CA  94086"}]
[null,null,{"$f":"VendSalesPhWork&\" (office), \"&VendSalesPhCell&\" (mobile)\"","v":"(123) 123 1234 (office), (123) 123 3456 (mobile)"}]
[null,null,{"$f":"VendSalesEmail","v":"fulluser@acmesolar.com"}]
[]
[null,null,{"$f":"TODAY()","v":"2026-01-28"}]
[]
[null,null,{"$f":"CustsFullName","v":"Jackie Sun and Jilla Sky"}]
[null,null,{"$f":"IF(CustCompany>0,CustCompany,\"\")","v":"Ichiban Hibachi"}]
[null,null,{"$f":"IF(CustSiteAddr1>0,CustSiteAddr1&IF(CustSiteAddr2=\"\",\"\",\", \"&CustSiteAddr2),\"\")","v":"133 Pelhamdale Ave, #1"}]
[null,null,{"$f":"IF(CustSiteCity>0,(CustSiteCity&\", \"&CustSiteState&\" \"&CustSiteZip),\"\")","v":"Pelham, CA 10803"}]
[]
[null,null,{"$f":"\"Dear \"&CustFirstName&IF(CustSpouseFirstName>0,\" & \"&CustSpouseFirstName,\"\")&\",\"","v":"Dear Jackie & Jilla,"}]
[]
[null,null,{"$f":"\"Thank you again for choosing \"&VendName&\" to supply and install your solar electric system. This is your annual check-in letter. We also wanted to remind you to look for your annual net-metering 'true-up' statement from \"&Utility&\" and make sure it makes sense and is what you expected.\"","v":"Thank you again for choosing Acme Solar to supply and install your solar electric system. This is your annual check-in letter. We also wanted to remind you to look for your annual net-metering 'true-up' statement from PG&E and make sure it makes sense and is what you expected."}]
[]
[null,null,{"$f":"\"The 'true-up' net metering statement is a little confusing, so if you have any trouble reading it, or have any questions about it, please give me a call. I want to make sure you know how to \"&\"read it and the display on your inverter, so you an be assured your system is working well. On each anniversary is a good time to record the production displayed on your inverter, for your records.\"","v":"The 'true-up' net metering statement is a little confusing, so if you have any trouble reading it, or have any questions about it, please give me a call. I want to make sure you know how to read it and the display on your inverter, so you an be assured your system is working well. On each anniversary is a good time to record the production displayed on your inverter, for your records."}]
[]
[null,null,{"$f":"\"I would also like to remind you of our referral bonus program: For a any referral you provide us who signs up for an completes installation of a solar electric system, we'd like to give you a \"&\"bonus of at least $250 (cash or gift to share with someone special), more for systems over 5kW. Simply ask your referral to let us know it was you who referred them when we ask, and if you\"&\" would please also let us know to expect a call from them, that way we can ensure you are properly thanked for your kind words about our quality and workmanship.\"","v":"I would also like to remind you of our referral bonus program: For a any referral you provide us who signs up for an completes installation of a solar electric system, we'd like to give you a bonus of at least $250 (cash or gift to share with someone special), more for systems over 5kW. Simply ask your referral to let us know it was you who referred them when we ask, and if you would please also let us know to expect a call from them, that way we can ensure you are properly thanked for your kind words about our quality and workmanship."}]
[]
[null,null,{"$f":"\"If there's anything I can do for you, please contact me on \"&VendSalesPhCell&\". Thanks again for your business.\"","v":"If there's anything I can do for you, please contact me on (123) 123 3456. Thanks again for your business."}]
[]
[null,null,"Best, "]
[]
[]
[]
[null,null,{"$f":"VendSalesperson","v":"Ship Full User"}]
[]
[]
[]
[]
[]
[]
[null,"LetterToFutureOwner: Letter to give to a future purchaser of this home \"Introduction to solar and the installer\""]
[]
[null,null,"TO BE GIVEN TO A FUTURE BUYER OF YOUR HOME"]
[]
[null,null,{"$f":"VendSalesperson","v":"Ship Full User"}]
[null,null,{"$f":"VendName","v":"Acme Solar"}]
[null,null,{"$f":"VendAdd1&\" \"&VendAdd2","v":"123 Ship Drive, Bldg 3 "}]
[null,null,{"$f":"VendCity&\", \"&VendState&\"  \"&VendZip","v":"Sunnyvale, CA  94086"}]
[null,null,{"$f":"VendSalesPhWork&\" (office), \"&VendSalesPhCell&\" (mobile)\"","v":"(123) 123 1234 (office), (123) 123 3456 (mobile)"}]
[null,null,{"$f":"VendSalesEmail","v":"fulluser@acmesolar.com"}]
[]
[null,null,{"$f":"TODAY()","v":"2026-01-28"}]
[]
[null,null,"New Homeowner at:"]
[null,null,{"$f":"IF(CustSiteAddr1>0,CustSiteAddr1&IF(CustSiteAddr2=\"\",\"\",\", \"&CustSiteAddr2),\"\")","v":"133 Pelhamdale Ave, #1"}]
[null,null,{"$f":"IF(CustSiteCity>0,(CustSiteCity&\", \"&CustSiteState&\" \"&CustSiteZip),\"\")","v":"Pelham, CA 10803"}]
[]
[null,null,"Dear New Homeowner,"]
[]
[null,null,{"$f":"\"We (\"&VendName&\") were the company who installed the solar electric system on your new home. We wanted to make sure you know who we were in case you had any questions or service needs for the system.\"","v":"We (Acme Solar) were the company who installed the solar electric system on your new home. We wanted to make sure you know who we were in case you had any questions or service needs for the system."}]
[]
[null,null,{"$f":"\"We hope the previous owner left you the owner's manual and system records for the system, if not, please contact us. If you haven't owned a solar system before, you'll find it is a valuable asset that you'll be glad is part of the home.\"","v":"We hope the previous owner left you the owner's manual and system records for the system, if not, please contact us. If you haven't owned a solar system before, you'll find it is a valuable asset that you'll be glad is part of the home."}]
[]
[null,null,{"$f":"\"Some tips: Solar systems are virtually maintenance free, but hosing the dust off every couple of months if it hasn't rained is a good idea (best to do this early morning or evenings when the \"&\"sun isn't very intense - it's best not to thermally shock them with cold water if they are hot). The other points of maintenance are to read the display on the inverter to make sure the system \"&\"is working and putting out electricity, and to check your montly electric statement. We'd be happy to walk you thru your system and any of the documentation, your new electric bills, and net \"&\"metering requirements of ownership so that you can get the maximum benefit from your system. My number is below.\"","v":"Some tips: Solar systems are virtually maintenance free, but hosing the dust off every couple of months if it hasn't rained is a good idea (best to do this early morning or evenings when the sun isn't very intense - it's best not to thermally shock them with cold water if they are hot). The other points of maintenance are to read the display on the inverter to make sure the system is working and putting out electricity, and to check your montly electric statement. We'd be happy to walk you thru your system and any of the documentation, your new electric bills, and net metering requirements of ownership so that you can get the maximum benefit from your system. My number is below."}]
[]
[null,null,"We also encourage you to ensure your homeowners insurance covers the system, as it would cost a lot to replace it."]
[]
[null,null,{"$f":"\"If there's anything I can do for you, please contact me on \"&VendSalesPhCell&\".\"","v":"If there's anything I can do for you, please contact me on (123) 123 3456."}]
[]
[null,null,"Best, "]
[]
[]
[]
[null,null,{"$f":"VendSalesperson","v":"Ship Full User"}]